Service Area,Service Division,Expense Type,Expense Code,Detailed Expense Type,Payment Date,Transaction Number,Amount Exc Vat,Supplier Name
Children and Adult Services,Childrens Services,Employees,080025,Agency Staff,03-Nov-2014,2814089-2292394,"1,281.44",CELSIAN.
Children and Adult Services,Childrens Services,Employees,080025,Agency Staff,03-Nov-2014,2814089-2293600,650.00,CELSIAN.
Children and Adult Services,Childrens Services,Third Party Payments,479101,Purchase of Care,03-Nov-2014,2814098-3910005307,"4,119.03",CO DURHAM & DARLINGTON NHS FOUNDATION TRUST.
Children and Adult Services,Childrens Services,Third Party Payments,425040,Rendered by Voluntary Organisations,03-Nov-2014,2814129-130036,"3,554.46",FOSTERING SOLUTIONS LTD.
Children and Adult Services,Childrens Services,Third Party Payments,425040,Rendered by Voluntary Organisations,03-Nov-2014,2814133-27035,"3,232.99",FUTURES FOR CHILDREN LTD.
Children and Adult Services,Childrens Services,Third Party Payments,425023,Rendered by Voluntary Organisations,03-Nov-2014,2814151-WI6467,"19,714.28",HESLEY CARE GROUP LTD.
Children and Adult Services,Childrens Services,Third Party Payments,425040,Rendered by Voluntary Organisations,03-Nov-2014,2814216-NFA117318,"3,128.70",NATIONAL FOSTERING AGENCY LTD.
Children and Adult Services,Childrens Services,Third Party Payments,486027,Service Level Agreements,03-Nov-2014,2814223-0000019336,567.00,NORTH EAST AUTISM SOCIETY.
Children and Adult Services,Childrens Services,Third Party Payments,486027,Service Level Agreements,03-Nov-2014,2814223-0000019340,708.75,NORTH EAST AUTISM SOCIETY.
Children and Adult Services,Childrens Services,Third Party Payments,486027,Service Level Agreements,03-Nov-2014,2814223-0000019341,708.75,NORTH EAST AUTISM SOCIETY.
Children and Adult Services,Childrens Services,Third Party Payments,486027,Service Level Agreements,03-Nov-2014,2814223-0000019347,"3,024.00",NORTH EAST AUTISM SOCIETY.
Children and Adult Services,Childrens Services,Third Party Payments,486027,Service Level Agreements,03-Nov-2014,2814223-0000019348,661.50,NORTH EAST AUTISM SOCIETY.
Children and Adult Services,Childrens Services,Third Party Payments,486027,Service Level Agreements,03-Nov-2014,2814223-0000019379,"1,008.00",NORTH EAST AUTISM SOCIETY.
Children and Adult Services,Childrens Services,Third Party Payments,486027,Service Level Agreements,03-Nov-2014,2814223-0000019382,576.00,NORTH EAST AUTISM SOCIETY.
Children and Adult Services,Childrens Services,Third Party Payments,425040,Rendered by Voluntary Organisations,03-Nov-2014,2814255-153496,"1,069.00",SWIIS FOSTER CARE LTD.
Children and Adult Services,Childrens Services,Third Party Payments,425040,Rendered by Voluntary Organisations,03-Nov-2014,2814255-153827,"1,069.00",SWIIS FOSTER CARE LTD.
Children and Adult Services,Childrens Services,Supplies and Services,384237,Miscellaneous Expenses,03-Nov-2014,2814257-2488.,"1,218.00",TANFIELD RAILWAY.
Children and Adult Services,Childrens Services,Premises,125009,Rents,03-Nov-2014,2814265-GH3710,"1,010.59",THE GREENHOUSE CO (GROUNDWORK) LTD.
Children and Adult Services,Commissioning inc Supporting People,Third Party Payments,473111,Purchase of Care,03-Nov-2014,2814055-20/10/2014,"4,194.50",ASSOCIATION OF TEESDALE DAY CLUBS.
Children and Adult Services,Commissioning inc Supporting People,Supplies and Services,338045,Services,03-Nov-2014,2814064-4184085,738.00,BOND DICKINSON LLP.
Dedicated Schools Grant,Dedicated Schools Grant,Supplies and Services,304259,Equipment and Materials,03-Nov-2014,2814170-00117330,744.00,JENX LTD.
Dedicated Schools Grant,Dedicated Schools Grant,Transport,230010,Contract Hire,03-Nov-2014,2814240-141038,928.00,PRATTS TAXIS.
Children and Adult Services,Education,Supplies and Services,338094,Services,03-Nov-2014,2814036-18002466,868.00,1LIFE MANAGEMENT SOLUTIONS LTD.
Children and Adult Services,Education,Transport,230006,Contract Hire,03-Nov-2014,2814037-510,602.00,A BARKER.
Children and Adult Services,Education,Transport,230008,Contract Hire,03-Nov-2014,2814056-431,"1,260.00",AT TAXIS LTD.
Children and Adult Services,Education,Transport,230008,Contract Hire,03-Nov-2014,2814056-432,"1,245.60",AT TAXIS LTD.
Children and Adult Services,Education,Transport,230008,Contract Hire,03-Nov-2014,2814056-433,855.36,AT TAXIS LTD.
Children and Adult Services,Education,Transport,230008,Contract Hire,03-Nov-2014,2814056-434,"1,062.00",AT TAXIS LTD.
Children and Adult Services,Education,Transport,230008,Contract Hire,03-Nov-2014,2814057-DCC2OCT14,"1,952.10",ATLAS TAXIS BISHOP AUCKLAND.
Children and Adult Services,Education,Transport,230008,Contract Hire,03-Nov-2014,2814063-1362,"1,512.00",BOBBY DOVE.
Children and Adult Services,Education,Third Party Payments,440999,Other Third Party Payments,03-Nov-2014,2814104-14/15041,"11,037.84",CORNFORTH PARTNERSHIP PROJECTS FUND.
Children and Adult Services,Education,Transport,230008,Contract Hire,03-Nov-2014,2814121-E052/1014,"1,044.00",ELLIOTTS OF TRIMDON.
Children and Adult Services,Education,Transport,230008,Contract Hire,03-Nov-2014,2814121-NQA072/1014,864.00,ELLIOTTS OF TRIMDON.
Children and Adult Services,Education,Transport,230007,Contract Hire,03-Nov-2014,2814136-16777,"3,924.00",GARNETTS LTD (COACHES).
Children and Adult Services,Education,Transport,230007,Contract Hire,03-Nov-2014,2814136-16779,"6,996.00",GARNETTS LTD (COACHES).
Children and Adult Services,Education,Transport,230007,Contract Hire,03-Nov-2014,2814136-16780,"16,002.00",GARNETTS LTD (COACHES).
Children and Adult Services,Education,Transport,230007,Contract Hire,03-Nov-2014,2814136-16781,"2,322.00",GARNETTS LTD (COACHES).
Children and Adult Services,Education,Transport,230006,Contract Hire,03-Nov-2014,2814159-INV38,560.00,HORNDALE AJ`S TAXIS.
Children and Adult Services,Education,Transport,230008,Contract Hire,03-Nov-2014,2814159-INV40,"1,530.00",HORNDALE AJ`S TAXIS.
Children and Adult Services,Education,Transport,230008,Contract Hire,03-Nov-2014,2814198-1388,840.00,MACS TAXIS DURHAM LTD.
Children and Adult Services,Education,Supplies and Services,304259,Equipment and Materials,03-Nov-2014,2814220-105,513.33,NEWBLES.
Children and Adult Services,Education,Transport,230008,Contract Hire,03-Nov-2014,2814240-141034,"1,128.00",PRATTS TAXIS.
Children and Adult Services,Education,Premises,125009,Rents,03-Nov-2014,2814267-3176,700.00,THE WORK PLACE (AYCLIFFE) LTD.
Children and Adult Services,Education,Transport,230007,Contract Hire,03-Nov-2014,2814269-2409,"2,304.00",TM TRAVEL.
Children and Adult Services,Education,Transport,230007,Contract Hire,03-Nov-2014,2814269-2410,"2,124.00",TM TRAVEL.
Children and Adult Services,Education,Transport,230007,Contract Hire,03-Nov-2014,2814269-2411,"2,124.00",TM TRAVEL.
Children and Adult Services,Education,Transport,230007,Contract Hire,03-Nov-2014,2814269-2412,"7,524.00",TM TRAVEL.
Children and Adult Services,Education,Transport,230007,Contract Hire,03-Nov-2014,2814269-2415,"1,710.00",TM TRAVEL.
Children and Adult Services,Head of Adults,Premises,125009,Rents,03-Nov-2014,2814098-4810003367,"9,885.17",CO DURHAM & DARLINGTON NHS FOUNDATION TRUST.
Children and Adult Services,Head of Adults,Premises,125009,Rents,03-Nov-2014,2814280-304284,"6,268.75",WHITTLE JONES (GROUP) LTD.
Children and Adult Services,Public Health,Third Party Payments,460803,Contract Payments,03-Nov-2014,2814052-FDE75/SEPT/14,785.00,ASDA PHARMACY.
Children and Adult Services,Public Health,Third Party Payments,460803,Contract Payments,03-Nov-2014,2814067-FPC89/JUNE14,855.00,BOOTS THE CHEMISTS LTD.
Children and Adult Services,Public Health,Third Party Payments,460803,Contract Payments,03-Nov-2014,2814070-FHD21/SEPT/2014,570.00,BOOTS THE CHEMISTS LTD.
Children and Adult Services,Public Health,Third Party Payments,460803,Contract Payments,03-Nov-2014,2814071-FRA09/SEPT/14,604.00,BOOTS THE CHEMISTS LTD.
Children and Adult Services,Public Health,Third Party Payments,460803,Contract Payments,03-Nov-2014,2814072-FXD45/SEPT/14,552.00,BOOTS THE CHEMISTS LTD.
Children and Adult Services,Public Health,Third Party Payments,460803,Contract Payments,03-Nov-2014,2814135-FUI65/SEPT/14,942.00,G WHITFIELD LTD.
Children and Adult Services,Public Health,Third Party Payments,460803,Contract Payments,03-Nov-2014,2814140-FRW33/SEPT/2014,686.00,GILL & SCHOFIELD PHARMACEUTICAL CHEMISTS LTD.
Children and Adult Services,Public Health,Third Party Payments,460803,Contract Payments,03-Nov-2014,2814163-FDH51/0914,825.00,INTRAHEALTH LTD.
Children and Adult Services,Public Health,Third Party Payments,460803,Contract Payments,03-Nov-2014,2814190-FRR32/SEPT/14,661.00,LLOYDS PHARMACY.
Children and Adult Services,Public Health,Third Party Payments,460803,Contract Payments,03-Nov-2014,2814191-6663CA09140/SEPT/14,763.00,LLOYDS PHARMACY.
Children and Adult Services,Public Health,Third Party Payments,460803,Contract Payments,03-Nov-2014,2814192-SEPT/14,503.00,LLOYDS PHARMACY.
Children and Adult Services,Public Health,Third Party Payments,460803,Contract Payments,03-Nov-2014,2814193-FHM85/AUG2014,558.00,LLOYDS PHARMACY.
Children and Adult Services,Public Health,Third Party Payments,460803,Contract Payments,03-Nov-2014,2814199-FX859/SEPT/2014,503.00,MANICHEM LTD.
Children and Adult Services,Public Health,Third Party Payments,460803,Contract Payments,03-Nov-2014,2814256-TDSEPT2014,"2,800.00",REDACTED - PAYMENT TO INDIVIDUAL
Children and Adult Services,Public Health,Third Party Payments,460803,Contract Payments,03-Nov-2014,2814263-FL39/SEPT/2014,518.00,TESCO PHARMACY.
Neighbourhood Services,Culture & Sport,Supplies and Services,338047,Services,03-Nov-2014,2814108,"4,743.47",DARK MATTERS EVENTS.
Neighbourhood Services,Direct Services,Third Party Payments,460305,Contract Payments,03-Nov-2014,2814115,650.00,DUNN & SPENCE PAVING.
Neighbourhood Services,Culture & Sport,Supplies and Services,384700,Miscellaneous Expenses,03-Nov-2014,2814230,"1,758.00",NOUVEAU FITNESS CIC.
Neighbourhood Services,Direct Services,Premises,106082,Centrally Controlled Rep and Maint,03-Nov-2014,2814039-90103500,"1,353.00",ABACUS LIGHTING LTD.
Neighbourhood Services,Direct Services,Premises,106082,Centrally Controlled Rep and Maint,03-Nov-2014,2814040-6277,"1,500.00",AC DOOR SYSTEMS LTD.
Neighbourhood Services,Culture & Sport,Supplies and Services,312013,Newspapers Books and Periodicals,03-Nov-2014,2814054-4451153,"2,251.09",ASKEWS & HOLTS LIBRARY SERVICES LTD.
Neighbourhood Services,Culture & Sport,Supplies and Services,338099,Services,03-Nov-2014,2814061-00039R,"1,530.51",BISHOP CATERING LTD.
Neighbourhood Services,Direct Services,Supplies and Services,304221,Equipment and Materials,03-Nov-2014,2814077-INV156940,"2,279.40",BROXAP LTD.
Neighbourhood Services,Direct Services,Supplies and Services,304221,Equipment and Materials,03-Nov-2014,2814077-INV156941,"1,380.00",BROXAP LTD.
Neighbourhood Services,Technical Services,Stock,926004,Stock,03-Nov-2014,2814095-90131606,"18,991.75",CLEVELAND POTASH LTD.
Neighbourhood Services,Direct Services,Third Party Payments,430100,Rendered by Private Contractors,03-Nov-2014,2814096-8116671,"3,489.00",CLOVER CONTROLS LTD.
Neighbourhood Services,Technical Services,Construction Work,908108,Capital - Surface Dressing,03-Nov-2014,2814106-10765,"4,887.70",COUPE LINE LTD.
Neighbourhood Services,Technical Services,Third Party Payments,430100,Rendered by Private Contractors,03-Nov-2014,2814106-15999,630.88,COUPE LINE LTD.
Neighbourhood Services,Technical Services,Third Party Payments,430100,Rendered by Private Contractors,03-Nov-2014,2814106-16014,955.71,COUPE LINE LTD.
Neighbourhood Services,Technical Services,Third Party Payments,430100,Rendered by Private Contractors,03-Nov-2014,2814106-16017,"2,516.71",COUPE LINE LTD.
Neighbourhood Services,Direct Services,Third Party Payments,430100,Rendered by Private Contractors,03-Nov-2014,2814111-247174,522.97,DENNIS EAGLE LTD.
Neighbourhood Services,Direct Services,Transport,210057,Repair and Maintenance of Vehicles,03-Nov-2014,2814119-R015241,519.73,ECON ENGINEERING LTD.
Neighbourhood Services,Technical Services,Stock,926900,Stock in hand-Inventory system,03-Nov-2014,2814122-18SI/181772,"1,064.00",ENCON INSULATION LTD.
Neighbourhood Services,Culture & Sport,Premises,106082,Centrally Controlled Rep and Maint,03-Nov-2014,2814123-14501529,"4,704.50",ENER-G COMBINED POWER LTD.
Neighbourhood Services,Culture & Sport,Premises,106082,Centrally Controlled Rep and Maint,03-Nov-2014,2814123-14501550,"5,872.50",ENER-G COMBINED POWER LTD.
Neighbourhood Services,Direct Services,Stock,926004,Stock,03-Nov-2014,2814132-216253190,"1,199.00",FUCHS LUBRICANTS (UK) PLC.
Neighbourhood Services,Direct Services,Stock,926004,Stock,03-Nov-2014,2814132-216258313,635.50,FUCHS LUBRICANTS (UK) PLC.
Neighbourhood Services,Direct Services,Third Party Payments,430100,Rendered by Private Contractors,03-Nov-2014,2814138-B99016,"1,262.82",GEESINK NORBA LTD.
Neighbourhood Services,Direct Services,Third Party Payments,430100,Rendered by Private Contractors,03-Nov-2014,2814138-B99018,623.92,GEESINK NORBA LTD.
Neighbourhood Services,Direct Services,Transport,210057,Repair and Maintenance of Vehicles,03-Nov-2014,2814146-032625,"1,050.00",HAGS-SMP LTD.
Neighbourhood Services,Direct Services,Stock,926004,Stock,03-Nov-2014,2814148-504723,"36,844.45",HARVEST ENERGY LTD.
Neighbourhood Services,Direct Services,Stock,926004,Stock,03-Nov-2014,2814148-506174,"8,691.15",HARVEST ENERGY LTD.
Neighbourhood Services,Direct Services,Stock,926004,Stock,03-Nov-2014,2814148-506175,"6,644.30",HARVEST ENERGY LTD.
Neighbourhood Services,Direct Services,Stock,926004,Stock,03-Nov-2014,2814148-506176,"12,231.42",HARVEST ENERGY LTD.
Neighbourhood Services,Projects and Business services,Third Party Payments,430114,Rendered by Private Contractors,03-Nov-2014,2814165-85471,"23,229.00",J & B RECYCLING LTD.
Neighbourhood Services,Direct Services,Premises,150015,Apportioned Exps of Operational Blds,03-Nov-2014,2814173-1349685,834.84,JOHN NIXON LTD.
Neighbourhood Services,Technical Services,Supplies and Services,304358,Equipment and Materials,03-Nov-2014,2814174-21920,645.00,JOHN R BUTTERFIELD LTD.
Neighbourhood Services,Technical Services,Supplies and Services,304358,Equipment and Materials,03-Nov-2014,2814174-21996,741.00,JOHN R BUTTERFIELD LTD.
Neighbourhood Services,Technical Services,Supplies and Services,304358,Equipment and Materials,03-Nov-2014,2814174-22125,741.00,JOHN R BUTTERFIELD LTD.
Neighbourhood Services,Technical Services,Supplies and Services,304358,Equipment and Materials,03-Nov-2014,2814174-22213,790.00,JOHN R BUTTERFIELD LTD.
Neighbourhood Services,Technical Services,Supplies and Services,304358,Equipment and Materials,03-Nov-2014,2814174-22216,"1,600.00",JOHN R BUTTERFIELD LTD.
Neighbourhood Services,Technical Services,Supplies and Services,304358,Equipment and Materials,03-Nov-2014,2814174-22220,"1,189.60",JOHN R BUTTERFIELD LTD.
Neighbourhood Services,Technical Services,Supplies and Services,304358,Equipment and Materials,03-Nov-2014,2814174-22260,"1,036.40",JOHN R BUTTERFIELD LTD.
Neighbourhood Services,Direct Services,Supplies and Services,304358,Equipment and Materials,03-Nov-2014,2814174-22312,610.20,JOHN R BUTTERFIELD LTD.
Neighbourhood Services,Technical Services,Supplies and Services,304358,Equipment and Materials,03-Nov-2014,2814174-22313,"1,162.00",JOHN R BUTTERFIELD LTD.
Neighbourhood Services,Technical Services,Supplies and Services,304358,Equipment and Materials,03-Nov-2014,2814174-22347,615.00,JOHN R BUTTERFIELD LTD.
Neighbourhood Services,Technical Services,Supplies and Services,304358,Equipment and Materials,03-Nov-2014,2814174-22354,955.50,JOHN R BUTTERFIELD LTD.
Neighbourhood Services,Technical Services,Third Party Payments,430100,Rendered by Private Contractors,03-Nov-2014,2814177-0091,"26,769.60",JOSHUA THOMAS CONSTRUCTION LTD.
Neighbourhood Services,Technical Services,Supplies and Services,304358,Equipment and Materials,03-Nov-2014,2814183-1005,"3,019.00",KEVIN SNOWDON GROUNDWORKS LTD.
Neighbourhood Services,Technical Services,Supplies and Services,304358,Equipment and Materials,03-Nov-2014,2814183-1006,690.63,KEVIN SNOWDON GROUNDWORKS LTD.
Neighbourhood Services,Direct Services,Transport,230005,Contract Hire,03-Nov-2014,2814186-4343359,"2,848.50",LEEDS COMMERCIAL LTD.
Neighbourhood Services,Direct Services,Transport,230005,Contract Hire,03-Nov-2014,2814186-4347533,"1,700.00",LEEDS COMMERCIAL LTD.
Neighbourhood Services,Direct Services,Stock,926004,Stock,03-Nov-2014,2814187-SI1744101,715.00,LINDEN FLUID POWER LTD.
Neighbourhood Services,Direct Services,Stock,926004,Stock,03-Nov-2014,2814187-SI1744201,715.00,LINDEN FLUID POWER LTD.
Neighbourhood Services,Technical Services,Supplies and Services,304358,Equipment and Materials,03-Nov-2014,2814195-5A,"2,650.05",M & E & MR WALTON.
Neighbourhood Services,Technical Services,Supplies and Services,304358,Equipment and Materials,03-Nov-2014,2814195-6A,"2,656.88",M & E & MR WALTON.
Neighbourhood Services,Technical Services,Supplies and Services,304358,Equipment and Materials,03-Nov-2014,2814195-7A,"2,361.94",M & E & MR WALTON.
Neighbourhood Services,Technical Services,Supplies and Services,304358,Equipment and Materials,03-Nov-2014,2814195-8A,"2,141.59",M & E & MR WALTON.
Neighbourhood Services,Technical Services,Supplies and Services,304358,Equipment and Materials,03-Nov-2014,2814195-9A,"2,591.55",M & E & MR WALTON.
Neighbourhood Services,Technical Services,Supplies and Services,304358,Equipment and Materials,03-Nov-2014,2814200-1727,"1,292.00",MARTIN JEWITT PLANT HIRE.
Neighbourhood Services,Technical Services,Stock,926900,Stock in hand-Inventory system,03-Nov-2014,2814201-216904,"7,823.00",MARWOOD ELECTRICAL CO LTD.
Neighbourhood Services,Technical Services,Supplies and Services,304221,Equipment and Materials,03-Nov-2014,2814215-37292,"1,719.30",NAL LTD.
Neighbourhood Services,Direct Services,Transport,230005,Contract Hire,03-Nov-2014,2814217-97059,780.00,ND BROWN LTD.
Neighbourhood Services,Direct Services,Supplies and Services,338035,Services,03-Nov-2014,2814219-50060397,"2,400.00",NEW COLLEGE DURHAM.
Neighbourhood Services,Technical Services,Supplies and Services,304221,Equipment and Materials,03-Nov-2014,2814232-201526,"7,928.69",OWEN PUGH CONTRACTS LTD.
Neighbourhood Services,Technical Services,Stock,926900,Stock in hand-Inventory system,03-Nov-2014,2814233-BR507521,550.00,PARK ELECTRICAL DISTRIBUTORS LTD.
Neighbourhood Services,Direct Services,Supplies and Services,304221,Equipment and Materials,03-Nov-2014,2814233-XL126265,"1,008.00",PARK ELECTRICAL DISTRIBUTORS LTD.
Neighbourhood Services,Technical Services,Stock,926900,Stock in hand-Inventory system,03-Nov-2014,2814233-XL126319,"1,881.25",PARK ELECTRICAL DISTRIBUTORS LTD.
Neighbourhood Services,Direct Services,Supplies and Services,304221,Equipment and Materials,03-Nov-2014,2814233-XL126715,907.32,PARK ELECTRICAL DISTRIBUTORS LTD.
Neighbourhood Services,Direct Services,Supplies and Services,304221,Equipment and Materials,03-Nov-2014,2814233-XL127059,754.96,PARK ELECTRICAL DISTRIBUTORS LTD.
Neighbourhood Services,Technical Services,Stock,926900,Stock in hand-Inventory system,03-Nov-2014,2814233-XL127268,756.00,PARK ELECTRICAL DISTRIBUTORS LTD.
Neighbourhood Services,Direct Services,Supplies and Services,304221,Equipment and Materials,03-Nov-2014,2814239-9567,"1,561.00",PLANTSCAPE.
Neighbourhood Services,Technical Services,Supplies and Services,304358,Equipment and Materials,03-Nov-2014,2814242-9057,"1,074.00",RD KEARTON & SONS LTD.
Neighbourhood Services,Direct Services,Debtors,930046,Debtor-leasing,03-Nov-2014,2814245-200014,"11,101.93",S JENNINGS LTD.
Neighbourhood Services,Direct Services,Debtors,930046,Debtor-leasing,03-Nov-2014,2814245-200015,"11,101.93",S JENNINGS LTD.
Neighbourhood Services,Direct Services,Debtors,930046,Debtor-leasing,03-Nov-2014,2814245-200016,"11,101.93",S JENNINGS LTD.
Neighbourhood Services,Direct Services,Stock,926004,Stock,03-Nov-2014,2814252-3732,634.00,STREETSCAPE (PRODUCTS & SERVICES) LTD.
Neighbourhood Services,Direct Services,Transport,230005,Contract Hire,03-Nov-2014,2814274-11238,775.00,TRASH UK LTD.
Neighbourhood Services,Direct Services,Transport,230005,Contract Hire,03-Nov-2014,2814274-11239,"1,166.14",TRASH UK LTD.
Neighbourhood Services,Technical Services,Supplies and Services,304358,Equipment and Materials,03-Nov-2014,2814277-38033,"5,662.50",W MARLEY AGRICULTURAL CONTRACTORS LTD.
Neighbourhood Services,Technical Services,Supplies and Services,304358,Equipment and Materials,03-Nov-2014,2814277-38135,"1,721.00",W MARLEY AGRICULTURAL CONTRACTORS LTD.
Neighbourhood Services,Technical Services,Supplies and Services,304358,Equipment and Materials,03-Nov-2014,2814277-38178,"1,170.00",W MARLEY AGRICULTURAL CONTRACTORS LTD.
Neighbourhood Services,Direct Services,Supplies and Services,304358,Equipment and Materials,03-Nov-2014,2814278-64579,550.00,WARREN ACCESS LTD.
Neighbourhood Services,Direct Services,Stock,926004,Stock,03-Nov-2014,2814286-SVI29478,602.72,ZOELLER WASTE SYSTEMS LTD.
RED HRA,HRA Capital,Construction Work,908105,Construction work,03-Nov-2014,2814279-B50405-1,"9,807.44",WATES CONSTRUCTION LTD.
Regeneration & Economic Development,Economic Development and Housing,Supplies and Services,384700,Miscellaneous Expenses,03-Nov-2014,2814086-RED-10-2014-191,"1,000.00",CARD TEAM LTD.
Regeneration & Economic Development,Spatial Policy Planning Assets & Environment,Supplies and Services,338099,Services,03-Nov-2014,2814118-14154,"1,079.28",DURHAM WILDLIFE TRUST LTD.
Regeneration & Economic Development,Economic Development and Housing,Cap Exp on Grants & Other Financial Assistance (REFCUS),918401,Capital grants,03-Nov-2014,2814207-RED-10-2014-194,"5,000.00",REDACTED - PAYMENT TO INDIVIDUAL
Regeneration & Economic Development,Economic Development and Housing,Cap Exp on Grants & Other Financial Assistance (REFCUS),918401,Capital grants,03-Nov-2014,2814209-RED-10-2014-195,"5,000.00",REDACTED - PAYMENT TO INDIVIDUAL
Resources,Legal & Democratic Services,Supplies and Services,338042,Services,03-Nov-2014,2814041,"1,890.00",ACCESS TO JUSTICE FOUNDATION.
Resources,Legal & Democratic Services,Supplies and Services,332029,Printing Stationery and Gen Off Exps,03-Nov-2014,2814044-IS1242266,"1,947.92",ADARE INSPIRED COMMUNICATIONS.
Resources,Financial Services,Supplies and Services,384199,Miscellaneous Expenses,03-Nov-2014,2814085-89860RI,"15,733.76",CAPACITYGRID.
Resources,Centrally Administered Costs,Supplies and Services,338013,Services,03-Nov-2014,2814203-988990,"10,000.00",MAZARS LLP.
Resources,I.C.T. Services,Supplies and Services,304639,Equipment and Materials,03-Nov-2014,2814253-966044,565.51,SUPPLIES FOR SCHOOLS LTD.
Children and Adult Services,Childrens Services,Third Party Payments,440005,Other Third Party Payments,04-Nov-2014,2814775-984946,995.37,REDACTED - PAYMENT TO INDIVIDUAL
Children and Adult Services,Childrens Services,Third Party Payments,479101,Purchase of Care,04-Nov-2014,2815041-3910004996,"1,383.53",CO DURHAM & DARLINGTON NHS FOUNDATION TRUST.
Children and Adult Services,Childrens Services,Third Party Payments,479101,Purchase of Care,04-Nov-2014,2815041-3910005304,"9,752.91",CO DURHAM & DARLINGTON NHS FOUNDATION TRUST.
Children and Adult Services,Childrens Services,Construction Work,908105,Construction work,04-Nov-2014,2815444-INS7-SEAVIEWPRIMARY,"6,541.31",T MANNERS & SONS LTD.
Children and Adult Services,Commissioning inc Supporting People,Third Party Payments,479111,Purchase of Care,04-Nov-2014,2815254-555/03407,"14,830.50",MENTAL HEALTH MATTERS.
Children and Adult Services,Commissioning inc Supporting People,Third Party Payments,472112,Purchase of Care,04-Nov-2014,2815462-DRE7,907.13,THE HUMAN SUPPORT GROUP.
Dedicated Schools Grant,Dedicated Schools Grant,Transport,230010,Contract Hire,04-Nov-2014,2815191-2014/21,800.00,JM HUMBLE COACH HIRE.
Dedicated Schools Grant,Dedicated Schools Grant,Third Party Payments,440080,Other Third Party Payments,04-Nov-2014,2815303-0000018843,"10,219.25",NORTH EAST AUTISM SOCIETY.
Dedicated Schools Grant,Dedicated Schools Grant,Third Party Payments,440080,Other Third Party Payments,04-Nov-2014,2815303-0000018845,"13,415.00",NORTH EAST AUTISM SOCIETY.
Dedicated Schools Grant,Dedicated Schools Grant,Third Party Payments,440080,Other Third Party Payments,04-Nov-2014,2815303-0000018858,"7,029.75",NORTH EAST AUTISM SOCIETY.
Children and Adult Services,Education,Transport,235005,Public Transport,04-Nov-2014,2814968-107643,"163,956.80",ARRIVA NORTH EAST LTD.
Children and Adult Services,Education,Transport,235005,Public Transport,04-Nov-2014,2814968-107759,"15,876.80",ARRIVA NORTH EAST LTD.
Children and Adult Services,Education,Transport,230008,Contract Hire,04-Nov-2014,2814984-37,"1,220.00",BEELINE TAXIS.
Children and Adult Services,Education,Supplies and Services,338089,Services,04-Nov-2014,2815010-042/14,500.00,BRUCE DAVIES.
Children and Adult Services,Education,Supplies and Services,352001,Conference Expenses,04-Nov-2014,2815016-INV-22195,700.00,CAPITA BUSINESS SERVICES LTD.
Children and Adult Services,Education,Transport,230007,Contract Hire,04-Nov-2014,2815043-C/8404,"2,184.50",COCHRANES T/A KELVIN TRAVEL.
Children and Adult Services,Education,Transport,230008,Contract Hire,04-Nov-2014,2815049-405,"1,480.00",CONNORS MINI BUSES.
Children and Adult Services,Education,Transport,230007,Contract Hire,04-Nov-2014,2815123-0309,648.00,FMR SILVA PITA.
Children and Adult Services,Education,Transport,230008,Contract Hire,04-Nov-2014,2815186-603,"1,216.00",JDS PRIVATE HIRE DURHAM.
Children and Adult Services,Education,Transport,230008,Contract Hire,04-Nov-2014,2815186-605,"1,142.40",JDS PRIVATE HIRE DURHAM.
Children and Adult Services,Education,Transport,230009,Contract Hire,04-Nov-2014,2815186-609,"1,008.00",JDS PRIVATE HIRE DURHAM.
Children and Adult Services,Education,Transport,230008,Contract Hire,04-Nov-2014,2815191-2014/22,806.40,JM HUMBLE COACH HIRE.
Children and Adult Services,Education,Supplies and Services,384199,Miscellaneous Expenses,04-Nov-2014,2815220-20882,"1,489.00",LEE`S COACHES LTD.
Children and Adult Services,Education,Supplies and Services,384199,Miscellaneous Expenses,04-Nov-2014,2815220-20909,"1,169.00",LEE`S COACHES LTD.
Children and Adult Services,Education,Transport,230008,Contract Hire,04-Nov-2014,2815238-13,"1,350.00",M BEHAN T/A M & M`S TAXIS.
Children and Adult Services,Education,Transport,230008,Contract Hire,04-Nov-2014,2815275-A057/09/14,"1,160.00",MR M ALLISON T/A MACBETH TAXIS/COACHES.
Children and Adult Services,Education,Transport,230008,Contract Hire,04-Nov-2014,2815275-N025/10/14,504.00,MR M ALLISON T/A MACBETH TAXIS/COACHES.
Children and Adult Services,Education,Transport,230008,Contract Hire,04-Nov-2014,2815275-N059/10/14,"1,440.00",MR M ALLISON T/A MACBETH TAXIS/COACHES.
Children and Adult Services,Education,Transport,230008,Contract Hire,04-Nov-2014,2815289-2,600.00,NEIL PASSMOOR T/A NEIL`S TAXI.
Children and Adult Services,Education,Transport,230008,Contract Hire,04-Nov-2014,2815297-3410,"1,062.00",NIGHTINGALE COACHES.
Children and Adult Services,Education,Transport,230007,Contract Hire,04-Nov-2014,2815324-1355,"2,160.00",PAUL WATSON TRAVEL.
Children and Adult Services,Education,Transport,230007,Contract Hire,04-Nov-2014,2815324-1356,972.00,PAUL WATSON TRAVEL.
Children and Adult Services,Education,Transport,230007,Contract Hire,04-Nov-2014,2815324-1357,"2,340.00",PAUL WATSON TRAVEL.
Children and Adult Services,Education,Supplies and Services,338027,Services,04-Nov-2014,2815438-14,"5,048.00",SUE SMITH..
Children and Adult Services,Education,Premises,125009,Rents,04-Nov-2014,2815469-3228,700.00,THE WORK PLACE (AYCLIFFE) LTD.
Children and Adult Services,Education,Vehicles Equipment Furniture and Fittings,912529,Purchase-equipment,04-Nov-2014,2815495-2462,"21,718.66",UPNORTH FOODSERVICE EQUIPMENT LTD.
Children and Adult Services,Head of Adults,Premises,125009,Rents,04-Nov-2014,2815083-REIN/00000163,"1,500.00",DERWENTSIDE HOMES LTD.
Children and Adult Services,Head of Adults,Third Party Payments,478151,Purchase of Care,04-Nov-2014,2815311-20569,"1,290.66",OAKLEA TRUST.
Children and Adult Services,Head of Adults,Third Party Payments,478151,Purchase of Care,04-Nov-2014,2815311-20598,"3,176.48",OAKLEA TRUST.
Children and Adult Services,Planning & Service Strategy,Supplies and Services,304259,Equipment and Materials,04-Nov-2014,2815161-79075,560.04,HEPSCOTT WATER SYSTEMS LTD.
Children and Adult Services,Public Health,Third Party Payments,460803,Contract Payments,04-Nov-2014,2814948-000000419,"108,108.25",AGE UK COUNTY DURHAM.
Children and Adult Services,Public Health,Third Party Payments,460803,Contract Payments,04-Nov-2014,2814988-FFK86/0514/NRT,"1,474.36",BEWICK PHARMACY.
Children and Adult Services,Public Health,Third Party Payments,460803,Contract Payments,04-Nov-2014,2814995-FMD09/NRT/FEB/2014,636.16,BOOTS THE CHEMISTS LTD.
Children and Adult Services,Public Health,Third Party Payments,460803,Contract Payments,04-Nov-2014,2814996-FPQ55/04-0514/NRT,904.25,BOOTS THE CHEMISTS LTD.
Children and Adult Services,Public Health,Third Party Payments,460803,Contract Payments,04-Nov-2014,2815264-FYR54NRT022014,888.19,MJ & A TAYLOR.
Assistant Chief Executive,Partnerships & Community Engagement Div.,Cap Exp on Grants & Other Financial Assistance (REFCUS),918004,Contributions to other bodies,04-Nov-2014,2815030-VOUCHER14NB-CHES015,"4,359.00",CHESTER LE STREET DISTRICT WAR MEMORIAL GROUP.
Assistant Chief Executive,Partnerships & Community Engagement Div.,Supplies and Services,384085,Miscellaneous Expenses,04-Nov-2014,2815284-NAPA03-14,"1,000.00",MURTON WELFARE ASSOCIATION.
Assistant Chief Executive,Partnerships & Community Engagement Div.,Transfer Payments,525030,Other,04-Nov-2014,2815330-12504/15,"17,621.75",PIONEERING CARE PARTNERSHIP.
Assistant Chief Executive,Partnerships & Community Engagement Div.,Transfer Payments,525030,Other,04-Nov-2014,2815330-12529/15,"17,621.75",PIONEERING CARE PARTNERSHIP.
Assistant Chief Executive,Partnerships & Community Engagement Div.,Transfer Payments,525030,Other,04-Nov-2014,2815330-12599/15,"17,621.75",PIONEERING CARE PARTNERSHIP.
Assistant Chief Executive,Partnerships & Community Engagement Div.,Transfer Payments,525030,Other,04-Nov-2014,2815384-VOUCHER14AB-3TWN004,"2,364.00",SALVATION ARMY.
Assistant Chief Executive,Partnerships & Community Engagement Div.,Cap Exp on Grants & Other Financial Assistance (REFCUS),918004,Contributions to other bodies,04-Nov-2014,2815512-VOUCHER14NB-EDUR022,"6,348.00",REDACTED - PAYMENT TO INDIVIDUAL
Assistant Chief Executive,Partnerships & Community Engagement Div.,Supplies and Services,384086,Miscellaneous Expenses,04-Nov-2014,2815515-VOUCHER14NB-CHES016,"3,000.00",WILLY NILLIE.
Neighbourhood Services,Culture & Sport,Supplies and Services,304337,Equipment and Materials,04-Nov-2014,2814951-1388,604.30,ALISON BLACK LTD T/A SPORTMAX.
Neighbourhood Services,Culture & Sport,Supplies and Services,384237,Miscellaneous Expenses,04-Nov-2014,2814955-00000346,980.00,ANALYSISPRO LTD.
Neighbourhood Services,Direct Services,Supplies and Services,304221,Equipment and Materials,04-Nov-2014,2814965-20151,756.67,ARBOR TIMBER & BUILDERS MERCHANTS LTD.
Neighbourhood Services,Direct Services,Supplies and Services,304221,Equipment and Materials,04-Nov-2014,2815011-1650/0812062,569.48,BSS GROUP PLC.
Neighbourhood Services,Culture & Sport,Premises,120037,Energy Costs,04-Nov-2014,2815015-18406411,677.74,CALOR GAS LTD.
Neighbourhood Services,Direct Services,Third Party Payments,430100,Rendered by Private Contractors,04-Nov-2014,2815019-15522,"1,066.59",CATHEDRAL LOCK & SAFE SERVICES LTD.
Neighbourhood Services,Technical Services,Supplies and Services,372009,Subscriptions,04-Nov-2014,2815020-MI69927,"1,071.66",CAUSEWAY TECHNOLOGIES LTD.
Neighbourhood Services,Direct Services,Third Party Payments,430100,Rendered by Private Contractors,04-Nov-2014,2815024-128424,"4,019.00",CDS SECURITY LTD.
Neighbourhood Services,Technical Services,Stock,926900,Stock in hand-Inventory system,04-Nov-2014,2815025-9950/01614846,"1,032.24",CERAMIC TILE DISTRIBUTORS (CTD).
Neighbourhood Services,Technical Services,Income,720299,Fees and Charges,04-Nov-2014,2815114-RED-10-2014-192,500.00,ESH CONSTRUCTION LTD FORMERLY LUMSDEN & CARROLL CONSTRUCTION LTD.
Neighbourhood Services,Direct Services,Supplies and Services,304221,Equipment and Materials,04-Nov-2014,2815159-692908,786.29,HARVEST ENERGY LTD.
Neighbourhood Services,Technical Services,Third Party Payments,430100,Rendered by Private Contractors,04-Nov-2014,2815162-2319,"8,987.53",HIGHWAY CONSTRUCTION SERVICES LTD.
Neighbourhood Services,Technical Services,Supplies and Services,304221,Equipment and Materials,04-Nov-2014,2815166-31441,565.80,HOGG BLASTING & FINISHING EQUIPMENT LTD.
Neighbourhood Services,Technical Services,Stock,926900,Stock in hand-Inventory system,04-Nov-2014,2815197-STI410123,504.46,JT DOVE LTD.
Neighbourhood Services,Technical Services,Stock,926900,Stock in hand-Inventory system,04-Nov-2014,2815197-STI410222,584.50,JT DOVE LTD.
Neighbourhood Services,Technical Services,Stock,926900,Stock in hand-Inventory system,04-Nov-2014,2815197-STI410388,924.00,JT DOVE LTD.
Neighbourhood Services,Technical Services,Stock,926900,Stock in hand-Inventory system,04-Nov-2014,2815225-700848,"4,800.00",LIGHTING & ILLUMINATION TECHNOLOGY EXPERIENCE LTD (LITE).
Neighbourhood Services,Direct Services,Supplies and Services,304221,Equipment and Materials,04-Nov-2014,2815242-827/035950,639.92,MAGNET LTD.
Neighbourhood Services,Direct Services,Supplies and Services,304221,Equipment and Materials,04-Nov-2014,2815242-827/036197,691.99,MAGNET LTD.
Neighbourhood Services,Direct Services,Supplies and Services,304221,Equipment and Materials,04-Nov-2014,2815242-827/036198,553.51,MAGNET LTD.
Neighbourhood Services,Direct Services,Supplies and Services,304221,Equipment and Materials,04-Nov-2014,2815243-827/035948,580.89,MAGNET LTD.
Neighbourhood Services,Direct Services,Supplies and Services,304221,Equipment and Materials,04-Nov-2014,2815243-827/035995,619.85,MAGNET LTD.
Neighbourhood Services,Direct Services,Supplies and Services,304221,Equipment and Materials,04-Nov-2014,2815243-827/035996,792.22,MAGNET LTD.
Neighbourhood Services,Direct Services,Supplies and Services,304221,Equipment and Materials,04-Nov-2014,2815243-827/036032,635.26,MAGNET LTD.
Neighbourhood Services,Direct Services,Supplies and Services,304221,Equipment and Materials,04-Nov-2014,2815243-827/036089,717.11,MAGNET LTD.
Neighbourhood Services,Direct Services,Supplies and Services,304221,Equipment and Materials,04-Nov-2014,2815243-827/036224,625.47,MAGNET LTD.
Neighbourhood Services,Direct Services,Supplies and Services,304221,Equipment and Materials,04-Nov-2014,2815243-827/036259,797.00,MAGNET LTD.
Neighbourhood Services,Technical Services,Supplies and Services,304221,Equipment and Materials,04-Nov-2014,2815285-38954,"1,043.64",NAL LTD.
Neighbourhood Services,Culture & Sport,Supplies and Services,384700,Miscellaneous Expenses,04-Nov-2014,2815286,731.25,NATIONAL TRUST.
Neighbourhood Services,Culture & Sport,Supplies and Services,384700,Miscellaneous Expenses,04-Nov-2014,2815320-NEI-EXP-10-2014-98,544.00,PALATINATES.
Neighbourhood Services,Technical Services,Stock,926900,Stock in hand-Inventory system,04-Nov-2014,2815322-XL126615,"1,032.65",PARK ELECTRICAL DISTRIBUTORS LTD.
Neighbourhood Services,Technical Services,Stock,926900,Stock in hand-Inventory system,04-Nov-2014,2815322-XL126687,"7,984.70",PARK ELECTRICAL DISTRIBUTORS LTD.
Neighbourhood Services,Technical Services,Stock,926900,Stock in hand-Inventory system,04-Nov-2014,2815322-XL126702,"1,472.00",PARK ELECTRICAL DISTRIBUTORS LTD.
Neighbourhood Services,Technical Services,Stock,926900,Stock in hand-Inventory system,04-Nov-2014,2815322-XL126708,"4,944.33",PARK ELECTRICAL DISTRIBUTORS LTD.
Neighbourhood Services,Technical Services,Stock,926900,Stock in hand-Inventory system,04-Nov-2014,2815322-XL126756,660.00,PARK ELECTRICAL DISTRIBUTORS LTD.
Neighbourhood Services,Direct Services,Third Party Payments,430100,Rendered by Private Contractors,04-Nov-2014,2815345-70317,"1,200.00",PROTECTOR SECURITY GROUP LTD.
Neighbourhood Services,Direct Services,Supplies and Services,384956,Miscellaneous Expenses,04-Nov-2014,2815348-4329087,543.71,PRS FOR MUSIC.
Neighbourhood Services,Technical Services,Third Party Payments,430100,Rendered by Private Contractors,04-Nov-2014,2815363-I-000588,696.00,READMAN FABRICATIONS LTD.
Neighbourhood Services,Technical Services,Third Party Payments,430100,Rendered by Private Contractors,04-Nov-2014,2815363-I-000607,"4,842.40",READMAN FABRICATIONS LTD.
Neighbourhood Services,Technical Services,Third Party Payments,430100,Rendered by Private Contractors,04-Nov-2014,2815363-I-000608,"4,742.40",READMAN FABRICATIONS LTD.
Neighbourhood Services,Technical Services,Stock,926900,Stock in hand-Inventory system,04-Nov-2014,2815373-231397,586.26,RITHERDON & CO LTD.
Neighbourhood Services,Technical Services,Third Party Payments,430100,Rendered by Private Contractors,04-Nov-2014,2815399-SIL/D262/2430,"2,400.00",SEALANE INSHORE LTD.
Neighbourhood Services,Technical Services,Premises,125009,Rents,04-Nov-2014,2815436-5073,"8,592.50",STRATHMORE ENGLISH ESTATES.
Neighbourhood Services,Technical Services,Third Party Payments,430100,Rendered by Private Contractors,04-Nov-2014,2815448-091014,693.00,TASK GREEN LTD.
Neighbourhood Services,Technical Services,Third Party Payments,430100,Rendered by Private Contractors,04-Nov-2014,2815448-280515,"12,792.66",TASK GREEN LTD.
Neighbourhood Services,Technical Services,Stock,926900,Stock in hand-Inventory system,04-Nov-2014,2815470-0037249253,"3,357.00",THOMAS & BETTS NETHERLANDS BV.
Neighbourhood Services,Projects and Business services,Third Party Payments,430121,Rendered by Private Contractors,04-Nov-2014,2815504-16127,"2,229.40",VIRIDIAN SYSTEMS LTD.
Neighbourhood Services,Technical Services,Construction Work,908105,Construction work,04-Nov-2014,2815511-DCC/SVC52/ADD,900.00,WEARDALE MOTOR SERVICES LTD.
Neighbourhood Services,Direct Services,Supplies and Services,304221,Equipment and Materials,04-Nov-2014,2815527-32356,"1,417.58",YWC GROUP LTD.
RED HRA,HRA Capital,Construction Work,908105,Construction work,04-Nov-2014,2815081-208176,"1,206.65",DELTA ELECTRICAL & MECHANICAL SERVICES.
RED HRA,HRA Capital,Construction Work,908105,Construction work,04-Nov-2014,2815081-208177,"1,737.28",DELTA ELECTRICAL & MECHANICAL SERVICES.
RED HRA,HRA Capital,Construction Work,908105,Construction work,04-Nov-2014,2815081-208178,"2,827.80",DELTA ELECTRICAL & MECHANICAL SERVICES.
RED HRA,HRA Capital,Construction Work,908105,Construction work,04-Nov-2014,2815201-B50389-1,"294,538.86",KEEPMOAT HOMES LTD.
RED HRA,Housing Revenue Account,Supplies and Services,342051,Computers and Communications,04-Nov-2014,2815328-OP/I738446,"2,747.28",PHOENIX SOFTWARE LTD.
RED HRA,Housing Revenue Account,Supplies and Services,342033,Computers and Communications,04-Nov-2014,2815419-INV01033552,"2,221.02",SOFTCAT LTD.
RED HRA,Housing Revenue Account,Debtors,930106,Debtor-furnished tenancy scheme,04-Nov-2014,2815525-1800007183440,"29,846.33",YOUR HOMES NEWCASTLE.
RED HRA,HRA Capital,Construction Work,908105,Construction work,04-Nov-2014,2815527-32083,"1,461.37",YWC GROUP LTD.
Regeneration & Economic Development,Economic Development and Housing,Supplies and Services,324117,Provisions,04-Nov-2014,2814932-56361444,706.70,3663.
Regeneration & Economic Development,Economic Development and Housing,Supplies and Services,324117,Provisions,04-Nov-2014,2814932-56459614,"1,076.91",3663.
Regeneration & Economic Development,Economic Development and Housing,Supplies and Services,324117,Provisions,04-Nov-2014,2814932-56560643,628.93,3663.
Regeneration & Economic Development,Economic Development and Housing,Supplies and Services,324117,Provisions,04-Nov-2014,2814932-56661608,722.14,3663.
Regeneration & Economic Development,Economic Development and Housing,Supplies and Services,324117,Provisions,04-Nov-2014,2814932-56760061,543.19,3663.
Regeneration & Economic Development,Transport and Contracted Services,Fees,901002,Professional fees,04-Nov-2014,2814947-RED-10-2014-187,"5,937.24",AECOM LTD.
Regeneration & Economic Development,Economic Development and Housing,Supplies and Services,384700,Miscellaneous Expenses,04-Nov-2014,2815048-RED-11-2014-010,"1,000.00",COMTEK SYSTEM SOLUTIONS.
Regeneration & Economic Development,Economic Development and Housing,Premises,120021,Energy Costs,04-Nov-2014,2815057-09654265,797.29,CORONA ENERGY RETAIL 2 LTD.
Regeneration & Economic Development,Transport and Contracted Services,Supplies and Services,384540,Miscellaneous Expenses,04-Nov-2014,2815090-103078,687.50,DODWELL BROS LTD.
Regeneration & Economic Development,Strategy Programmes and Performance,Supplies and Services,384899,Miscellaneous Expenses,04-Nov-2014,2815125-NL06/2,"56,996.75",FORESTRY COMMISSION.
Regeneration & Economic Development,Economic Development and Housing,Cap Exp on Grants & Other Financial Assistance (REFCUS),918401,Capital grants,04-Nov-2014,2815237-RED-11-2014-007,"4,620.00",M & R DEVELOPMENTS & CONTRACTORS LTD..
Regeneration & Economic Development,Spatial Policy Planning Assets & Environment,Third Party Payments,440999,Other Third Party Payments,04-Nov-2014,2815257-3576,"4,426.97",MICROCOPY SYSTEMS LTD.
Regeneration & Economic Development,Economic Development and Housing,Cap Exp on Grants & Other Financial Assistance (REFCUS),918401,Capital grants,04-Nov-2014,2815262-RED-11-2014-004,"5,000.00",REDACTED - PAYMENT TO INDIVIDUAL
Regeneration & Economic Development,Economic Development and Housing,Cap Exp on Grants & Other Financial Assistance (REFCUS),918401,Capital grants,04-Nov-2014,2815377-RED-10-2014-152,"35,354.00",RONDEN PROPERTIES LTD.
Regeneration & Economic Development,Transport and Contracted Services,Third Party Payments,430106,Rendered by Private Contractors,04-Nov-2014,2815432-11106,"1,285.00",STANLEY TRAVEL (NORTH EAST) LTD.
Regeneration & Economic Development,Economic Development and Housing,Cap Exp on Grants & Other Financial Assistance (REFCUS),918401,Capital grants,04-Nov-2014,2815488-RED-11-2014-005,"7,000.00",TULLY`S ELECTRICAL ENGINEERS & COMPLETE BUILDING SERVICES LTD.
Resources,I.C.T. Services,Supplies and Services,304303,Equipment and Materials,04-Nov-2014,2815172-SIN343600,"1,316.00",IDN SUPPLIES LTD.
Resources,I.C.T. Services,Supplies and Services,304303,Equipment and Materials,04-Nov-2014,2815200-36788,"4,514.60",KBR IT & NETWORKING SOLUTIONS.
Resources,I.C.T. Services,Supplies and Services,304303,Equipment and Materials,04-Nov-2014,2815200-36789,"4,890.64",KBR IT & NETWORKING SOLUTIONS.
Resources,I.C.T. Services,Supplies and Services,342051,Computers and Communications,04-Nov-2014,2815232-14/013550,"3,395.00",LOGOSOFT LTD.
Resources,I.C.T. Services,Supplies and Services,304259,Equipment and Materials,04-Nov-2014,2815258-0000084021,899.00,MILLENNIUM BUSINESS SYSTEMS LTD.
Resources,I.C.T. Services,Supplies and Services,344131,Telephones,04-Nov-2014,2815419-INV01022448,"4,584.36",SOFTCAT LTD.
Resources,Legal & Democratic Services,Supplies and Services,372009,Subscriptions,04-Nov-2014,2815465-CRM01174706,"10,560.00",THE LAW SOCIETY.
Resources,I.C.T. Services,Stock,926900,Stock in hand-Inventory system,04-Nov-2014,2815500-2352203,"34,100.00",VIGLEN LTD.
Resources,I.C.T. Services,Stock,926900,Stock in hand-Inventory system,04-Nov-2014,2815500-2352210,"34,100.00",VIGLEN LTD.
Children and Adult Services,Central/Other,Debtors,930024,Debtor-free nursing care,05-Nov-2014,2816824-2195600,601.97,ALLIANCE CARE.
Children and Adult Services,Central/Other,Debtors,930024,Debtor-free nursing care,05-Nov-2014,2816838-2197271,522.77,AYCLIFFE CARE HOME.
Children and Adult Services,Central/Other,Debtors,930024,Debtor-free nursing care,05-Nov-2014,2816844-2195353,"2,091.06",BEACONSFIELD COURT.
Children and Adult Services,Central/Other,Debtors,930024,Debtor-free nursing care,05-Nov-2014,2816867-2195508,554.45,CRAIGARRAN CARE HOME WITH NURSING.
Children and Adult Services,Central/Other,Debtors,930024,Debtor-free nursing care,05-Nov-2014,2816867-2198208,"1,061.37",CRAIGARRAN CARE HOME WITH NURSING.
Children and Adult Services,Central/Other,Debtors,930024,Debtor-free nursing care,05-Nov-2014,2816871-2198462,"1,774.24",DEFOE COURT.
Children and Adult Services,Central/Other,Debtors,930024,Debtor-free nursing care,05-Nov-2014,2816891-2198394,"1,330.68",EMBRACE ALL LTD.
Children and Adult Services,Central/Other,Debtors,930024,Debtor-free nursing care,05-Nov-2014,2816900-2195861,506.93,FOUR SEASONS HEALTH CARE..
Children and Adult Services,Central/Other,Debtors,930024,Debtor-free nursing care,05-Nov-2014,2816900-2195864,665.34,FOUR SEASONS HEALTH CARE..
Children and Adult Services,Central/Other,Debtors,930024,Debtor-free nursing care,05-Nov-2014,2816920-2194698,"1,045.53",JACK DORMAND.
Children and Adult Services,Central/Other,Debtors,930024,Debtor-free nursing care,05-Nov-2014,2816920-2194707,966.32,JACK DORMAND.
Children and Adult Services,Central/Other,Debtors,930024,Debtor-free nursing care,05-Nov-2014,2816920-2194710,950.48,JACK DORMAND.
Children and Adult Services,Central/Other,Debtors,930024,Debtor-free nursing care,05-Nov-2014,2816943-2196704,506.93,LINDISFARNE.
Children and Adult Services,Central/Other,Debtors,930024,Debtor-free nursing care,05-Nov-2014,2816943-2197970,744.55,LINDISFARNE.
Children and Adult Services,Central/Other,Debtors,930024,Debtor-free nursing care,05-Nov-2014,2816948-2198576,633.66,LYONS COURT CARE HOME.
Children and Adult Services,Central/Other,Debtors,930024,Debtor-free nursing care,05-Nov-2014,2817000-2197977,"1,394.04",PARKLANDS NURSING HOME.
Children and Adult Services,Central/Other,Debtors,930024,Debtor-free nursing care,05-Nov-2014,2817015-2197757,"1,188.11",PREMIER CARE HOMES LTD.
Children and Adult Services,Central/Other,Debtors,930024,Debtor-free nursing care,05-Nov-2014,2817015-2198473,"1,188.11",PREMIER CARE HOMES LTD.
Children and Adult Services,Central/Other,Debtors,930024,Debtor-free nursing care,05-Nov-2014,2817017-2193712,610.44,RAYSON HOMES LTD.
Children and Adult Services,Central/Other,Debtors,930024,Debtor-free nursing care,05-Nov-2014,2817044-2194157,"1,742.55",ST ANDREWS MPS LTD.
Children and Adult Services,Central/Other,Debtors,930024,Debtor-free nursing care,05-Nov-2014,2817061-2195314,506.92,TAMARIS HEALTHCARE LTD.
Children and Adult Services,Central/Other,Debtors,930024,Debtor-free nursing care,05-Nov-2014,2817064-2197201,506.92,TAMARIS HEALTHCARE LTD.
Children and Adult Services,Central/Other,Debtors,930024,Debtor-free nursing care,05-Nov-2014,2817066-2197359,610.44,TAMARIS HEALTHCARE LTD.
Children and Adult Services,Central/Other,Debtors,930024,Debtor-free nursing care,05-Nov-2014,2817107-2194877,610.44,YODEN HALL NURSING HOME.
Children and Adult Services,Childrens Services,Supplies and Services,364353,Grants to Voluntary Organisations,05-Nov-2014,235830-CAS-09-2014-412,546.49,ACCENT NORTH.
Children and Adult Services,Childrens Services,Transfer Payments,515201,Social Services Clients,05-Nov-2014,235831-1469356H,"1,800.00",REDACTED - PAYMENT TO INDIVIDUAL
Children and Adult Services,Childrens Services,Third Party Payments,440015,Other Third Party Payments,05-Nov-2014,235938-MH/JG/TAY0011/1,"1,150.96",POWER SCOTT SOLICITORS.
Children and Adult Services,Childrens Services,Transfer Payments,515201,Social Services Clients,05-Nov-2014,2815531-1468665H,"1,232.00",REDACTED - PAYMENT TO INDIVIDUAL
Children and Adult Services,Childrens Services,Transfer Payments,515201,Social Services Clients,05-Nov-2014,2815560-1467934H,"1,485.00",REDACTED - PAYMENT TO INDIVIDUAL
Children and Adult Services,Childrens Services,Transfer Payments,515201,Social Services Clients,05-Nov-2014,2815565-1469361H,"2,048.00",REDACTED - PAYMENT TO INDIVIDUAL
Children and Adult Services,Childrens Services,Transfer Payments,515201,Social Services Clients,05-Nov-2014,2815569-1468085H,978.00,REDACTED - PAYMENT TO INDIVIDUAL
Children and Adult Services,Childrens Services,Transfer Payments,515201,Social Services Clients,05-Nov-2014,2815586-1469666H,630.00,REDACTED - PAYMENT TO INDIVIDUAL
Children and Adult Services,Childrens Services,Transfer Payments,515201,Social Services Clients,05-Nov-2014,2815592-1470203H,720.00,REDACTED - PAYMENT TO INDIVIDUAL
Children and Adult Services,Childrens Services,Transfer Payments,515201,Social Services Clients,05-Nov-2014,2815593-1470336H,900.00,REDACTED - PAYMENT TO INDIVIDUAL
Children and Adult Services,Childrens Services,Transfer Payments,515201,Social Services Clients,05-Nov-2014,2815636-1469189H,572.00,REDACTED - PAYMENT TO INDIVIDUAL
Children and Adult Services,Childrens Services,Transfer Payments,515201,Social Services Clients,05-Nov-2014,2815638-1468683H,572.00,REDACTED - PAYMENT TO INDIVIDUAL
Children and Adult Services,Childrens Services,Transfer Payments,515201,Social Services Clients,05-Nov-2014,2815696-1470627H,630.00,REDACTED - PAYMENT TO INDIVIDUAL
Children and Adult Services,Childrens Services,Transfer Payments,515201,Social Services Clients,05-Nov-2014,2815716-1468126H,720.00,REDACTED - PAYMENT TO INDIVIDUAL
Children and Adult Services,Childrens Services,Transfer Payments,515201,Social Services Clients,05-Nov-2014,2815768-1468177H,"1,260.00",REDACTED - PAYMENT TO INDIVIDUAL
Children and Adult Services,Childrens Services,Transfer Payments,515201,Social Services Clients,05-Nov-2014,2815783-1469258H,664.00,REDACTED - PAYMENT TO INDIVIDUAL
Children and Adult Services,Childrens Services,Transfer Payments,515201,Social Services Clients,05-Nov-2014,2815812-1468021H,960.00,REDACTED - PAYMENT TO INDIVIDUAL
Children and Adult Services,Childrens Services,Transfer Payments,515201,Social Services Clients,05-Nov-2014,2815818-1468324H,525.00,REDACTED - PAYMENT TO INDIVIDUAL
Children and Adult Services,Childrens Services,Transfer Payments,515201,Social Services Clients,05-Nov-2014,2815835-1470676H,"4,200.00",REDACTED - PAYMENT TO INDIVIDUAL
Children and Adult Services,Childrens Services,Transfer Payments,515201,Social Services Clients,05-Nov-2014,2815860-1469601H,"7,418.50",REDACTED - PAYMENT TO INDIVIDUAL
Children and Adult Services,Childrens Services,Transfer Payments,515201,Social Services Clients,05-Nov-2014,2815875-1468117H,540.00,REDACTED - PAYMENT TO INDIVIDUAL
Children and Adult Services,Childrens Services,Transfer Payments,515201,Social Services Clients,05-Nov-2014,2815899-1468181H,960.00,REDACTED - PAYMENT TO INDIVIDUAL
Children and Adult Services,Childrens Services,Transfer Payments,515201,Social Services Clients,05-Nov-2014,2815971-1467308H,510.00,REDACTED - PAYMENT TO INDIVIDUAL
Children and Adult Services,Childrens Services,Transfer Payments,515201,Social Services Clients,05-Nov-2014,2815971-1467309H,996.00,REDACTED - PAYMENT TO INDIVIDUAL
Children and Adult Services,Childrens Services,Transfer Payments,515201,Social Services Clients,05-Nov-2014,2816008-1467119H,510.00,REDACTED - PAYMENT TO INDIVIDUAL
Children and Adult Services,Childrens Services,Transfer Payments,515201,Social Services Clients,05-Nov-2014,2816008-1467276H,510.00,REDACTED - PAYMENT TO INDIVIDUAL
Children and Adult Services,Childrens Services,Transfer Payments,515201,Social Services Clients,05-Nov-2014,2816012-1468752H,736.00,REDACTED - PAYMENT TO INDIVIDUAL
Children and Adult Services,Childrens Services,Transfer Payments,515201,Social Services Clients,05-Nov-2014,2816037-1469314H,"1,200.00",REDACTED - PAYMENT TO INDIVIDUAL
Children and Adult Services,Childrens Services,Transfer Payments,515201,Social Services Clients,05-Nov-2014,2816039-1468333H,"1,920.00",REDACTED - PAYMENT TO INDIVIDUAL
Children and Adult Services,Childrens Services,Transfer Payments,515201,Social Services Clients,05-Nov-2014,2816064-1468870H,"5,340.00",REDACTED - PAYMENT TO INDIVIDUAL
Children and Adult Services,Childrens Services,Transfer Payments,515201,Social Services Clients,05-Nov-2014,2816071-1469907H,958.00,REDACTED - PAYMENT TO INDIVIDUAL
Children and Adult Services,Childrens Services,Third Party Payments,440062,Other Third Party Payments,05-Nov-2014,2816089-1467310H,"1,314.79",COMFORT CALL LTD.
Children and Adult Services,Childrens Services,Third Party Payments,440062,Other Third Party Payments,05-Nov-2014,2816089-1467670H,904.80,COMFORT CALL LTD.
Children and Adult Services,Childrens Services,Third Party Payments,440062,Other Third Party Payments,05-Nov-2014,2816089-1467797H,"1,702.16",COMFORT CALL LTD.
Children and Adult Services,Childrens Services,Third Party Payments,440062,Other Third Party Payments,05-Nov-2014,2816089-1470622H,655.98,COMFORT CALL LTD.
Children and Adult Services,Childrens Services,Third Party Payments,440062,Other Third Party Payments,05-Nov-2014,2816097-1468237H,972.66,DALE CARE LTD.
Children and Adult Services,Childrens Services,Third Party Payments,440062,Other Third Party Payments,05-Nov-2014,2816097-1468780H,791.70,DALE CARE LTD.
Children and Adult Services,Childrens Services,Third Party Payments,440062,Other Third Party Payments,05-Nov-2014,2816097-1469099H,"1,176.24",DALE CARE LTD.
Children and Adult Services,Childrens Services,Third Party Payments,440062,Other Third Party Payments,05-Nov-2014,2816097-1470349H,916.11,DALE CARE LTD.
Children and Adult Services,Childrens Services,Third Party Payments,440062,Other Third Party Payments,05-Nov-2014,2816097-1470815H,542.88,DALE CARE LTD.
Children and Adult Services,Childrens Services,Transfer Payments,515202,Social Services Clients,05-Nov-2014,2816104-1468441H,664.00,REDACTED - PAYMENT TO INDIVIDUAL
Children and Adult Services,Childrens Services,Transfer Payments,515201,Social Services Clients,05-Nov-2014,2816113-1468134H,784.00,REDACTED - PAYMENT TO INDIVIDUAL
Children and Adult Services,Childrens Services,Transfer Payments,515201,Social Services Clients,05-Nov-2014,2816192-1467826H,"1,144.00",REDACTED - PAYMENT TO INDIVIDUAL
Children and Adult Services,Childrens Services,Transfer Payments,515201,Social Services Clients,05-Nov-2014,2816226-1469737H,"1,656.00",REDACTED - PAYMENT TO INDIVIDUAL
Children and Adult Services,Childrens Services,Transfer Payments,515201,Social Services Clients,05-Nov-2014,2816265-1470038H,600.00,REDACTED - PAYMENT TO INDIVIDUAL
Children and Adult Services,Childrens Services,Transfer Payments,515201,Social Services Clients,05-Nov-2014,2816268-1468594H,600.00,REDACTED - PAYMENT TO INDIVIDUAL
Children and Adult Services,Childrens Services,Transfer Payments,515201,Social Services Clients,05-Nov-2014,2816275-1469304H,600.00,REDACTED - PAYMENT TO INDIVIDUAL
Children and Adult Services,Childrens Services,Transfer Payments,515201,Social Services Clients,05-Nov-2014,2816355-1468002H,600.00,REDACTED - PAYMENT TO INDIVIDUAL
Children and Adult Services,Childrens Services,Transfer Payments,515201,Social Services Clients,05-Nov-2014,2816364-1469334H,630.00,REDACTED - PAYMENT TO INDIVIDUAL
Children and Adult Services,Childrens Services,Transfer Payments,515201,Social Services Clients,05-Nov-2014,2816384-1468006H,555.00,REDACTED - PAYMENT TO INDIVIDUAL
Children and Adult Services,Childrens Services,Transfer Payments,515201,Social Services Clients,05-Nov-2014,2816413-1469622H,"1,920.00",REDACTED - PAYMENT TO INDIVIDUAL
Children and Adult Services,Childrens Services,Transfer Payments,515201,Social Services Clients,05-Nov-2014,2816496-1468880H,"1,800.00",REDACTED - PAYMENT TO INDIVIDUAL
Children and Adult Services,Childrens Services,Transfer Payments,515201,Social Services Clients,05-Nov-2014,2816538-1468236H,"1,038.00",REDACTED - PAYMENT TO INDIVIDUAL
Children and Adult Services,Childrens Services,Transfer Payments,515202,Social Services Clients,05-Nov-2014,2816563-1467883H,918.00,REDACTED - PAYMENT TO INDIVIDUAL
Children and Adult Services,Childrens Services,Transfer Payments,515201,Social Services Clients,05-Nov-2014,2816565-1467485H,"1,338.00",REDACTED - PAYMENT TO INDIVIDUAL
Children and Adult Services,Childrens Services,Transfer Payments,515201,Social Services Clients,05-Nov-2014,2816617-1468268H,"3,132.00",REDACTED - PAYMENT TO INDIVIDUAL
Children and Adult Services,Childrens Services,Transfer Payments,515201,Social Services Clients,05-Nov-2014,2816660-1468720H,542.00,REDACTED - PAYMENT TO INDIVIDUAL
Children and Adult Services,Childrens Services,Transfer Payments,515201,Social Services Clients,05-Nov-2014,2816693-1468678H,600.00,REDACTED - PAYMENT TO INDIVIDUAL
Children and Adult Services,Childrens Services,Transfer Payments,515201,Social Services Clients,05-Nov-2014,2816711-1468211H,632.00,REDACTED - PAYMENT TO INDIVIDUAL
Children and Adult Services,Childrens Services,Third Party Payments,440062,Other Third Party Payments,05-Nov-2014,2816722-1467963H,825.63,SOCIAL RESOURCE CENTRE LTD.
Children and Adult Services,Childrens Services,Transfer Payments,515201,Social Services Clients,05-Nov-2014,2816803-1467738H,692.00,REDACTED - PAYMENT TO INDIVIDUAL
Children and Adult Services,Childrens Services,Third Party Payments,425040,Rendered by Voluntary Organisations,05-Nov-2014,2816997-03332,"3,000.00",ORCHARD CARE (NORTH EAST) LTD.
Children and Adult Services,Childrens Services,Third Party Payments,425040,Rendered by Voluntary Organisations,05-Nov-2014,2817045-1150992,"3,100.00",ST CUTHBERTS CARE.
Children and Adult Services,Childrens Services,Supplies and Services,364352,Grants to Voluntary Organisations,05-Nov-2014,2817142-AHS00396,915.88,AUCKLAND HOME SOLUTIONS CIC.
Children and Adult Services,Childrens Services,Supplies and Services,364352,Grants to Voluntary Organisations,05-Nov-2014,2817142-AHS00416,915.88,AUCKLAND HOME SOLUTIONS CIC.
Children and Adult Services,Childrens Services,Supplies and Services,364352,Grants to Voluntary Organisations,05-Nov-2014,2817142-AHS00462,919.88,AUCKLAND HOME SOLUTIONS CIC.
Children and Adult Services,Childrens Services,Employees,080025,Agency Staff,05-Nov-2014,2817209-541858,"132,260.26",COMENSURA LTD.
Children and Adult Services,Childrens Services,Transport,230008,Contract Hire,05-Nov-2014,2817332-12,828.00,LUMLEY TAXIS.
Children and Adult Services,Childrens Services,Supplies and Services,364352,Grants to Voluntary Organisations,05-Nov-2014,2817379-59/HC/14,739.00,NORCARE LTD.
Children and Adult Services,Childrens Services,Supplies and Services,364352,Grants to Voluntary Organisations,05-Nov-2014,2817379-62/HC/14,739.00,NORCARE LTD.
Children and Adult Services,Childrens Services,Third Party Payments,486021,Service Level Agreements,05-Nov-2014,2817414-3070,"1,178.21",REACH OUT CARE SUPPORT SERVICES LTD.
Children and Adult Services,Childrens Services,Supplies and Services,364353,Grants to Voluntary Organisations,05-Nov-2014,2817459-219,933.04,STONHAM HOUSING ASSOCIATION LTD.
Children and Adult Services,Childrens Services,Third Party Payments,425040,Rendered by Voluntary Organisations,05-Nov-2014,2817465-23308,582.86,TEAM FOSTERING.
Children and Adult Services,Childrens Services,Supplies and Services,336005,Advertising,05-Nov-2014,2817493-ORD-1588,"1,950.00",VP MEDIA LTD.
Children and Adult Services,Commissioning inc Supporting People,Third Party Payments,479111,Purchase of Care,05-Nov-2014,235858,"3,244.95",DERWENTSIDE MIND.
Children and Adult Services,Commissioning inc Supporting People,Transfer Payments,515210,Social Services Clients,05-Nov-2014,2815601-1470473H,"1,181.60",REDACTED - PAYMENT TO INDIVIDUAL
Children and Adult Services,Commissioning inc Supporting People,Transfer Payments,515210,Social Services Clients,05-Nov-2014,2815773-1470554H,"1,962.00",REDACTED - PAYMENT TO INDIVIDUAL
Children and Adult Services,Commissioning inc Supporting People,Transfer Payments,515210,Social Services Clients,05-Nov-2014,2815786-1468343H,"2,311.48",REDACTED - PAYMENT TO INDIVIDUAL
Children and Adult Services,Commissioning inc Supporting People,Transfer Payments,515210,Social Services Clients,05-Nov-2014,2815804-1464994H,"6,855.40",REDACTED - PAYMENT TO INDIVIDUAL
Children and Adult Services,Commissioning inc Supporting People,Transfer Payments,515210,Social Services Clients,05-Nov-2014,2815905-1468862H,776.28,REDACTED - PAYMENT TO INDIVIDUAL
Children and Adult Services,Commissioning inc Supporting People,Transfer Payments,515210,Social Services Clients,05-Nov-2014,2816015-1467887H,"4,337.38",REDACTED - PAYMENT TO INDIVIDUAL
Children and Adult Services,Commissioning inc Supporting People,Third Party Payments,472113,Purchase of Care,05-Nov-2014,2816097-1464611H,991.72,DALE CARE LTD.
Children and Adult Services,Commissioning inc Supporting People,Third Party Payments,472113,Purchase of Care,05-Nov-2014,2816097-1468145H,696.32,DALE CARE LTD.
Children and Adult Services,Commissioning inc Supporting People,Transfer Payments,515210,Social Services Clients,05-Nov-2014,2816391-1466027H,"5,266.40",REDACTED - PAYMENT TO INDIVIDUAL
Children and Adult Services,Commissioning inc Supporting People,Transfer Payments,515210,Social Services Clients,05-Nov-2014,2816486-1467203H,"7,098.00",REDACTED - PAYMENT TO INDIVIDUAL
Dedicated Schools Grant,Dedicated Schools Grant,Third Party Payments,410037,Rendered by Other Local Authorities,05-Nov-2014,2817274-0040131724,"4,882.93",HARTLEPOOL BOROUGH COUNCIL.
Dedicated Schools Grant,Dedicated Schools Grant,Third Party Payments,410037,Rendered by Other Local Authorities,05-Nov-2014,2817274-0040133611,"26,920.00",HARTLEPOOL BOROUGH COUNCIL.
Dedicated Schools Grant,Dedicated Schools Grant,Transport,230010,Contract Hire,05-Nov-2014,2817286-PRU028,"1,280.00",IAN SOULSBY.
Dedicated Schools Grant,Dedicated Schools Grant,Transport,230010,Contract Hire,05-Nov-2014,2817312-00557,990.00,KENNAS CABS.
Dedicated Schools Grant,Dedicated Schools Grant,Transport,230010,Contract Hire,05-Nov-2014,2817320-1028,"1,280.00",LD TAXIS.
Dedicated Schools Grant,Dedicated Schools Grant,Supplies and Services,304259,Equipment and Materials,05-Nov-2014,2817333-3522,"1,130.00",LYNCH HEALTHCARE LTD.
Dedicated Schools Grant,Dedicated Schools Grant,Transport,230010,Contract Hire,05-Nov-2014,2817340-101404,"2,140.00",MARK & JOHN CHISHOLM T/A (CHEVRON).
Dedicated Schools Grant,Dedicated Schools Grant,Transport,230010,Contract Hire,05-Nov-2014,2817370-41,"1,040.00",MRS ANNE BOWMAN T/A ANNES CARS.
Dedicated Schools Grant,Dedicated Schools Grant,Transport,230010,Contract Hire,05-Nov-2014,2817478-TS14S-24,928.00,TOP STAR TRAVEL.
Children and Adult Services,Education,Transport,230008,Contract Hire,05-Nov-2014,235890-02/014,800.00,MICHAEL PUNTON.
Children and Adult Services,Education,Transport,230008,Contract Hire,05-Nov-2014,2817110-101402,"1,680.00",24/7 TAXI SERVICES LTD.
Children and Adult Services,Education,Transport,230008,Contract Hire,05-Nov-2014,2817110-101403,"1,314.00",24/7 TAXI SERVICES LTD.
Children and Adult Services,Education,Transport,230008,Contract Hire,05-Nov-2014,2817110-101404,810.00,24/7 TAXI SERVICES LTD.
Children and Adult Services,Education,Transport,230008,Contract Hire,05-Nov-2014,2817110-101405,780.00,24/7 TAXI SERVICES LTD.
Children and Adult Services,Education,Transport,230006,Contract Hire,05-Nov-2014,2817110-101408,885.00,24/7 TAXI SERVICES LTD.
Children and Adult Services,Education,Transport,230008,Contract Hire,05-Nov-2014,2817110-101409,"1,056.00",24/7 TAXI SERVICES LTD.
Children and Adult Services,Education,Transport,230008,Contract Hire,05-Nov-2014,2817110-101410,"1,483.50",24/7 TAXI SERVICES LTD.
Children and Adult Services,Education,Transport,230007,Contract Hire,05-Nov-2014,2817114-Y11/SM,630.00,AABAT TAXIS.
Children and Adult Services,Education,Transport,230008,Contract Hire,05-Nov-2014,2817114-Y17/AC,651.00,AABAT TAXIS.
Children and Adult Services,Education,Transport,230007,Contract Hire,05-Nov-2014,2817114-Y2/SA,540.00,AABAT TAXIS.
Children and Adult Services,Education,Transport,230007,Contract Hire,05-Nov-2014,2817115-37,986.00,AALPHA TAXIS.
Children and Adult Services,Education,Transport,230008,Contract Hire,05-Nov-2014,2817116-0213,"1,656.00",ABC & OUSTON CABS.
Children and Adult Services,Education,Transport,230008,Contract Hire,05-Nov-2014,2817116-0214,"1,026.00",ABC & OUSTON CABS.
Children and Adult Services,Education,Transport,230008,Contract Hire,05-Nov-2014,2817116-0216,"1,908.00",ABC & OUSTON CABS.
Children and Adult Services,Education,Transport,230006,Contract Hire,05-Nov-2014,2817117-F613OCT14,"1,102.00",ADAM BARNES T/A PAUL`S TAXIS.
Children and Adult Services,Education,Transport,230008,Contract Hire,05-Nov-2014,2817122-0296,900.00,AJS PRIVATE HIRE.
Children and Adult Services,Education,Transport,230006,Contract Hire,05-Nov-2014,2817124-388027,646.00,MR A CHAPMAN T/A ALAN`S TAXIS CHESTER LE ST.
Children and Adult Services,Education,Transport,230008,Contract Hire,05-Nov-2014,2817124-388127,700.00,MR A CHAPMAN T/A ALAN`S TAXIS CHESTER LE ST.
Children and Adult Services,Education,Transport,230008,Contract Hire,05-Nov-2014,2817124-388227,"1,341.00",MR A CHAPMAN T/A ALAN`S TAXIS CHESTER LE ST.
Children and Adult Services,Education,Transport,230007,Contract Hire,05-Nov-2014,2817141-03197,736.00,ATLAS TAXIS CONSETT.
Children and Adult Services,Education,Transport,230007,Contract Hire,05-Nov-2014,2817141-03199,792.00,ATLAS TAXIS CONSETT.
Children and Adult Services,Education,Transport,230006,Contract Hire,05-Nov-2014,2817141-03200,"1,307.00",ATLAS TAXIS CONSETT.
Children and Adult Services,Education,Transport,230006,Contract Hire,05-Nov-2014,2817141-03201,950.00,ATLAS TAXIS CONSETT.
Children and Adult Services,Education,Transport,230006,Contract Hire,05-Nov-2014,2817145-F538/2OCT14,720.00,B&C YELLOWCAB TAXI`S.
Children and Adult Services,Education,Transport,230008,Contract Hire,05-Nov-2014,2817149-9OCTOBER14,880.00,BEELINE PRIVATE HIRE.
Children and Adult Services,Education,Transport,230008,Contract Hire,05-Nov-2014,2817154-107,"1,088.00",BG TAXIS.
Children and Adult Services,Education,Transport,230008,Contract Hire,05-Nov-2014,2817175-BZ00121,664.00,BREZ`S TAXIS.
Children and Adult Services,Education,Transport,230008,Contract Hire,05-Nov-2014,2817175-BZ00122,"1,404.00",BREZ`S TAXIS.
Children and Adult Services,Education,Transport,230008,Contract Hire,05-Nov-2014,2817183-BIL0049,"1,280.00",CA MUSGROVE.
Children and Adult Services,Education,Third Party Payments,440999,Other Third Party Payments,05-Nov-2014,2817190-09/10/2014,"5,831.00",CDC ENTERPRISE AGENCY.
Children and Adult Services,Education,Transport,230008,Contract Hire,05-Nov-2014,2817195-2-2014,910.00,CHAPMAN TRAVEL.
Children and Adult Services,Education,Transport,230008,Contract Hire,05-Nov-2014,2817200-18/2014,"1,680.00",CHRIS`S TAXI.
Children and Adult Services,Education,Transport,230007,Contract Hire,05-Nov-2014,2817203-44600,"1,190.00",CJ GRIERSON.
Children and Adult Services,Education,Transport,230007,Contract Hire,05-Nov-2014,2817203-44601,"4,080.00",CJ GRIERSON.
Children and Adult Services,Education,Transport,230008,Contract Hire,05-Nov-2014,2817207-14-SC11,"1,200.00",CLUBMAN CABS.
Children and Adult Services,Education,Transport,230007,Contract Hire,05-Nov-2014,2817208-C/8405,"2,354.50",COCHRANES T/A KELVIN TRAVEL.
Children and Adult Services,Education,Transport,230007,Contract Hire,05-Nov-2014,2817208-C/8406,"4,216.00",COCHRANES T/A KELVIN TRAVEL.
Children and Adult Services,Education,Employees,080025,Agency Staff,05-Nov-2014,2817209-541634,"124,840.81",COMENSURA LTD.
Children and Adult Services,Education,Transport,230008,Contract Hire,05-Nov-2014,2817210-414,"1,440.00",CONNORS MINI BUSES.
Children and Adult Services,Education,Transport,230008,Contract Hire,05-Nov-2014,2817210-512,"1,376.00",CONNORS MINI BUSES.
Children and Adult Services,Education,Transport,230008,Contract Hire,05-Nov-2014,2817210-513,"1,452.00",CONNORS MINI BUSES.
Children and Adult Services,Education,Transport,230008,Contract Hire,05-Nov-2014,2817216-4,756.00,CUTHBERT CABS.
Children and Adult Services,Education,Transport,230008,Contract Hire,05-Nov-2014,2817218-51,"1,080.00",D CROOK T/A CK TAXIS.
Children and Adult Services,Education,Transport,230008,Contract Hire,05-Nov-2014,2817220-DI201410,792.00,D&I TAXIS.
Children and Adult Services,Education,Transport,230008,Contract Hire,05-Nov-2014,2817221-083,"1,008.00",DA TRAVEL.
Children and Adult Services,Education,Transport,230008,Contract Hire,05-Nov-2014,2817221-084,841.50,DA TRAVEL.
Children and Adult Services,Education,Transport,230008,Contract Hire,05-Nov-2014,2817221-085,"1,350.00",DA TRAVEL.
Children and Adult Services,Education,Transport,230008,Contract Hire,05-Nov-2014,2817221-087,"1,206.00",DA TRAVEL.
Children and Adult Services,Education,Transport,230006,Contract Hire,05-Nov-2014,2817221-088,979.00,DA TRAVEL.
Children and Adult Services,Education,Transport,230008,Contract Hire,05-Nov-2014,2817222-ITSOCT1401,"1,800.00",DALELINK PRIVATE HIRE.
Children and Adult Services,Education,Transport,230006,Contract Hire,05-Nov-2014,2817237-CONTRACTF579,550.40,DUNCAN G CUMMINGS T/A DC TAXIS.
Children and Adult Services,Education,Transport,230006,Contract Hire,05-Nov-2014,2817257-002,712.00,GAIL MADDISON T/A CENTRAL TAXIS.
Children and Adult Services,Education,Transport,230008,Contract Hire,05-Nov-2014,2817285-13,"1,080.00",IAN SHEPLEY T/A SHEPPA`S TAXIS.
Children and Adult Services,Education,Transport,230008,Contract Hire,05-Nov-2014,2817290-826,"1,404.00",J YOUNG T/A VIP TAXIS.
Children and Adult Services,Education,Transport,230008,Contract Hire,05-Nov-2014,2817290-832,950.00,J YOUNG T/A VIP TAXIS.
Children and Adult Services,Education,Transport,230008,Contract Hire,05-Nov-2014,2817291-0001OCTOBER14,990.00,JA SHORT.
Children and Adult Services,Education,Transport,230008,Contract Hire,05-Nov-2014,2817293-602,"1,280.00",JDS PRIVATE HIRE DURHAM.
Children and Adult Services,Education,Transport,230008,Contract Hire,05-Nov-2014,2817293-606,884.00,JDS PRIVATE HIRE DURHAM.
Children and Adult Services,Education,Supplies and Services,384199,Miscellaneous Expenses,05-Nov-2014,2817295-483,869.20,JIGSAW THERAPY SERVICES.
Children and Adult Services,Education,Supplies and Services,384199,Miscellaneous Expenses,05-Nov-2014,2817295-510,671.40,JIGSAW THERAPY SERVICES.
Children and Adult Services,Education,Transport,230008,Contract Hire,05-Nov-2014,2817296-24/10/14A,"1,800.00",JL EBDON.
Children and Adult Services,Education,Transport,230008,Contract Hire,05-Nov-2014,2817301-71,"1,912.00",JOHNS TAXIS (CHESTER LE STREET).
Children and Adult Services,Education,Transport,230007,Contract Hire,05-Nov-2014,2817303-SJPS8,"1,116.00",JOVIAL PRIVATE HIRE.
Children and Adult Services,Education,Transport,230007,Contract Hire,05-Nov-2014,2817309-1186OCT14,990.00,K & R TAXIS.
Children and Adult Services,Education,Transport,230008,Contract Hire,05-Nov-2014,2817311-1530,"1,440.00",KEN CHAMBERS T/A SHILDON TAXIS.
Children and Adult Services,Education,Transport,230008,Contract Hire,05-Nov-2014,2817311-1531,"2,520.00",KEN CHAMBERS T/A SHILDON TAXIS.
Children and Adult Services,Education,Transport,230008,Contract Hire,05-Nov-2014,2817317-24OCTOBER2014,900.00,KT TAXIS.
Children and Adult Services,Education,Transport,230006,Contract Hire,05-Nov-2014,2817320-1029,900.00,LD TAXIS.
Children and Adult Services,Education,Transport,230008,Contract Hire,05-Nov-2014,2817329-1919,720.00,LOCAL TRANSPORT LTD.
Children and Adult Services,Education,Transport,230008,Contract Hire,05-Nov-2014,2817338-2,"1,260.00",MALCOLM CARR T/A CARLY CABS.
Children and Adult Services,Education,Transport,230008,Contract Hire,05-Nov-2014,2817340-101401,"2,160.00",MARK & JOHN CHISHOLM T/A (CHEVRON).
Children and Adult Services,Education,Transport,230008,Contract Hire,05-Nov-2014,2817340-101403,"1,260.00",MARK & JOHN CHISHOLM T/A (CHEVRON).
Children and Adult Services,Education,Transport,230008,Contract Hire,05-Nov-2014,2817340-101405,"1,100.00",MARK & JOHN CHISHOLM T/A (CHEVRON).
Children and Adult Services,Education,Transport,230008,Contract Hire,05-Nov-2014,2817341-381014,"1,088.00",MARK MUSGROVE T/A MARKS TAXIS.
Children and Adult Services,Education,Transport,230008,Contract Hire,05-Nov-2014,2817341-481014,828.00,MARK MUSGROVE T/A MARKS TAXIS.
Children and Adult Services,Education,Transport,230008,Contract Hire,05-Nov-2014,2817346-MCD1762,"1,782.00",MCDONALD TRAVEL.
Children and Adult Services,Education,Transport,230008,Contract Hire,05-Nov-2014,2817352-00630,"1,620.00",MICHAELS TRAVEL.
Children and Adult Services,Education,Transport,230008,Contract Hire,05-Nov-2014,2817360-WAL1/0-14,"2,097.90",MR CT WALKER T/A COLIN`S TAXIS.
Children and Adult Services,Education,Transport,230007,Contract Hire,05-Nov-2014,2817362-OCTOBER2014,750.00,MR DAVID KING YIU LI T/A ABA LOCAL TAXIS LTD.
Children and Adult Services,Education,Transport,230008,Contract Hire,05-Nov-2014,2817363-024A,"1,544.40",MR GN ROBBINS T/A GNR MINIBUS HIRE.
Children and Adult Services,Education,Transport,230008,Contract Hire,05-Nov-2014,2817366-NO2A,"1,312.00",MR RAYMOND RENWICK.
Children and Adult Services,Education,Transport,230008,Contract Hire,05-Nov-2014,2817366-NO2B,882.00,MR RAYMOND RENWICK.
Children and Adult Services,Education,Transport,230009,Contract Hire,05-Nov-2014,2817367-412,714.00,MR S BALL T/A ABBIE`S TAXIS..
Children and Adult Services,Education,Transport,230008,Contract Hire,05-Nov-2014,2817369-AA289,"2,430.00",MR T GUNN.
Children and Adult Services,Education,Transport,230008,Contract Hire,05-Nov-2014,2817397-5794,"1,431.00",OVERLANDER LTD.
Children and Adult Services,Education,Transport,230008,Contract Hire,05-Nov-2014,2817397-5795,"1,575.00",OVERLANDER LTD.
Children and Adult Services,Education,Transport,230008,Contract Hire,05-Nov-2014,2817401-SC-021,"1,440.00",PAUL BURRELL T/A PAUL BURRELL TAXIS.
Children and Adult Services,Education,Transport,230008,Contract Hire,05-Nov-2014,2817402-DCC14,"1,280.00",PAUL`S TAXIS..
Children and Adult Services,Education,Transport,230008,Contract Hire,05-Nov-2014,2817403-W135OCT14,900.00,PEPPA`S CABS.
Children and Adult Services,Education,Transport,230008,Contract Hire,05-Nov-2014,2817404-0335,792.00,PETER`S PRIVATE HIRE/PETER BEST.
Children and Adult Services,Education,Transport,230008,Contract Hire,05-Nov-2014,2817404-0337,576.00,PETER`S PRIVATE HIRE/PETER BEST.
Children and Adult Services,Education,Transport,230007,Contract Hire,05-Nov-2014,2817408-278,"1,182.00",PREMIER PRIVATE HIRE.
Children and Adult Services,Education,Transport,230008,Contract Hire,05-Nov-2014,2817417-072,"1,170.00",REDZ PRIVATE HIRE.
Children and Adult Services,Education,Transport,230008,Contract Hire,05-Nov-2014,2817424-012,"1,275.00",RONS TAXI.
Children and Adult Services,Education,Transport,230008,Contract Hire,05-Nov-2014,2817430-69,"1,720.00",SAZ CABS.
Children and Adult Services,Education,Transport,230008,Contract Hire,05-Nov-2014,2817438-015,"1,495.00",SHOEY`S TAXIS.
Children and Adult Services,Education,Transport,230008,Contract Hire,05-Nov-2014,2817439-71529,"1,320.00",SHOTTON PRIVATE HIRE.
Children and Adult Services,Education,Transport,230008,Contract Hire,05-Nov-2014,2817439-71530,"1,560.00",SHOTTON PRIVATE HIRE.
Children and Adult Services,Education,Transport,230008,Contract Hire,05-Nov-2014,2817439-71534,"1,620.00",SHOTTON PRIVATE HIRE.
Children and Adult Services,Education,Transport,230006,Contract Hire,05-Nov-2014,2817441-F536-10-14,"1,440.00",SIMON ELLIFF.
Children and Adult Services,Education,Transport,230008,Contract Hire,05-Nov-2014,2817441-S027-10-14,"1,224.00",SIMON ELLIFF.
Children and Adult Services,Education,Transport,230008,Contract Hire,05-Nov-2014,2817441-W102-10-14,972.00,SIMON ELLIFF.
Children and Adult Services,Education,Transport,230008,Contract Hire,05-Nov-2014,2817443-084A,"1,170.00",SJ MACKENZIE T/A SCOTTS TAXIS.
Children and Adult Services,Education,Transport,230008,Contract Hire,05-Nov-2014,2817457-00028,810.00,STEVES TAXIS.
Children and Adult Services,Education,Transport,230006,Contract Hire,05-Nov-2014,2817463-DCC/2014/41,916.00,TAYLOR`S TAXIS.
Children and Adult Services,Education,Supplies and Services,324117,Provisions,05-Nov-2014,2817464-9410835507,727.90,TCHIBO COFFEE INTERNATIONAL LTD.
Children and Adult Services,Education,Supplies and Services,324117,Provisions,05-Nov-2014,2817464-9410841953,727.90,TCHIBO COFFEE INTERNATIONAL LTD.
Children and Adult Services,Education,Supplies and Services,324117,Provisions,05-Nov-2014,2817464-CREDITTAKENTWICE,731.90,TCHIBO COFFEE INTERNATIONAL LTD.
Children and Adult Services,Education,Transport,230008,Contract Hire,05-Nov-2014,2817473-137,"1,280.00",THE TAXI COMPANY (MURTON) LTD.
Children and Adult Services,Education,Transport,230007,Contract Hire,05-Nov-2014,2817476-2414,"1,242.00",TM TRAVEL.
Children and Adult Services,Education,Transport,230007,Contract Hire,05-Nov-2014,2817482-4914,612.00,TRANSPORT.ADVENTURE.XI.
Children and Adult Services,Education,Transport,230009,Contract Hire,05-Nov-2014,2817482-5014,684.00,TRANSPORT.ADVENTURE.XI.
Children and Adult Services,Education,Transport,230008,Contract Hire,05-Nov-2014,2817483-014,756.00,TRIDENT TAXIS.
Children and Adult Services,Education,Supplies and Services,338035,Services,05-Nov-2014,2817484-1-438071047,"1,652.88",TRINITY COLLEGE LONDON.
Children and Adult Services,Education,Transport,230008,Contract Hire,05-Nov-2014,2817496-000790,"1,519.00",WATSON OF SPENNYMOOR.
Children and Adult Services,Education,Transport,230008,Contract Hire,05-Nov-2014,2817498-921,"1,620.00",WAYNE`S TAXIS.
Children and Adult Services,Education,Transport,230008,Contract Hire,05-Nov-2014,2817498-922,"1,800.00",WAYNE`S TAXIS.
Children and Adult Services,Education,Transport,230008,Contract Hire,05-Nov-2014,2817498-923,"1,584.00",WAYNE`S TAXIS.
Children and Adult Services,Education,Transport,230006,Contract Hire,05-Nov-2014,2817500-5102,794.00,WEARDALE PRIVATE HIRE.
Children and Adult Services,Head of Adults,Supplies and Services,338099,Services,05-Nov-2014,235958,630.00,T H
Children and Adult Services,Head of Adults,Third Party Payments,474101,Purchase of Care,05-Nov-2014,235847-2196762,"2,694.00",CARELINE LIFESTYLES LTD.
Children and Adult Services,Head of Adults,Third Party Payments,470101,Purchase of Care,05-Nov-2014,235847-2196764,"2,500.00",CARELINE LIFESTYLES LTD.
Children and Adult Services,Head of Adults,Third Party Payments,470101,Purchase of Care,05-Nov-2014,235847-2196765,"2,016.00",CARELINE LIFESTYLES LTD.
Children and Adult Services,Head of Adults,Third Party Payments,478101,Purchase of Care,05-Nov-2014,235911-2195348,"1,301.00",REDACTED - PAYMENT TO INDIVIDUAL
Children and Adult Services,Head of Adults,Transfer Payments,515201,Social Services Clients,05-Nov-2014,2815529-1468267H,833.00,REDACTED - PAYMENT TO INDIVIDUAL
Children and Adult Services,Head of Adults,Third Party Payments,478101,Purchase of Care,05-Nov-2014,2815533-1464476H,"3,365.40",ACCEPT CARE LTD.
Children and Adult Services,Head of Adults,Third Party Payments,478101,Purchase of Care,05-Nov-2014,2815533-1465007H,"4,662.20",ACCEPT CARE LTD.
Children and Adult Services,Head of Adults,Third Party Payments,478101,Purchase of Care,05-Nov-2014,2815533-1465040H,"1,034.00",ACCEPT CARE LTD.
Children and Adult Services,Head of Adults,Third Party Payments,478101,Purchase of Care,05-Nov-2014,2815533-1465046H,"1,056.00",ACCEPT CARE LTD.
Children and Adult Services,Head of Adults,Third Party Payments,478101,Purchase of Care,05-Nov-2014,2815533-1465125H,"1,342.00",ACCEPT CARE LTD.
Children and Adult Services,Head of Adults,Third Party Payments,478101,Purchase of Care,05-Nov-2014,2815533-1465163H,"5,439.20",ACCEPT CARE LTD.
Children and Adult Services,Head of Adults,Third Party Payments,478101,Purchase of Care,05-Nov-2014,2815533-1465172H,"3,687.64",ACCEPT CARE LTD.
Children and Adult Services,Head of Adults,Third Party Payments,478101,Purchase of Care,05-Nov-2014,2815533-1465276H,616.00,ACCEPT CARE LTD.
Children and Adult Services,Head of Adults,Third Party Payments,478101,Purchase of Care,05-Nov-2014,2815533-1465688H,770.00,ACCEPT CARE LTD.
Children and Adult Services,Head of Adults,Third Party Payments,478101,Purchase of Care,05-Nov-2014,2815533-1465694H,"8,007.36",ACCEPT CARE LTD.
Children and Adult Services,Head of Adults,Third Party Payments,478101,Purchase of Care,05-Nov-2014,2815533-1465704H,"1,760.00",ACCEPT CARE LTD.
Children and Adult Services,Head of Adults,Third Party Payments,472101,Purchase of Care,05-Nov-2014,2815533-1465784H,"3,964.00",ACCEPT CARE LTD.
Children and Adult Services,Head of Adults,Third Party Payments,478101,Purchase of Care,05-Nov-2014,2815533-1465889H,"3,484.80",ACCEPT CARE LTD.
Children and Adult Services,Head of Adults,Third Party Payments,478101,Purchase of Care,05-Nov-2014,2815533-1465914H,"5,452.40",ACCEPT CARE LTD.
Children and Adult Services,Head of Adults,Third Party Payments,478101,Purchase of Care,05-Nov-2014,2815533-1465945H,"3,634.92",ACCEPT CARE LTD.
Children and Adult Services,Head of Adults,Third Party Payments,478101,Purchase of Care,05-Nov-2014,2815533-1466000H,"4,056.40",ACCEPT CARE LTD.
Children and Adult Services,Head of Adults,Third Party Payments,478101,Purchase of Care,05-Nov-2014,2815533-1466113H,"7,875.68",ACCEPT CARE LTD.
Children and Adult Services,Head of Adults,Third Party Payments,478101,Purchase of Care,05-Nov-2014,2815533-1466115H,"12,063.72",ACCEPT CARE LTD.
Children and Adult Services,Head of Adults,Third Party Payments,478101,Purchase of Care,05-Nov-2014,2815533-1466126H,"1,144.00",ACCEPT CARE LTD.
Children and Adult Services,Head of Adults,Third Party Payments,478101,Purchase of Care,05-Nov-2014,2815533-1466223H,"4,636.00",ACCEPT CARE LTD.
Children and Adult Services,Head of Adults,Third Party Payments,478101,Purchase of Care,05-Nov-2014,2815533-1466229H,"6,637.72",ACCEPT CARE LTD.
Children and Adult Services,Head of Adults,Third Party Payments,478101,Purchase of Care,05-Nov-2014,2815533-1466331H,"3,830.40",ACCEPT CARE LTD.
Children and Adult Services,Head of Adults,Third Party Payments,478101,Purchase of Care,05-Nov-2014,2815533-1466850H,"5,376.00",ACCEPT CARE LTD.
Children and Adult Services,Head of Adults,Third Party Payments,478101,Purchase of Care,05-Nov-2014,2815533-1467093H,756.00,ACCEPT CARE LTD.
Children and Adult Services,Head of Adults,Third Party Payments,478101,Purchase of Care,05-Nov-2014,2815533-1467096H,"1,012.00",ACCEPT CARE LTD.
Children and Adult Services,Head of Adults,Third Party Payments,478101,Purchase of Care,05-Nov-2014,2815533-1467414H,"7,006.44",ACCEPT CARE LTD.
Children and Adult Services,Head of Adults,Third Party Payments,478101,Purchase of Care,05-Nov-2014,2815533-1467595H,"4,767.56",ACCEPT CARE LTD.
Children and Adult Services,Head of Adults,Third Party Payments,478101,Purchase of Care,05-Nov-2014,2815533-1467665H,990.00,ACCEPT CARE LTD.
Children and Adult Services,Head of Adults,Third Party Payments,478101,Purchase of Care,05-Nov-2014,2815533-1468852H,660.00,ACCEPT CARE LTD.
Children and Adult Services,Head of Adults,Third Party Payments,478101,Purchase of Care,05-Nov-2014,2815533-1469538H,"1,034.00",ACCEPT CARE LTD.
Children and Adult Services,Head of Adults,Third Party Payments,478101,Purchase of Care,05-Nov-2014,2815533-1471157H,"4,984.00",ACCEPT CARE LTD.
Children and Adult Services,Head of Adults,Third Party Payments,478101,Purchase of Care,05-Nov-2014,2815533-1471162H,"2,545.14",ACCEPT CARE LTD.
Children and Adult Services,Head of Adults,Third Party Payments,478101,Purchase of Care,05-Nov-2014,2815533-1471165H,"9,452.90",ACCEPT CARE LTD.
Children and Adult Services,Head of Adults,Third Party Payments,478101,Purchase of Care,05-Nov-2014,2815533-1471166H,"5,571.24",ACCEPT CARE LTD.
Children and Adult Services,Head of Adults,Third Party Payments,472101,Purchase of Care,05-Nov-2014,2815533-1471167H,"6,269.21",ACCEPT CARE LTD.
Children and Adult Services,Head of Adults,Third Party Payments,478101,Purchase of Care,05-Nov-2014,2815533-1471168H,"3,761.04",ACCEPT CARE LTD.
Children and Adult Services,Head of Adults,Third Party Payments,478101,Purchase of Care,05-Nov-2014,2815533-1471173H,"8,665.13",ACCEPT CARE LTD.
Children and Adult Services,Head of Adults,Third Party Payments,470101,Purchase of Care,05-Nov-2014,2815533-1471174H,"2,976.44",ACCEPT CARE LTD.
Children and Adult Services,Head of Adults,Third Party Payments,478101,Purchase of Care,05-Nov-2014,2815533-1471175H,"2,636.00",ACCEPT CARE LTD.
Children and Adult Services,Head of Adults,Third Party Payments,478101,Purchase of Care,05-Nov-2014,2815533-1471176H,"1,463.00",ACCEPT CARE LTD.
Children and Adult Services,Head of Adults,Third Party Payments,478101,Purchase of Care,05-Nov-2014,2815533-1471177H,"5,952.84",ACCEPT CARE LTD.
Children and Adult Services,Head of Adults,Third Party Payments,478101,Purchase of Care,05-Nov-2014,2815533-1471178H,"2,647.16",ACCEPT CARE LTD.
Children and Adult Services,Head of Adults,Third Party Payments,478101,Purchase of Care,05-Nov-2014,2815533-1471179H,"4,846.56",ACCEPT CARE LTD.
Children and Adult Services,Head of Adults,Third Party Payments,478101,Purchase of Care,05-Nov-2014,2815533-1471181H,"3,029.12",ACCEPT CARE LTD.
Children and Adult Services,Head of Adults,Third Party Payments,478101,Purchase of Care,05-Nov-2014,2815533-1471182H,"4,741.24",ACCEPT CARE LTD.
Children and Adult Services,Head of Adults,Third Party Payments,478101,Purchase of Care,05-Nov-2014,2815533-1471252H,"6,190.39",ACCEPT CARE LTD.
Children and Adult Services,Head of Adults,Transfer Payments,515201,Social Services Clients,05-Nov-2014,2815534-1470485H,542.88,REDACTED - PAYMENT TO INDIVIDUAL
Children and Adult Services,Head of Adults,Transfer Payments,515201,Social Services Clients,05-Nov-2014,2815535-1470555H,"2,804.88",REDACTED - PAYMENT TO INDIVIDUAL
Children and Adult Services,Head of Adults,Transfer Payments,515201,Social Services Clients,05-Nov-2014,2815536-1468150H,"1,266.72",REDACTED - PAYMENT TO INDIVIDUAL
Children and Adult Services,Head of Adults,Transfer Payments,515201,Social Services Clients,05-Nov-2014,2815538-1470425H,882.20,REDACTED - PAYMENT TO INDIVIDUAL
Children and Adult Services,Head of Adults,Transfer Payments,515201,Social Services Clients,05-Nov-2014,2815540-1469959H,"1,191.32",REDACTED - PAYMENT TO INDIVIDUAL
Children and Adult Services,Head of Adults,Transfer Payments,515201,Social Services Clients,05-Nov-2014,2815542-1470255H,675.20,REDACTED - PAYMENT TO INDIVIDUAL
Children and Adult Services,Head of Adults,Transfer Payments,515201,Social Services Clients,05-Nov-2014,2815547-1466710H,848.24,REDACTED - PAYMENT TO INDIVIDUAL
Children and Adult Services,Head of Adults,Transfer Payments,515201,Social Services Clients,05-Nov-2014,2815548-1469707H,640.92,REDACTED - PAYMENT TO INDIVIDUAL
Children and Adult Services,Head of Adults,Transfer Payments,515201,Social Services Clients,05-Nov-2014,2815552-1469606H,817.20,REDACTED - PAYMENT TO INDIVIDUAL
Children and Adult Services,Head of Adults,Transfer Payments,515201,Social Services Clients,05-Nov-2014,2815554-1468947H,513.84,REDACTED - PAYMENT TO INDIVIDUAL
Children and Adult Services,Head of Adults,Transfer Payments,515209,Social Services Clients,05-Nov-2014,2815555-1464631D,540.00,REDACTED - PAYMENT TO INDIVIDUAL
Children and Adult Services,Head of Adults,Transfer Payments,515201,Social Services Clients,05-Nov-2014,2815557-1469093H,678.60,REDACTED - PAYMENT TO INDIVIDUAL
Children and Adult Services,Head of Adults,Transfer Payments,515201,Social Services Clients,05-Nov-2014,2815562-1467712H,904.80,REDACTED - PAYMENT TO INDIVIDUAL
Children and Adult Services,Head of Adults,Transfer Payments,515201,Social Services Clients,05-Nov-2014,2815564-1468013H,611.92,REDACTED - PAYMENT TO INDIVIDUAL
Children and Adult Services,Head of Adults,Transfer Payments,515209,Social Services Clients,05-Nov-2014,2815567-1466130D,"1,260.00",REDACTED - PAYMENT TO INDIVIDUAL
Children and Adult Services,Head of Adults,Transfer Payments,515201,Social Services Clients,05-Nov-2014,2815567-1466130H,630.00,REDACTED - PAYMENT TO INDIVIDUAL
Children and Adult Services,Head of Adults,Transfer Payments,515201,Social Services Clients,05-Nov-2014,2815570-1468153H,"1,266.00",REDACTED - PAYMENT TO INDIVIDUAL
Children and Adult Services,Head of Adults,Transfer Payments,515201,Social Services Clients,05-Nov-2014,2815573-1466328H,817.20,REDACTED - PAYMENT TO INDIVIDUAL
Children and Adult Services,Head of Adults,Transfer Payments,515201,Social Services Clients,05-Nov-2014,2815577-1467576H,506.40,REDACTED - PAYMENT TO INDIVIDUAL
Children and Adult Services,Head of Adults,Transfer Payments,515201,Social Services Clients,05-Nov-2014,2815578-1464864H,672.80,REDACTED - PAYMENT TO INDIVIDUAL
Children and Adult Services,Head of Adults,Transfer Payments,515201,Social Services Clients,05-Nov-2014,2815580-1467525H,839.92,REDACTED - PAYMENT TO INDIVIDUAL
Children and Adult Services,Head of Adults,Transfer Payments,515201,Social Services Clients,05-Nov-2014,2815582-1467612H,"1,371.52",REDACTED - PAYMENT TO INDIVIDUAL
Children and Adult Services,Head of Adults,Transfer Payments,515201,Social Services Clients,05-Nov-2014,2815583-1467365H,721.32,REDACTED - PAYMENT TO INDIVIDUAL
Children and Adult Services,Head of Adults,Transfer Payments,515201,Social Services Clients,05-Nov-2014,2815588-1464975H,754.12,REDACTED - PAYMENT TO INDIVIDUAL
Children and Adult Services,Head of Adults,Transfer Payments,515201,Social Services Clients,05-Nov-2014,2815589-1466542H,516.96,REDACTED - PAYMENT TO INDIVIDUAL
Children and Adult Services,Head of Adults,Transfer Payments,515201,Social Services Clients,05-Nov-2014,2815591-1467440H,780.72,REDACTED - PAYMENT TO INDIVIDUAL
Children and Adult Services,Head of Adults,Transfer Payments,515201,Social Services Clients,05-Nov-2014,2815595-1465431H,"1,076.12",REDACTED - PAYMENT TO INDIVIDUAL
Children and Adult Services,Head of Adults,Transfer Payments,515201,Social Services Clients,05-Nov-2014,2815597-1467503H,590.80,REDACTED - PAYMENT TO INDIVIDUAL
Children and Adult Services,Head of Adults,Transfer Payments,515201,Social Services Clients,05-Nov-2014,2815598-1465626H,"1,929.64",REDACTED - PAYMENT TO INDIVIDUAL
Children and Adult Services,Head of Adults,Transfer Payments,515201,Social Services Clients,05-Nov-2014,2815599-1469617H,"2,363.20",REDACTED - PAYMENT TO INDIVIDUAL
Children and Adult Services,Head of Adults,Transfer Payments,515201,Social Services Clients,05-Nov-2014,2815600-1465962H,"1,508.24",REDACTED - PAYMENT TO INDIVIDUAL
Children and Adult Services,Head of Adults,Transfer Payments,515201,Social Services Clients,05-Nov-2014,2815603-1466824H,544.80,REDACTED - PAYMENT TO INDIVIDUAL
Children and Adult Services,Head of Adults,Transfer Payments,515201,Social Services Clients,05-Nov-2014,2815604-1467339H,"1,571.96",REDACTED - PAYMENT TO INDIVIDUAL
Children and Adult Services,Head of Adults,Transfer Payments,515201,Social Services Clients,05-Nov-2014,2815606-1470807H,554.20,REDACTED - PAYMENT TO INDIVIDUAL
Children and Adult Services,Head of Adults,Transfer Payments,515201,Social Services Clients,05-Nov-2014,2815608-1468456H,648.44,REDACTED - PAYMENT TO INDIVIDUAL
Children and Adult Services,Head of Adults,Transfer Payments,515201,Social Services Clients,05-Nov-2014,2815609-1468171H,696.32,REDACTED - PAYMENT TO INDIVIDUAL
Children and Adult Services,Head of Adults,Transfer Payments,515201,Social Services Clients,05-Nov-2014,2815610-1470147H,981.16,REDACTED - PAYMENT TO INDIVIDUAL
Children and Adult Services,Head of Adults,Transfer Payments,515201,Social Services Clients,05-Nov-2014,2815613-1468004H,663.98,REDACTED - PAYMENT TO INDIVIDUAL
Children and Adult Services,Head of Adults,Transfer Payments,515201,Social Services Clients,05-Nov-2014,2815614-1466521H,621.04,REDACTED - PAYMENT TO INDIVIDUAL
Children and Adult Services,Head of Adults,Transfer Payments,515201,Social Services Clients,05-Nov-2014,2815615-1465128H,"1,360.96",REDACTED - PAYMENT TO INDIVIDUAL
Children and Adult Services,Head of Adults,Transfer Payments,515209,Social Services Clients,05-Nov-2014,2815617-1468716D,"2,520.00",REDACTED - PAYMENT TO INDIVIDUAL
Children and Adult Services,Head of Adults,Transfer Payments,515201,Social Services Clients,05-Nov-2014,2815617-1468716H,500.00,REDACTED - PAYMENT TO INDIVIDUAL
Children and Adult Services,Head of Adults,Transfer Payments,515201,Social Services Clients,05-Nov-2014,2815618-1467025H,"1,814.60",REDACTED - PAYMENT TO INDIVIDUAL
Children and Adult Services,Head of Adults,Transfer Payments,515201,Social Services Clients,05-Nov-2014,2815620-1465084H,664.64,REDACTED - PAYMENT TO INDIVIDUAL
Children and Adult Services,Head of Adults,Transfer Payments,515201,Social Services Clients,05-Nov-2014,2815621-1465893H,"1,160.40",REDACTED - PAYMENT TO INDIVIDUAL
Children and Adult Services,Head of Adults,Transfer Payments,515201,Social Services Clients,05-Nov-2014,2815622-1466010H,"1,287.12",REDACTED - PAYMENT TO INDIVIDUAL
Children and Adult Services,Head of Adults,Transfer Payments,515201,Social Services Clients,05-Nov-2014,2815629-1468938H,"4,341.28",REDACTED - PAYMENT TO INDIVIDUAL
Children and Adult Services,Head of Adults,Transfer Payments,515201,Social Services Clients,05-Nov-2014,2815633-1466768H,908.00,REDACTED - PAYMENT TO INDIVIDUAL
Children and Adult Services,Head of Adults,Transfer Payments,515201,Social Services Clients,05-Nov-2014,2815634-1469627H,865.04,REDACTED - PAYMENT TO INDIVIDUAL
Children and Adult Services,Head of Adults,Transfer Payments,515201,Social Services Clients,05-Nov-2014,2815635-1470122H,"1,086.84",REDACTED - PAYMENT TO INDIVIDUAL
Children and Adult Services,Head of Adults,Transfer Payments,515201,Social Services Clients,05-Nov-2014,2815637-1465964H,621.04,REDACTED - PAYMENT TO INDIVIDUAL
Children and Adult Services,Head of Adults,Transfer Payments,515201,Social Services Clients,05-Nov-2014,2815639-1465580H,"1,362.00",REDACTED - PAYMENT TO INDIVIDUAL
Children and Adult Services,Head of Adults,Transfer Payments,515201,Social Services Clients,05-Nov-2014,2815642-1466564H,735.16,REDACTED - PAYMENT TO INDIVIDUAL
Children and Adult Services,Head of Adults,Transfer Payments,515201,Social Services Clients,05-Nov-2014,2815643-1466414H,"1,770.60",REDACTED - PAYMENT TO INDIVIDUAL
Children and Adult Services,Head of Adults,Transfer Payments,515201,Social Services Clients,05-Nov-2014,2815644-1464861H,"1,645.80",REDACTED - PAYMENT TO INDIVIDUAL
Children and Adult Services,Head of Adults,Transfer Payments,515201,Social Services Clients,05-Nov-2014,2815646-1464486H,509.88,REDACTED - PAYMENT TO INDIVIDUAL
Children and Adult Services,Head of Adults,Transfer Payments,515201,Social Services Clients,05-Nov-2014,2815649-1466213H,588.12,REDACTED - PAYMENT TO INDIVIDUAL
Children and Adult Services,Head of Adults,Transfer Payments,515201,Social Services Clients,05-Nov-2014,2815651-1467745H,728.72,REDACTED - PAYMENT TO INDIVIDUAL
Children and Adult Services,Head of Adults,Transfer Payments,515201,Social Services Clients,05-Nov-2014,2815653-1467366H,678.72,REDACTED - PAYMENT TO INDIVIDUAL
Children and Adult Services,Head of Adults,Transfer Payments,515201,Social Services Clients,05-Nov-2014,2815656-1465596H,817.20,REDACTED - PAYMENT TO INDIVIDUAL
Children and Adult Services,Head of Adults,Transfer Payments,515201,Social Services Clients,05-Nov-2014,2815657-1467766H,637.60,REDACTED - PAYMENT TO INDIVIDUAL
Children and Adult Services,Head of Adults,Transfer Payments,515201,Social Services Clients,05-Nov-2014,2815658-1467940H,583.76,REDACTED - PAYMENT TO INDIVIDUAL
Children and Adult Services,Head of Adults,Transfer Payments,515201,Social Services Clients,05-Nov-2014,2815659-1466370H,618.92,REDACTED - PAYMENT TO INDIVIDUAL
Children and Adult Services,Head of Adults,Transfer Payments,515201,Social Services Clients,05-Nov-2014,2815663-1469620H,949.52,REDACTED - PAYMENT TO INDIVIDUAL
Children and Adult Services,Head of Adults,Transfer Payments,515201,Social Services Clients,05-Nov-2014,2815664-1466990H,794.52,REDACTED - PAYMENT TO INDIVIDUAL
Children and Adult Services,Head of Adults,Transfer Payments,515201,Social Services Clients,05-Nov-2014,2815666-1469839H,"2,013.20",REDACTED - PAYMENT TO INDIVIDUAL
Children and Adult Services,Head of Adults,Transfer Payments,515201,Social Services Clients,05-Nov-2014,2815667-1467768H,678.60,REDACTED - PAYMENT TO INDIVIDUAL
Children and Adult Services,Head of Adults,Transfer Payments,515201,Social Services Clients,05-Nov-2014,2815668-1469551H,594.00,REDACTED - PAYMENT TO INDIVIDUAL
Children and Adult Services,Head of Adults,Transfer Payments,515201,Social Services Clients,05-Nov-2014,2815669-1470257H,"3,627.04",REDACTED - PAYMENT TO INDIVIDUAL
Children and Adult Services,Head of Adults,Transfer Payments,515201,Social Services Clients,05-Nov-2014,2815671-1464986H,565.52,REDACTED - PAYMENT TO INDIVIDUAL
Children and Adult Services,Head of Adults,Transfer Payments,515201,Social Services Clients,05-Nov-2014,2815672-1468218H,717.40,REDACTED - PAYMENT TO INDIVIDUAL
Children and Adult Services,Head of Adults,Transfer Payments,515201,Social Services Clients,05-Nov-2014,2815674-1465845H,953.76,REDACTED - PAYMENT TO INDIVIDUAL
Children and Adult Services,Head of Adults,Transfer Payments,515201,Social Services Clients,05-Nov-2014,2815676-1465723H,675.20,REDACTED - PAYMENT TO INDIVIDUAL
Children and Adult Services,Head of Adults,Transfer Payments,515201,Social Services Clients,05-Nov-2014,2815677-1467607H,633.00,REDACTED - PAYMENT TO INDIVIDUAL
Children and Adult Services,Head of Adults,Transfer Payments,515201,Social Services Clients,05-Nov-2014,2815678-1467653H,"1,747.92",REDACTED - PAYMENT TO INDIVIDUAL
Children and Adult Services,Head of Adults,Transfer Payments,515201,Social Services Clients,05-Nov-2014,2815679-1469652H,"2,940.60",REDACTED - PAYMENT TO INDIVIDUAL
Children and Adult Services,Head of Adults,Transfer Payments,515201,Social Services Clients,05-Nov-2014,2815681-1466771H,"1,055.00",REDACTED - PAYMENT TO INDIVIDUAL
Children and Adult Services,Head of Adults,Transfer Payments,515201,Social Services Clients,05-Nov-2014,2815682-1470683H,820.68,REDACTED - PAYMENT TO INDIVIDUAL
Children and Adult Services,Head of Adults,Transfer Payments,515201,Social Services Clients,05-Nov-2014,2815684-1466174H,833.44,REDACTED - PAYMENT TO INDIVIDUAL
Children and Adult Services,Head of Adults,Transfer Payments,515201,Social Services Clients,05-Nov-2014,2815686-1464707H,613.64,REDACTED - PAYMENT TO INDIVIDUAL
Children and Adult Services,Head of Adults,Transfer Payments,515201,Social Services Clients,05-Nov-2014,2815687-1468366H,766.64,REDACTED - PAYMENT TO INDIVIDUAL
Children and Adult Services,Head of Adults,Transfer Payments,515201,Social Services Clients,05-Nov-2014,2815689-1466553H,561.72,REDACTED - PAYMENT TO INDIVIDUAL
Children and Adult Services,Head of Adults,Transfer Payments,515201,Social Services Clients,05-Nov-2014,2815691-1468550H,812.36,REDACTED - PAYMENT TO INDIVIDUAL
Children and Adult Services,Head of Adults,Transfer Payments,515201,Social Services Clients,05-Nov-2014,2815693-1468899H,"1,080.56",REDACTED - PAYMENT TO INDIVIDUAL
Children and Adult Services,Head of Adults,Transfer Payments,515201,Social Services Clients,05-Nov-2014,2815694-1470364H,510.16,REDACTED - PAYMENT TO INDIVIDUAL
Children and Adult Services,Head of Adults,Transfer Payments,515201,Social Services Clients,05-Nov-2014,2815695-1467990H,"1,120.00",REDACTED - PAYMENT TO INDIVIDUAL
Children and Adult Services,Head of Adults,Transfer Payments,515201,Social Services Clients,05-Nov-2014,2815697-1469549H,"2,162.56",REDACTED - PAYMENT TO INDIVIDUAL
Children and Adult Services,Head of Adults,Transfer Payments,515201,Social Services Clients,05-Nov-2014,2815700-1467843H,"1,055.00",REDACTED - PAYMENT TO INDIVIDUAL
Children and Adult Services,Head of Adults,Transfer Payments,515201,Social Services Clients,05-Nov-2014,2815701-1465588H,838.20,REDACTED - PAYMENT TO INDIVIDUAL
Children and Adult Services,Head of Adults,Transfer Payments,515209,Social Services Clients,05-Nov-2014,2815702-1465692D,650.20,REDACTED - PAYMENT TO INDIVIDUAL
Children and Adult Services,Head of Adults,Transfer Payments,515201,Social Services Clients,05-Nov-2014,2815704-1469746H,839.92,REDACTED - PAYMENT TO INDIVIDUAL
Children and Adult Services,Head of Adults,Transfer Payments,515201,Social Services Clients,05-Nov-2014,2815710-1466164H,869.60,REDACTED - PAYMENT TO INDIVIDUAL
Children and Adult Services,Head of Adults,Transfer Payments,515201,Social Services Clients,05-Nov-2014,2815711-1467852H,"1,944.00",REDACTED - PAYMENT TO INDIVIDUAL
Children and Adult Services,Head of Adults,Transfer Payments,515201,Social Services Clients,05-Nov-2014,2815712-1465290H,675.20,REDACTED - PAYMENT TO INDIVIDUAL
Children and Adult Services,Head of Adults,Transfer Payments,515201,Social Services Clients,05-Nov-2014,2815713-1464584H,601.36,REDACTED - PAYMENT TO INDIVIDUAL
Children and Adult Services,Head of Adults,Transfer Payments,515201,Social Services Clients,05-Nov-2014,2815714-1464542H,828.56,REDACTED - PAYMENT TO INDIVIDUAL
Children and Adult Services,Head of Adults,Transfer Payments,515201,Social Services Clients,05-Nov-2014,2815715-1466105H,830.84,REDACTED - PAYMENT TO INDIVIDUAL
Children and Adult Services,Head of Adults,Transfer Payments,515201,Social Services Clients,05-Nov-2014,2815719-1465533H,"1,593.04",REDACTED - PAYMENT TO INDIVIDUAL
Children and Adult Services,Head of Adults,Transfer Payments,515201,Social Services Clients,05-Nov-2014,2815720-1469393H,569.28,REDACTED - PAYMENT TO INDIVIDUAL
Children and Adult Services,Head of Adults,Transfer Payments,515201,Social Services Clients,05-Nov-2014,2815721-1464914H,669.64,REDACTED - PAYMENT TO INDIVIDUAL
Children and Adult Services,Head of Adults,Transfer Payments,515201,Social Services Clients,05-Nov-2014,2815722-1469301H,"1,434.80",REDACTED - PAYMENT TO INDIVIDUAL
Children and Adult Services,Head of Adults,Transfer Payments,515201,Social Services Clients,05-Nov-2014,2815723-1470340H,745.52,REDACTED - PAYMENT TO INDIVIDUAL
Children and Adult Services,Head of Adults,Transfer Payments,515201,Social Services Clients,05-Nov-2014,2815724-1465906H,692.28,REDACTED - PAYMENT TO INDIVIDUAL
Children and Adult Services,Head of Adults,Transfer Payments,515201,Social Services Clients,05-Nov-2014,2815726-1465837H,681.00,REDACTED - PAYMENT TO INDIVIDUAL
Children and Adult Services,Head of Adults,Transfer Payments,515201,Social Services Clients,05-Nov-2014,2815728-1468632H,754.12,REDACTED - PAYMENT TO INDIVIDUAL
Children and Adult Services,Head of Adults,Transfer Payments,515201,Social Services Clients,05-Nov-2014,2815729-1470952H,"2,230.10",REDACTED - PAYMENT TO INDIVIDUAL
Children and Adult Services,Head of Adults,Transfer Payments,515209,Social Services Clients,05-Nov-2014,2815731-1470950D,"2,600.00",REDACTED - PAYMENT TO INDIVIDUAL
Children and Adult Services,Head of Adults,Transfer Payments,515201,Social Services Clients,05-Nov-2014,2815731-1470950H,"4,166.20",REDACTED - PAYMENT TO INDIVIDUAL
Children and Adult Services,Head of Adults,Transfer Payments,515201,Social Services Clients,05-Nov-2014,2815732-1470369H,561.56,REDACTED - PAYMENT TO INDIVIDUAL
Children and Adult Services,Head of Adults,Transfer Payments,515201,Social Services Clients,05-Nov-2014,2815735-1468838H,621.04,REDACTED - PAYMENT TO INDIVIDUAL
Children and Adult Services,Head of Adults,Transfer Payments,515201,Social Services Clients,05-Nov-2014,2815736-1467637H,548.60,REDACTED - PAYMENT TO INDIVIDUAL
Children and Adult Services,Head of Adults,Transfer Payments,515201,Social Services Clients,05-Nov-2014,2815738-1466803H,"1,872.76",REDACTED - PAYMENT TO INDIVIDUAL
Children and Adult Services,Head of Adults,Transfer Payments,515201,Social Services Clients,05-Nov-2014,2815741-1469179H,"1,475.52",REDACTED - PAYMENT TO INDIVIDUAL
Children and Adult Services,Head of Adults,Transfer Payments,515201,Social Services Clients,05-Nov-2014,2815743-1467546H,"1,669.00",REDACTED - PAYMENT TO INDIVIDUAL
Children and Adult Services,Head of Adults,Transfer Payments,515201,Social Services Clients,05-Nov-2014,2815745-1464748H,506.40,REDACTED - PAYMENT TO INDIVIDUAL
Children and Adult Services,Head of Adults,Transfer Payments,515201,Social Services Clients,05-Nov-2014,2815749-1469133H,780.72,REDACTED - PAYMENT TO INDIVIDUAL
Children and Adult Services,Head of Adults,Transfer Payments,515201,Social Services Clients,05-Nov-2014,2815751-1464805H,543.40,REDACTED - PAYMENT TO INDIVIDUAL
Children and Adult Services,Head of Adults,Transfer Payments,515201,Social Services Clients,05-Nov-2014,2815753-1469203H,889.72,REDACTED - PAYMENT TO INDIVIDUAL
Children and Adult Services,Head of Adults,Transfer Payments,515201,Social Services Clients,05-Nov-2014,2815754-1467475H,"1,679.80",REDACTED - PAYMENT TO INDIVIDUAL
Children and Adult Services,Head of Adults,Transfer Payments,515209,Social Services Clients,05-Nov-2014,2815756-1465923D,775.20,REDACTED - PAYMENT TO INDIVIDUAL
Children and Adult Services,Head of Adults,Transfer Payments,515201,Social Services Clients,05-Nov-2014,2815758-1464603H,"4,472.44",REDACTED - PAYMENT TO INDIVIDUAL
Children and Adult Services,Head of Adults,Transfer Payments,515201,Social Services Clients,05-Nov-2014,2815759-1464374H,817.20,REDACTED - PAYMENT TO INDIVIDUAL
Children and Adult Services,Head of Adults,Transfer Payments,515201,Social Services Clients,05-Nov-2014,2815761-1469515H,"1,362.00",REDACTED - PAYMENT TO INDIVIDUAL
Children and Adult Services,Head of Adults,Transfer Payments,515201,Social Services Clients,05-Nov-2014,2815763-1469018H,"2,451.60",REDACTED - PAYMENT TO INDIVIDUAL
Children and Adult Services,Head of Adults,Transfer Payments,515201,Social Services Clients,05-Nov-2014,2815765-1469387H,885.32,REDACTED - PAYMENT TO INDIVIDUAL
Children and Adult Services,Head of Adults,Transfer Payments,515201,Social Services Clients,05-Nov-2014,2815767-1464911H,950.04,REDACTED - PAYMENT TO INDIVIDUAL
Children and Adult Services,Head of Adults,Transfer Payments,515201,Social Services Clients,05-Nov-2014,2815769-1470112H,506.40,REDACTED - PAYMENT TO INDIVIDUAL
Children and Adult Services,Head of Adults,Transfer Payments,515201,Social Services Clients,05-Nov-2014,2815775-1468855H,840.48,REDACTED - PAYMENT TO INDIVIDUAL
Children and Adult Services,Head of Adults,Transfer Payments,515201,Social Services Clients,05-Nov-2014,2815776-1465707H,"1,223.80",REDACTED - PAYMENT TO INDIVIDUAL
Children and Adult Services,Head of Adults,Transfer Payments,515201,Social Services Clients,05-Nov-2014,2815779-1470239H,723.84,REDACTED - PAYMENT TO INDIVIDUAL
Children and Adult Services,Head of Adults,Transfer Payments,515201,Social Services Clients,05-Nov-2014,2815781-1468967H,678.60,REDACTED - PAYMENT TO INDIVIDUAL
Children and Adult Services,Head of Adults,Transfer Payments,515201,Social Services Clients,05-Nov-2014,2815784-1466946H,624.24,REDACTED - PAYMENT TO INDIVIDUAL
Children and Adult Services,Head of Adults,Transfer Payments,515201,Social Services Clients,05-Nov-2014,2815785-1469390H,644.68,REDACTED - PAYMENT TO INDIVIDUAL
Children and Adult Services,Head of Adults,Transfer Payments,515209,Social Services Clients,05-Nov-2014,2815787-1467624D,"2,400.00",REDACTED - PAYMENT TO INDIVIDUAL
Children and Adult Services,Head of Adults,Transfer Payments,515201,Social Services Clients,05-Nov-2014,2815787-1467624H,"1,017.92",REDACTED - PAYMENT TO INDIVIDUAL
Children and Adult Services,Head of Adults,Transfer Payments,515201,Social Services Clients,05-Nov-2014,2815789-1467789H,675.20,REDACTED - PAYMENT TO INDIVIDUAL
Children and Adult Services,Head of Adults,Third Party Payments,470101,Purchase of Care,05-Nov-2014,2815791-1464868D,923.04,REDACTED - PAYMENT TO INDIVIDUAL
Children and Adult Services,Head of Adults,Transfer Payments,515201,Social Services Clients,05-Nov-2014,2815793-1468818H,"1,362.00",REDACTED - PAYMENT TO INDIVIDUAL
Children and Adult Services,Head of Adults,Transfer Payments,515201,Social Services Clients,05-Nov-2014,2815795-1467050H,817.20,REDACTED - PAYMENT TO INDIVIDUAL
Children and Adult Services,Head of Adults,Transfer Payments,515201,Social Services Clients,05-Nov-2014,2815796-1470330H,694.96,REDACTED - PAYMENT TO INDIVIDUAL
Children and Adult Services,Head of Adults,Transfer Payments,515201,Social Services Clients,05-Nov-2014,2815799-1467641H,601.36,REDACTED - PAYMENT TO INDIVIDUAL
Children and Adult Services,Head of Adults,Transfer Payments,515201,Social Services Clients,05-Nov-2014,2815800-1466862H,576.68,REDACTED - PAYMENT TO INDIVIDUAL
Children and Adult Services,Head of Adults,Transfer Payments,515201,Social Services Clients,05-Nov-2014,2815802-1468091H,598.88,REDACTED - PAYMENT TO INDIVIDUAL
Children and Adult Services,Head of Adults,Transfer Payments,515209,Social Services Clients,05-Nov-2014,2815806-1467316D,706.32,REDACTED - PAYMENT TO INDIVIDUAL
Children and Adult Services,Head of Adults,Transfer Payments,515201,Social Services Clients,05-Nov-2014,2815807-1469675H,731.48,REDACTED - PAYMENT TO INDIVIDUAL
Children and Adult Services,Head of Adults,Transfer Payments,515201,Social Services Clients,05-Nov-2014,2815808-1467686H,"1,002.24",REDACTED - PAYMENT TO INDIVIDUAL
Children and Adult Services,Head of Adults,Transfer Payments,515201,Social Services Clients,05-Nov-2014,2815810-1467613H,"2,383.52",REDACTED - PAYMENT TO INDIVIDUAL
Children and Adult Services,Head of Adults,Transfer Payments,515201,Social Services Clients,05-Nov-2014,2815815-1464454H,908.00,REDACTED - PAYMENT TO INDIVIDUAL
Children and Adult Services,Head of Adults,Transfer Payments,515209,Social Services Clients,05-Nov-2014,2815820-1466563D,"1,600.00",REDACTED - PAYMENT TO INDIVIDUAL
Children and Adult Services,Head of Adults,Transfer Payments,515201,Social Services Clients,05-Nov-2014,2815823-1466041H,919.36,REDACTED - PAYMENT TO INDIVIDUAL
Children and Adult Services,Head of Adults,Transfer Payments,515201,Social Services Clients,05-Nov-2014,2815825-1464420H,"1,739.20",REDACTED - PAYMENT TO INDIVIDUAL
Children and Adult Services,Head of Adults,Transfer Payments,515201,Social Services Clients,05-Nov-2014,2815827-1468772H,"3,434.40",REDACTED - PAYMENT TO INDIVIDUAL
Children and Adult Services,Head of Adults,Transfer Payments,515201,Social Services Clients,05-Nov-2014,2815831-1466180H,717.40,REDACTED - PAYMENT TO INDIVIDUAL
Children and Adult Services,Head of Adults,Transfer Payments,515201,Social Services Clients,05-Nov-2014,2815833-1468932H,839.92,REDACTED - PAYMENT TO INDIVIDUAL
Children and Adult Services,Head of Adults,Transfer Payments,515201,Social Services Clients,05-Nov-2014,2815836-1467374H,"1,169.04",REDACTED - PAYMENT TO INDIVIDUAL
Children and Adult Services,Head of Adults,Transfer Payments,515201,Social Services Clients,05-Nov-2014,2815838-1466214H,738.52,REDACTED - PAYMENT TO INDIVIDUAL
Children and Adult Services,Head of Adults,Transfer Payments,515201,Social Services Clients,05-Nov-2014,2815842-1467505H,512.64,REDACTED - PAYMENT TO INDIVIDUAL
Children and Adult Services,Head of Adults,Transfer Payments,515201,Social Services Clients,05-Nov-2014,2815845-1465262H,544.80,REDACTED - PAYMENT TO INDIVIDUAL
Children and Adult Services,Head of Adults,Transfer Payments,515201,Social Services Clients,05-Nov-2014,2815846-1469315H,862.60,REDACTED - PAYMENT TO INDIVIDUAL
Children and Adult Services,Head of Adults,Transfer Payments,515201,Social Services Clients,05-Nov-2014,2815847-1466902H,709.76,REDACTED - PAYMENT TO INDIVIDUAL
Children and Adult Services,Head of Adults,Transfer Payments,515209,Social Services Clients,05-Nov-2014,2815848-1466935D,"1,481.60",REDACTED - PAYMENT TO INDIVIDUAL
Children and Adult Services,Head of Adults,Transfer Payments,515201,Social Services Clients,05-Nov-2014,2815848-1466935H,681.00,REDACTED - PAYMENT TO INDIVIDUAL
Children and Adult Services,Head of Adults,Transfer Payments,515201,Social Services Clients,05-Nov-2014,2815850-1468943H,569.28,REDACTED - PAYMENT TO INDIVIDUAL
Children and Adult Services,Head of Adults,Transfer Payments,515201,Social Services Clients,05-Nov-2014,2815852-1468089H,723.84,REDACTED - PAYMENT TO INDIVIDUAL
Children and Adult Services,Head of Adults,Transfer Payments,515201,Social Services Clients,05-Nov-2014,2815854-1468390H,746.48,REDACTED - PAYMENT TO INDIVIDUAL
Children and Adult Services,Head of Adults,Transfer Payments,515201,Social Services Clients,05-Nov-2014,2815855-1470556H,598.88,REDACTED - PAYMENT TO INDIVIDUAL
Children and Adult Services,Head of Adults,Transfer Payments,515201,Social Services Clients,05-Nov-2014,2815862-1469081H,531.57,REDACTED - PAYMENT TO INDIVIDUAL
Children and Adult Services,Head of Adults,Transfer Payments,515201,Social Services Clients,05-Nov-2014,2815864-1469491H,727.96,REDACTED - PAYMENT TO INDIVIDUAL
Children and Adult Services,Head of Adults,Transfer Payments,515201,Social Services Clients,05-Nov-2014,2815865-1470353H,552.12,REDACTED - PAYMENT TO INDIVIDUAL
Children and Adult Services,Head of Adults,Transfer Payments,515201,Social Services Clients,05-Nov-2014,2815866-1469084H,998.80,REDACTED - PAYMENT TO INDIVIDUAL
Children and Adult Services,Head of Adults,Transfer Payments,515201,Social Services Clients,05-Nov-2014,2815867-1466548H,547.00,REDACTED - PAYMENT TO INDIVIDUAL
Children and Adult Services,Head of Adults,Transfer Payments,515201,Social Services Clients,05-Nov-2014,2815869-1467378H,516.48,REDACTED - PAYMENT TO INDIVIDUAL
Children and Adult Services,Head of Adults,Transfer Payments,515201,Social Services Clients,05-Nov-2014,2815871-1466616H,"2,380.00",REDACTED - PAYMENT TO INDIVIDUAL
Children and Adult Services,Head of Adults,Transfer Payments,515201,Social Services Clients,05-Nov-2014,2815874-1466982H,844.00,REDACTED - PAYMENT TO INDIVIDUAL
Children and Adult Services,Head of Adults,Transfer Payments,515201,Social Services Clients,05-Nov-2014,2815878-1470254H,701.24,REDACTED - PAYMENT TO INDIVIDUAL
Children and Adult Services,Head of Adults,Transfer Payments,515201,Social Services Clients,05-Nov-2014,2815881-1469182H,"1,063.16",REDACTED - PAYMENT TO INDIVIDUAL
Children and Adult Services,Head of Adults,Transfer Payments,515201,Social Services Clients,05-Nov-2014,2815883-1469127H,590.80,REDACTED - PAYMENT TO INDIVIDUAL
Children and Adult Services,Head of Adults,Transfer Payments,515201,Social Services Clients,05-Nov-2014,2815886-1466996H,661.12,REDACTED - PAYMENT TO INDIVIDUAL
Children and Adult Services,Head of Adults,Transfer Payments,515201,Social Services Clients,05-Nov-2014,2815887-1469009H,"1,477.00",REDACTED - PAYMENT TO INDIVIDUAL
Children and Adult Services,Head of Adults,Transfer Payments,515201,Social Services Clients,05-Nov-2014,2815888-1470549H,"2,624.80",REDACTED - PAYMENT TO INDIVIDUAL
Children and Adult Services,Head of Adults,Transfer Payments,515201,Social Services Clients,05-Nov-2014,2815891-1467541H,862.60,REDACTED - PAYMENT TO INDIVIDUAL
Children and Adult Services,Head of Adults,Transfer Payments,515201,Social Services Clients,05-Nov-2014,2815892-1468930H,"1,218.24",REDACTED - PAYMENT TO INDIVIDUAL
Children and Adult Services,Head of Adults,Transfer Payments,515201,Social Services Clients,05-Nov-2014,2815893-1465438H,"1,463.88",REDACTED - PAYMENT TO INDIVIDUAL
Children and Adult Services,Head of Adults,Transfer Payments,515201,Social Services Clients,05-Nov-2014,2815897-1466688H,590.80,REDACTED - PAYMENT TO INDIVIDUAL
Children and Adult Services,Head of Adults,Transfer Payments,515201,Social Services Clients,05-Nov-2014,2815897-1469944H,862.60,REDACTED - PAYMENT TO INDIVIDUAL
Children and Adult Services,Head of Adults,Transfer Payments,515201,Social Services Clients,05-Nov-2014,2815900-1469730H,521.24,REDACTED - PAYMENT TO INDIVIDUAL
Children and Adult Services,Head of Adults,Transfer Payments,515201,Social Services Clients,05-Nov-2014,2815901-1466947H,703.72,REDACTED - PAYMENT TO INDIVIDUAL
Children and Adult Services,Head of Adults,Transfer Payments,515201,Social Services Clients,05-Nov-2014,2815902-1468443H,"1,271.20",REDACTED - PAYMENT TO INDIVIDUAL
Children and Adult Services,Head of Adults,Transfer Payments,515201,Social Services Clients,05-Nov-2014,2815904-1465985H,681.00,REDACTED - PAYMENT TO INDIVIDUAL
Children and Adult Services,Head of Adults,Transfer Payments,515201,Social Services Clients,05-Nov-2014,2815906-1467031H,635.60,REDACTED - PAYMENT TO INDIVIDUAL
Children and Adult Services,Head of Adults,Transfer Payments,515201,Social Services Clients,05-Nov-2014,2815908-1468697H,"1,297.64",REDACTED - PAYMENT TO INDIVIDUAL
Children and Adult Services,Head of Adults,Transfer Payments,515201,Social Services Clients,05-Nov-2014,2815909-1467966H,633.36,REDACTED - PAYMENT TO INDIVIDUAL
Children and Adult Services,Head of Adults,Transfer Payments,515201,Social Services Clients,05-Nov-2014,2815910-1465141H,"1,225.80",REDACTED - PAYMENT TO INDIVIDUAL
Children and Adult Services,Head of Adults,Transfer Payments,515201,Social Services Clients,05-Nov-2014,2815915-1465184H,934.66,REDACTED - PAYMENT TO INDIVIDUAL
Children and Adult Services,Head of Adults,Transfer Payments,515201,Social Services Clients,05-Nov-2014,2815917-1467854H,675.20,REDACTED - PAYMENT TO INDIVIDUAL
Children and Adult Services,Head of Adults,Transfer Payments,515201,Social Services Clients,05-Nov-2014,2815920-1465190H,635.65,REDACTED - PAYMENT TO INDIVIDUAL
Children and Adult Services,Head of Adults,Transfer Payments,515201,Social Services Clients,05-Nov-2014,2815921-1464663H,"2,360.80",REDACTED - PAYMENT TO INDIVIDUAL
Children and Adult Services,Head of Adults,Transfer Payments,515201,Social Services Clients,05-Nov-2014,2815926-1470061H,908.00,REDACTED - PAYMENT TO INDIVIDUAL
Children and Adult Services,Head of Adults,Transfer Payments,515201,Social Services Clients,05-Nov-2014,2815927-1470360H,731.40,REDACTED - PAYMENT TO INDIVIDUAL
Children and Adult Services,Head of Adults,Transfer Payments,515201,Social Services Clients,05-Nov-2014,2815928-1470436H,"1,223.80",REDACTED - PAYMENT TO INDIVIDUAL
Children and Adult Services,Head of Adults,Transfer Payments,515201,Social Services Clients,05-Nov-2014,2815929-1470661H,931.56,REDACTED - PAYMENT TO INDIVIDUAL
Children and Adult Services,Head of Adults,Transfer Payments,515201,Social Services Clients,05-Nov-2014,2815932-1464574H,685.64,REDACTED - PAYMENT TO INDIVIDUAL
Children and Adult Services,Head of Adults,Transfer Payments,515209,Social Services Clients,05-Nov-2014,2815933-1467544D,907.44,REDACTED - PAYMENT TO INDIVIDUAL
Children and Adult Services,Head of Adults,Transfer Payments,515201,Social Services Clients,05-Nov-2014,2815933-1467544H,709.76,REDACTED - PAYMENT TO INDIVIDUAL
Children and Adult Services,Head of Adults,Transfer Payments,515201,Social Services Clients,05-Nov-2014,2815936-1469988H,621.04,REDACTED - PAYMENT TO INDIVIDUAL
Children and Adult Services,Head of Adults,Transfer Payments,515201,Social Services Clients,05-Nov-2014,2815941-1469671H,601.36,REDACTED - PAYMENT TO INDIVIDUAL
Children and Adult Services,Head of Adults,Transfer Payments,515201,Social Services Clients,05-Nov-2014,2815943-1468404H,635.60,REDACTED - PAYMENT TO INDIVIDUAL
Children and Adult Services,Head of Adults,Transfer Payments,515201,Social Services Clients,05-Nov-2014,2815944-1468187H,964.84,REDACTED - PAYMENT TO INDIVIDUAL
Children and Adult Services,Head of Adults,Transfer Payments,515201,Social Services Clients,05-Nov-2014,2815945-1466857H,"1,308.20",REDACTED - PAYMENT TO INDIVIDUAL
Children and Adult Services,Head of Adults,Transfer Payments,515201,Social Services Clients,05-Nov-2014,2815947-1470418H,542.88,REDACTED - PAYMENT TO INDIVIDUAL
Children and Adult Services,Head of Adults,Third Party Payments,473101,Purchase of Care,05-Nov-2014,2815949-1469686D,653.76,ACORN GRANGE NURSING HOME.
Children and Adult Services,Head of Adults,Third Party Payments,473101,Purchase of Care,05-Nov-2014,2815949-1470058D,614.24,ACORN GRANGE NURSING HOME.
Children and Adult Services,Head of Adults,Transfer Payments,515201,Social Services Clients,05-Nov-2014,2815951-1468836H,"3,343.68",REDACTED - PAYMENT TO INDIVIDUAL
Children and Adult Services,Head of Adults,Transfer Payments,515209,Social Services Clients,05-Nov-2014,2815952-1467710D,580.00,REDACTED - PAYMENT TO INDIVIDUAL
Children and Adult Services,Head of Adults,Transfer Payments,515201,Social Services Clients,05-Nov-2014,2815956-1465749H,576.00,REDACTED - PAYMENT TO INDIVIDUAL
Children and Adult Services,Head of Adults,Transfer Payments,515201,Social Services Clients,05-Nov-2014,2815959-1467798H,981.76,REDACTED - PAYMENT TO INDIVIDUAL
Children and Adult Services,Head of Adults,Transfer Payments,515201,Social Services Clients,05-Nov-2014,2815960-1465991H,"1,076.12",REDACTED - PAYMENT TO INDIVIDUAL
Children and Adult Services,Head of Adults,Transfer Payments,515201,Social Services Clients,05-Nov-2014,2815963-1469342H,"2,895.36",REDACTED - PAYMENT TO INDIVIDUAL
Children and Adult Services,Head of Adults,Transfer Payments,515201,Social Services Clients,05-Nov-2014,2815965-1469757H,844.00,REDACTED - PAYMENT TO INDIVIDUAL
Children and Adult Services,Head of Adults,Transfer Payments,515201,Social Services Clients,05-Nov-2014,2815969-1465345H,"1,200.00",REDACTED - PAYMENT TO INDIVIDUAL
Children and Adult Services,Head of Adults,Transfer Payments,515201,Social Services Clients,05-Nov-2014,2815970-1464350H,504.68,REDACTED - PAYMENT TO INDIVIDUAL
Children and Adult Services,Head of Adults,Transfer Payments,515201,Social Services Clients,05-Nov-2014,2815973-1467921H,983.68,REDACTED - PAYMENT TO INDIVIDUAL
Children and Adult Services,Head of Adults,Transfer Payments,515201,Social Services Clients,05-Nov-2014,2815978-1468799H,634.00,REDACTED - PAYMENT TO INDIVIDUAL
Children and Adult Services,Head of Adults,Transfer Payments,515201,Social Services Clients,05-Nov-2014,2815983-1465110H,687.60,REDACTED - PAYMENT TO INDIVIDUAL
Children and Adult Services,Head of Adults,Transfer Payments,515201,Social Services Clients,05-Nov-2014,2815984-1465925H,759.60,REDACTED - PAYMENT TO INDIVIDUAL
Children and Adult Services,Head of Adults,Transfer Payments,515209,Social Services Clients,05-Nov-2014,2815986-1466912D,560.00,REDACTED - PAYMENT TO INDIVIDUAL
Children and Adult Services,Head of Adults,Transfer Payments,515209,Social Services Clients,05-Nov-2014,2815988-1466334D,528.96,REDACTED - PAYMENT TO INDIVIDUAL
Children and Adult Services,Head of Adults,Transfer Payments,515201,Social Services Clients,05-Nov-2014,2815990-1468228H,"1,168.04",REDACTED - PAYMENT TO INDIVIDUAL
Children and Adult Services,Head of Adults,Transfer Payments,515201,Social Services Clients,05-Nov-2014,2815992-1465849H,532.32,REDACTED - PAYMENT TO INDIVIDUAL
Children and Adult Services,Head of Adults,Transfer Payments,515201,Social Services Clients,05-Nov-2014,2815993-1467997H,880.12,REDACTED - PAYMENT TO INDIVIDUAL
Children and Adult Services,Head of Adults,Transfer Payments,515201,Social Services Clients,05-Nov-2014,2815995-1468331H,506.08,REDACTED - PAYMENT TO INDIVIDUAL
Children and Adult Services,Head of Adults,Transfer Payments,515201,Social Services Clients,05-Nov-2014,2815997-1470409H,656.00,REDACTED - PAYMENT TO INDIVIDUAL
Children and Adult Services,Head of Adults,Transfer Payments,515201,Social Services Clients,05-Nov-2014,2815999-1466711H,908.00,REDACTED - PAYMENT TO INDIVIDUAL
Children and Adult Services,Head of Adults,Transfer Payments,515201,Social Services Clients,05-Nov-2014,2816000-1464919H,"3,022.40",REDACTED - PAYMENT TO INDIVIDUAL
Children and Adult Services,Head of Adults,Transfer Payments,515201,Social Services Clients,05-Nov-2014,2816000-1466708H,771.80,REDACTED - PAYMENT TO INDIVIDUAL
Children and Adult Services,Head of Adults,Transfer Payments,515201,Social Services Clients,05-Nov-2014,2816001-1469792H,955.84,REDACTED - PAYMENT TO INDIVIDUAL
Children and Adult Services,Head of Adults,Transfer Payments,515201,Social Services Clients,05-Nov-2014,2816002-1467528H,675.20,REDACTED - PAYMENT TO INDIVIDUAL
Children and Adult Services,Head of Adults,Transfer Payments,515201,Social Services Clients,05-Nov-2014,2816004-1465275H,516.96,REDACTED - PAYMENT TO INDIVIDUAL
Children and Adult Services,Head of Adults,Transfer Payments,515201,Social Services Clients,05-Nov-2014,2816005-1467264H,953.40,REDACTED - PAYMENT TO INDIVIDUAL
Children and Adult Services,Head of Adults,Transfer Payments,515201,Social Services Clients,05-Nov-2014,2816006-1466268H,"1,434.80",REDACTED - PAYMENT TO INDIVIDUAL
Children and Adult Services,Head of Adults,Transfer Payments,515201,Social Services Clients,05-Nov-2014,2816007-1466151H,777.20,REDACTED - PAYMENT TO INDIVIDUAL
Children and Adult Services,Head of Adults,Transfer Payments,515201,Social Services Clients,05-Nov-2014,2816009-1468149H,723.84,REDACTED - PAYMENT TO INDIVIDUAL
Children and Adult Services,Head of Adults,Third Party Payments,478101,Purchase of Care,05-Nov-2014,2816010-1464372H,"6,807.20",AUTISM CARE UK (4) LTD.
Children and Adult Services,Head of Adults,Third Party Payments,478101,Purchase of Care,05-Nov-2014,2816010-1464804H,"4,148.64",AUTISM CARE UK (4) LTD.
Children and Adult Services,Head of Adults,Third Party Payments,478101,Purchase of Care,05-Nov-2014,2816010-1465834H,"6,163.72",AUTISM CARE UK (4) LTD.
Children and Adult Services,Head of Adults,Third Party Payments,478101,Purchase of Care,05-Nov-2014,2816010-1465877H,"4,148.64",AUTISM CARE UK (4) LTD.
Children and Adult Services,Head of Adults,Third Party Payments,478101,Purchase of Care,05-Nov-2014,2816010-1465990H,"3,378.20",AUTISM CARE UK (4) LTD.
Children and Adult Services,Head of Adults,Third Party Payments,478101,Purchase of Care,05-Nov-2014,2816010-1466092H,"3,200.40",AUTISM CARE UK (4) LTD.
Children and Adult Services,Head of Adults,Third Party Payments,478101,Purchase of Care,05-Nov-2014,2816010-1466110H,"4,148.64",AUTISM CARE UK (4) LTD.
Children and Adult Services,Head of Adults,Third Party Payments,478101,Purchase of Care,05-Nov-2014,2816010-1466111H,"4,148.64",AUTISM CARE UK (4) LTD.
Children and Adult Services,Head of Adults,Third Party Payments,478101,Purchase of Care,05-Nov-2014,2816010-1466851H,"6,502.40",AUTISM CARE UK (4) LTD.
Children and Adult Services,Head of Adults,Transfer Payments,515201,Social Services Clients,05-Nov-2014,2816011-1466951H,"2,975.00",REDACTED - PAYMENT TO INDIVIDUAL
Children and Adult Services,Head of Adults,Transfer Payments,515201,Social Services Clients,05-Nov-2014,2816013-1465243H,603.20,REDACTED - PAYMENT TO INDIVIDUAL
Children and Adult Services,Head of Adults,Transfer Payments,515201,Social Services Clients,05-Nov-2014,2816014-1465063H,"2,616.00",REDACTED - PAYMENT TO INDIVIDUAL
Children and Adult Services,Head of Adults,Transfer Payments,515201,Social Services Clients,05-Nov-2014,2816020-1468709H,720.84,REDACTED - PAYMENT TO INDIVIDUAL
Children and Adult Services,Head of Adults,Transfer Payments,515201,Social Services Clients,05-Nov-2014,2816022-1469364H,508.64,REDACTED - PAYMENT TO INDIVIDUAL
Children and Adult Services,Head of Adults,Third Party Payments,472101,Purchase of Care,05-Nov-2014,2816025-1466682H,"1,099.75",BLUE RIBBON COMMUNITY CARE.
Children and Adult Services,Head of Adults,Transfer Payments,515201,Social Services Clients,05-Nov-2014,2816028-1468032H,"2,156.52",REDACTED - PAYMENT TO INDIVIDUAL
Children and Adult Services,Head of Adults,Transfer Payments,515201,Social Services Clients,05-Nov-2014,2816029-1465230H,"1,190.96",REDACTED - PAYMENT TO INDIVIDUAL
Children and Adult Services,Head of Adults,Transfer Payments,515209,Social Services Clients,05-Nov-2014,2816030-1466413D,"1,969.60",REDACTED - PAYMENT TO INDIVIDUAL
Children and Adult Services,Head of Adults,Transfer Payments,515201,Social Services Clients,05-Nov-2014,2816031-1464453H,"7,120.44",REDACTED - PAYMENT TO INDIVIDUAL
Children and Adult Services,Head of Adults,Transfer Payments,515201,Social Services Clients,05-Nov-2014,2816032-1469727H,643.24,REDACTED - PAYMENT TO INDIVIDUAL
Children and Adult Services,Head of Adults,Transfer Payments,515201,Social Services Clients,05-Nov-2014,2816033-1465525H,621.04,REDACTED - PAYMENT TO INDIVIDUAL
Children and Adult Services,Head of Adults,Third Party Payments,478101,Purchase of Care,05-Nov-2014,2816034-1458167H,"2,919.08",BROTHERS OF CHARITY.
Children and Adult Services,Head of Adults,Transfer Payments,515201,Social Services Clients,05-Nov-2014,2816035-1470377H,950.04,REDACTED - PAYMENT TO INDIVIDUAL
Children and Adult Services,Head of Adults,Transfer Payments,515209,Social Services Clients,05-Nov-2014,2816038-1466500D,678.04,REDACTED - PAYMENT TO INDIVIDUAL
Children and Adult Services,Head of Adults,Third Party Payments,472101,Purchase of Care,05-Nov-2014,2816040-1465805H,590.80,CARE CONCERN (DURHAM) LTD.
Children and Adult Services,Head of Adults,Third Party Payments,472101,Purchase of Care,05-Nov-2014,2816040-1466984H,590.80,CARE CONCERN (DURHAM) LTD.
Children and Adult Services,Head of Adults,Third Party Payments,472101,Purchase of Care,05-Nov-2014,2816040-1467078H,928.40,CARE CONCERN (DURHAM) LTD.
Children and Adult Services,Head of Adults,Third Party Payments,472101,Purchase of Care,05-Nov-2014,2816040-1467346H,"1,434.80",CARE CONCERN (DURHAM) LTD.
Children and Adult Services,Head of Adults,Third Party Payments,472101,Purchase of Care,05-Nov-2014,2816040-1467718H,538.04,CARE CONCERN (DURHAM) LTD.
Children and Adult Services,Head of Adults,Third Party Payments,472101,Purchase of Care,05-Nov-2014,2816040-1469268H,"1,251.92",CARE CONCERN (DURHAM) LTD.
Children and Adult Services,Head of Adults,Third Party Payments,472101,Purchase of Care,05-Nov-2014,2816041-1464972H,614.52,CAREWATCH (DURHAM & EASINGTON) FASTFLOW ACC.
Children and Adult Services,Head of Adults,Third Party Payments,472101,Purchase of Care,05-Nov-2014,2816041-1464979H,"1,515.54",CAREWATCH (DURHAM & EASINGTON) FASTFLOW ACC.
Children and Adult Services,Head of Adults,Third Party Payments,472101,Purchase of Care,05-Nov-2014,2816041-1464982H,718.19,CAREWATCH (DURHAM & EASINGTON) FASTFLOW ACC.
Children and Adult Services,Head of Adults,Third Party Payments,472101,Purchase of Care,05-Nov-2014,2816041-1465021H,725.72,CAREWATCH (DURHAM & EASINGTON) FASTFLOW ACC.
Children and Adult Services,Head of Adults,Third Party Payments,472101,Purchase of Care,05-Nov-2014,2816041-1465022H,"1,029.20",CAREWATCH (DURHAM & EASINGTON) FASTFLOW ACC.
Children and Adult Services,Head of Adults,Third Party Payments,472101,Purchase of Care,05-Nov-2014,2816041-1465060H,904.80,CAREWATCH (DURHAM & EASINGTON) FASTFLOW ACC.
Children and Adult Services,Head of Adults,Third Party Payments,472101,Purchase of Care,05-Nov-2014,2816041-1465497H,904.81,CAREWATCH (DURHAM & EASINGTON) FASTFLOW ACC.
Children and Adult Services,Head of Adults,Third Party Payments,472101,Purchase of Care,05-Nov-2014,2816041-1465515H,836.96,CAREWATCH (DURHAM & EASINGTON) FASTFLOW ACC.
Children and Adult Services,Head of Adults,Third Party Payments,472101,Purchase of Care,05-Nov-2014,2816041-1465532H,780.40,CAREWATCH (DURHAM & EASINGTON) FASTFLOW ACC.
Children and Adult Services,Head of Adults,Third Party Payments,472101,Purchase of Care,05-Nov-2014,2816041-1466034H,"1,606.04",CAREWATCH (DURHAM & EASINGTON) FASTFLOW ACC.
Children and Adult Services,Head of Adults,Third Party Payments,472101,Purchase of Care,05-Nov-2014,2816041-1466067H,"3,031.08",CAREWATCH (DURHAM & EASINGTON) FASTFLOW ACC.
Children and Adult Services,Head of Adults,Third Party Payments,472101,Purchase of Care,05-Nov-2014,2816041-1466076H,588.12,CAREWATCH (DURHAM & EASINGTON) FASTFLOW ACC.
Children and Adult Services,Head of Adults,Third Party Payments,472101,Purchase of Care,05-Nov-2014,2816041-1466112H,542.88,CAREWATCH (DURHAM & EASINGTON) FASTFLOW ACC.
Children and Adult Services,Head of Adults,Third Party Payments,472101,Purchase of Care,05-Nov-2014,2816041-1466359H,"1,142.32",CAREWATCH (DURHAM & EASINGTON) FASTFLOW ACC.
Children and Adult Services,Head of Adults,Third Party Payments,472101,Purchase of Care,05-Nov-2014,2816041-1466384H,"1,425.08",CAREWATCH (DURHAM & EASINGTON) FASTFLOW ACC.
Children and Adult Services,Head of Adults,Third Party Payments,472101,Purchase of Care,05-Nov-2014,2816041-1466393H,"1,628.64",CAREWATCH (DURHAM & EASINGTON) FASTFLOW ACC.
Children and Adult Services,Head of Adults,Third Party Payments,472101,Purchase of Care,05-Nov-2014,2816041-1466417H,791.72,CAREWATCH (DURHAM & EASINGTON) FASTFLOW ACC.
Children and Adult Services,Head of Adults,Third Party Payments,472101,Purchase of Care,05-Nov-2014,2816041-1466428H,"1,066.91",CAREWATCH (DURHAM & EASINGTON) FASTFLOW ACC.
Children and Adult Services,Head of Adults,Third Party Payments,472101,Purchase of Care,05-Nov-2014,2816041-1466442H,712.52,CAREWATCH (DURHAM & EASINGTON) FASTFLOW ACC.
Children and Adult Services,Head of Adults,Third Party Payments,472101,Purchase of Care,05-Nov-2014,2816041-1466561H,912.36,CAREWATCH (DURHAM & EASINGTON) FASTFLOW ACC.
Children and Adult Services,Head of Adults,Third Party Payments,472101,Purchase of Care,05-Nov-2014,2816041-1466651H,859.55,CAREWATCH (DURHAM & EASINGTON) FASTFLOW ACC.
Children and Adult Services,Head of Adults,Third Party Payments,472101,Purchase of Care,05-Nov-2014,2816041-1466652H,514.61,CAREWATCH (DURHAM & EASINGTON) FASTFLOW ACC.
Children and Adult Services,Head of Adults,Third Party Payments,472101,Purchase of Care,05-Nov-2014,2816041-1466673H,542.88,CAREWATCH (DURHAM & EASINGTON) FASTFLOW ACC.
Children and Adult Services,Head of Adults,Third Party Payments,472101,Purchase of Care,05-Nov-2014,2816041-1466681H,870.88,CAREWATCH (DURHAM & EASINGTON) FASTFLOW ACC.
Children and Adult Services,Head of Adults,Third Party Payments,472101,Purchase of Care,05-Nov-2014,2816041-1466709H,904.80,CAREWATCH (DURHAM & EASINGTON) FASTFLOW ACC.
Children and Adult Services,Head of Adults,Third Party Payments,472101,Purchase of Care,05-Nov-2014,2816041-1466745H,520.27,CAREWATCH (DURHAM & EASINGTON) FASTFLOW ACC.
Children and Adult Services,Head of Adults,Third Party Payments,472101,Purchase of Care,05-Nov-2014,2816041-1466755H,"1,059.39",CAREWATCH (DURHAM & EASINGTON) FASTFLOW ACC.
Children and Adult Services,Head of Adults,Third Party Payments,472101,Purchase of Care,05-Nov-2014,2816041-1466841H,"2,299.72",CAREWATCH (DURHAM & EASINGTON) FASTFLOW ACC.
Children and Adult Services,Head of Adults,Third Party Payments,472101,Purchase of Care,05-Nov-2014,2816041-1466974H,746.48,CAREWATCH (DURHAM & EASINGTON) FASTFLOW ACC.
Children and Adult Services,Head of Adults,Third Party Payments,472101,Purchase of Care,05-Nov-2014,2816041-1466999H,"1,492.92",CAREWATCH (DURHAM & EASINGTON) FASTFLOW ACC.
Children and Adult Services,Head of Adults,Third Party Payments,472101,Purchase of Care,05-Nov-2014,2816041-1467033H,791.72,CAREWATCH (DURHAM & EASINGTON) FASTFLOW ACC.
Children and Adult Services,Head of Adults,Third Party Payments,472101,Purchase of Care,05-Nov-2014,2816041-1467041H,"1,425.08",CAREWATCH (DURHAM & EASINGTON) FASTFLOW ACC.
Children and Adult Services,Head of Adults,Third Party Payments,472101,Purchase of Care,05-Nov-2014,2816041-1467186H,893.50,CAREWATCH (DURHAM & EASINGTON) FASTFLOW ACC.
Children and Adult Services,Head of Adults,Third Party Payments,472101,Purchase of Care,05-Nov-2014,2816041-1467240H,904.80,CAREWATCH (DURHAM & EASINGTON) FASTFLOW ACC.
Children and Adult Services,Head of Adults,Third Party Payments,472101,Purchase of Care,05-Nov-2014,2816041-1467253H,"1,221.48",CAREWATCH (DURHAM & EASINGTON) FASTFLOW ACC.
Children and Adult Services,Head of Adults,Third Party Payments,472101,Purchase of Care,05-Nov-2014,2816041-1467263H,680.00,CAREWATCH (DURHAM & EASINGTON) FASTFLOW ACC.
Children and Adult Services,Head of Adults,Third Party Payments,472101,Purchase of Care,05-Nov-2014,2816041-1467265H,588.12,CAREWATCH (DURHAM & EASINGTON) FASTFLOW ACC.
Children and Adult Services,Head of Adults,Third Party Payments,472101,Purchase of Care,05-Nov-2014,2816041-1467283H,580.60,CAREWATCH (DURHAM & EASINGTON) FASTFLOW ACC.
Children and Adult Services,Head of Adults,Third Party Payments,472101,Purchase of Care,05-Nov-2014,2816041-1467452H,603.20,CAREWATCH (DURHAM & EASINGTON) FASTFLOW ACC.
Children and Adult Services,Head of Adults,Third Party Payments,472101,Purchase of Care,05-Nov-2014,2816041-1467462H,548.54,CAREWATCH (DURHAM & EASINGTON) FASTFLOW ACC.
Children and Adult Services,Head of Adults,Third Party Payments,472101,Purchase of Care,05-Nov-2014,2816041-1467628H,562.68,CAREWATCH (DURHAM & EASINGTON) FASTFLOW ACC.
Children and Adult Services,Head of Adults,Third Party Payments,472101,Purchase of Care,05-Nov-2014,2816041-1467719H,"1,492.92",CAREWATCH (DURHAM & EASINGTON) FASTFLOW ACC.
Children and Adult Services,Head of Adults,Third Party Payments,472101,Purchase of Care,05-Nov-2014,2816041-1467959H,527.80,CAREWATCH (DURHAM & EASINGTON) FASTFLOW ACC.
Children and Adult Services,Head of Adults,Third Party Payments,472101,Purchase of Care,05-Nov-2014,2816041-1468161H,757.76,CAREWATCH (DURHAM & EASINGTON) FASTFLOW ACC.
Children and Adult Services,Head of Adults,Third Party Payments,472101,Purchase of Care,05-Nov-2014,2816041-1468172H,537.24,CAREWATCH (DURHAM & EASINGTON) FASTFLOW ACC.
Children and Adult Services,Head of Adults,Third Party Payments,472101,Purchase of Care,05-Nov-2014,2816041-1468176H,633.36,CAREWATCH (DURHAM & EASINGTON) FASTFLOW ACC.
Children and Adult Services,Head of Adults,Third Party Payments,472101,Purchase of Care,05-Nov-2014,2816041-1468243H,746.47,CAREWATCH (DURHAM & EASINGTON) FASTFLOW ACC.
Children and Adult Services,Head of Adults,Third Party Payments,472101,Purchase of Care,05-Nov-2014,2816041-1468322H,"1,244.10",CAREWATCH (DURHAM & EASINGTON) FASTFLOW ACC.
Children and Adult Services,Head of Adults,Third Party Payments,472101,Purchase of Care,05-Nov-2014,2816041-1468428H,"1,108.40",CAREWATCH (DURHAM & EASINGTON) FASTFLOW ACC.
Children and Adult Services,Head of Adults,Third Party Payments,472101,Purchase of Care,05-Nov-2014,2816041-1468453H,689.92,CAREWATCH (DURHAM & EASINGTON) FASTFLOW ACC.
Children and Adult Services,Head of Adults,Third Party Payments,472101,Purchase of Care,05-Nov-2014,2816041-1468541H,599.45,CAREWATCH (DURHAM & EASINGTON) FASTFLOW ACC.
Children and Adult Services,Head of Adults,Third Party Payments,472101,Purchase of Care,05-Nov-2014,2816041-1468563H,529.70,CAREWATCH (DURHAM & EASINGTON) FASTFLOW ACC.
Children and Adult Services,Head of Adults,Third Party Payments,472101,Purchase of Care,05-Nov-2014,2816041-1468568H,656.00,CAREWATCH (DURHAM & EASINGTON) FASTFLOW ACC.
Children and Adult Services,Head of Adults,Third Party Payments,472101,Purchase of Care,05-Nov-2014,2816041-1468613H,512.73,CAREWATCH (DURHAM & EASINGTON) FASTFLOW ACC.
Children and Adult Services,Head of Adults,Third Party Payments,472101,Purchase of Care,05-Nov-2014,2816041-1468623H,678.60,CAREWATCH (DURHAM & EASINGTON) FASTFLOW ACC.
Children and Adult Services,Head of Adults,Third Party Payments,472101,Purchase of Care,05-Nov-2014,2816041-1468647H,550.44,CAREWATCH (DURHAM & EASINGTON) FASTFLOW ACC.
Children and Adult Services,Head of Adults,Third Party Payments,472101,Purchase of Care,05-Nov-2014,2816041-1468721H,502.37,CAREWATCH (DURHAM & EASINGTON) FASTFLOW ACC.
Children and Adult Services,Head of Adults,Third Party Payments,472101,Purchase of Care,05-Nov-2014,2816041-1468737H,625.82,CAREWATCH (DURHAM & EASINGTON) FASTFLOW ACC.
Children and Adult Services,Head of Adults,Third Party Payments,472101,Purchase of Care,05-Nov-2014,2816041-1468757H,656.00,CAREWATCH (DURHAM & EASINGTON) FASTFLOW ACC.
Children and Adult Services,Head of Adults,Third Party Payments,472101,Purchase of Care,05-Nov-2014,2816041-1468770H,709.70,CAREWATCH (DURHAM & EASINGTON) FASTFLOW ACC.
Children and Adult Services,Head of Adults,Third Party Payments,472101,Purchase of Care,05-Nov-2014,2816041-1468778H,554.20,CAREWATCH (DURHAM & EASINGTON) FASTFLOW ACC.
Children and Adult Services,Head of Adults,Third Party Payments,472101,Purchase of Care,05-Nov-2014,2816041-1468921H,573.98,CAREWATCH (DURHAM & EASINGTON) FASTFLOW ACC.
Children and Adult Services,Head of Adults,Third Party Payments,472101,Purchase of Care,05-Nov-2014,2816041-1469038H,565.50,CAREWATCH (DURHAM & EASINGTON) FASTFLOW ACC.
Children and Adult Services,Head of Adults,Third Party Payments,472101,Purchase of Care,05-Nov-2014,2816041-1469129H,"1,770.02",CAREWATCH (DURHAM & EASINGTON) FASTFLOW ACC.
Children and Adult Services,Head of Adults,Third Party Payments,472101,Purchase of Care,05-Nov-2014,2816041-1469169H,769.08,CAREWATCH (DURHAM & EASINGTON) FASTFLOW ACC.
Children and Adult Services,Head of Adults,Third Party Payments,472101,Purchase of Care,05-Nov-2014,2816041-1469317H,596.61,CAREWATCH (DURHAM & EASINGTON) FASTFLOW ACC.
Children and Adult Services,Head of Adults,Third Party Payments,472101,Purchase of Care,05-Nov-2014,2816041-1469365H,648.44,CAREWATCH (DURHAM & EASINGTON) FASTFLOW ACC.
Children and Adult Services,Head of Adults,Third Party Payments,472101,Purchase of Care,05-Nov-2014,2816041-1469508H,656.00,CAREWATCH (DURHAM & EASINGTON) FASTFLOW ACC.
Children and Adult Services,Head of Adults,Third Party Payments,472101,Purchase of Care,05-Nov-2014,2816041-1469535H,821.88,CAREWATCH (DURHAM & EASINGTON) FASTFLOW ACC.
Children and Adult Services,Head of Adults,Third Party Payments,472101,Purchase of Care,05-Nov-2014,2816041-1469552H,"1,387.36",CAREWATCH (DURHAM & EASINGTON) FASTFLOW ACC.
Children and Adult Services,Head of Adults,Third Party Payments,472101,Purchase of Care,05-Nov-2014,2816041-1469631H,520.28,CAREWATCH (DURHAM & EASINGTON) FASTFLOW ACC.
Children and Adult Services,Head of Adults,Third Party Payments,472101,Purchase of Care,05-Nov-2014,2816041-1469683H,904.81,CAREWATCH (DURHAM & EASINGTON) FASTFLOW ACC.
Children and Adult Services,Head of Adults,Third Party Payments,472101,Purchase of Care,05-Nov-2014,2816041-1469853H,686.16,CAREWATCH (DURHAM & EASINGTON) FASTFLOW ACC.
Children and Adult Services,Head of Adults,Third Party Payments,472101,Purchase of Care,05-Nov-2014,2816041-1470047H,584.36,CAREWATCH (DURHAM & EASINGTON) FASTFLOW ACC.
Children and Adult Services,Head of Adults,Third Party Payments,472101,Purchase of Care,05-Nov-2014,2816041-1470115H,757.76,CAREWATCH (DURHAM & EASINGTON) FASTFLOW ACC.
Children and Adult Services,Head of Adults,Third Party Payments,472101,Purchase of Care,05-Nov-2014,2816041-1470197H,706.89,CAREWATCH (DURHAM & EASINGTON) FASTFLOW ACC.
Children and Adult Services,Head of Adults,Third Party Payments,472101,Purchase of Care,05-Nov-2014,2816041-1470249H,"1,764.36",CAREWATCH (DURHAM & EASINGTON) FASTFLOW ACC.
Children and Adult Services,Head of Adults,Third Party Payments,472101,Purchase of Care,05-Nov-2014,2816041-1470453H,853.92,CAREWATCH (DURHAM & EASINGTON) FASTFLOW ACC.
Children and Adult Services,Head of Adults,Third Party Payments,472101,Purchase of Care,05-Nov-2014,2816041-1470825H,622.07,CAREWATCH (DURHAM & EASINGTON) FASTFLOW ACC.
Children and Adult Services,Head of Adults,Third Party Payments,478101,Purchase of Care,05-Nov-2014,2816042-1464396H,"1,056.00",CAREWATCH (DURHAM & EASINGTON) FASTFLOW ACC.
Children and Adult Services,Head of Adults,Third Party Payments,478101,Purchase of Care,05-Nov-2014,2816042-1464654H,"2,790.76",CAREWATCH (DURHAM & EASINGTON) FASTFLOW ACC.
Children and Adult Services,Head of Adults,Third Party Payments,478101,Purchase of Care,05-Nov-2014,2816042-1464670H,902.00,CAREWATCH (DURHAM & EASINGTON) FASTFLOW ACC.
Children and Adult Services,Head of Adults,Third Party Payments,478101,Purchase of Care,05-Nov-2014,2816042-1464708H,"1,320.00",CAREWATCH (DURHAM & EASINGTON) FASTFLOW ACC.
Children and Adult Services,Head of Adults,Third Party Payments,478101,Purchase of Care,05-Nov-2014,2816042-1464712H,"2,791.04",CAREWATCH (DURHAM & EASINGTON) FASTFLOW ACC.
Children and Adult Services,Head of Adults,Third Party Payments,478101,Purchase of Care,05-Nov-2014,2816042-1464747H,594.00,CAREWATCH (DURHAM & EASINGTON) FASTFLOW ACC.
Children and Adult Services,Head of Adults,Third Party Payments,478101,Purchase of Care,05-Nov-2014,2816042-1464759H,924.00,CAREWATCH (DURHAM & EASINGTON) FASTFLOW ACC.
Children and Adult Services,Head of Adults,Third Party Payments,478101,Purchase of Care,05-Nov-2014,2816042-1464779H,"1,210.00",CAREWATCH (DURHAM & EASINGTON) FASTFLOW ACC.
Children and Adult Services,Head of Adults,Third Party Payments,478101,Purchase of Care,05-Nov-2014,2816042-1464799H,528.00,CAREWATCH (DURHAM & EASINGTON) FASTFLOW ACC.
Children and Adult Services,Head of Adults,Third Party Payments,478101,Purchase of Care,05-Nov-2014,2816042-1464812H,880.00,CAREWATCH (DURHAM & EASINGTON) FASTFLOW ACC.
Children and Adult Services,Head of Adults,Third Party Payments,478101,Purchase of Care,05-Nov-2014,2816042-1464816H,748.00,CAREWATCH (DURHAM & EASINGTON) FASTFLOW ACC.
Children and Adult Services,Head of Adults,Third Party Payments,478101,Purchase of Care,05-Nov-2014,2816042-1464920H,"1,188.00",CAREWATCH (DURHAM & EASINGTON) FASTFLOW ACC.
Children and Adult Services,Head of Adults,Third Party Payments,478101,Purchase of Care,05-Nov-2014,2816042-1465503H,"1,801.04",CAREWATCH (DURHAM & EASINGTON) FASTFLOW ACC.
Children and Adult Services,Head of Adults,Third Party Payments,478101,Purchase of Care,05-Nov-2014,2816042-1465653H,682.00,CAREWATCH (DURHAM & EASINGTON) FASTFLOW ACC.
Children and Adult Services,Head of Adults,Third Party Payments,478101,Purchase of Care,05-Nov-2014,2816042-1465724H,"1,672.00",CAREWATCH (DURHAM & EASINGTON) FASTFLOW ACC.
Children and Adult Services,Head of Adults,Third Party Payments,478101,Purchase of Care,05-Nov-2014,2816042-1466814H,"1,254.00",CAREWATCH (DURHAM & EASINGTON) FASTFLOW ACC.
Children and Adult Services,Head of Adults,Third Party Payments,478101,Purchase of Care,05-Nov-2014,2816042-1467007H,572.00,CAREWATCH (DURHAM & EASINGTON) FASTFLOW ACC.
Children and Adult Services,Head of Adults,Third Party Payments,478101,Purchase of Care,05-Nov-2014,2816042-1467762H,"1,100.00",CAREWATCH (DURHAM & EASINGTON) FASTFLOW ACC.
Children and Adult Services,Head of Adults,Third Party Payments,478101,Purchase of Care,05-Nov-2014,2816042-1470198H,"1,496.00",CAREWATCH (DURHAM & EASINGTON) FASTFLOW ACC.
Children and Adult Services,Head of Adults,Transfer Payments,515201,Social Services Clients,05-Nov-2014,2816047-1466907H,"1,304.44",REDACTED - PAYMENT TO INDIVIDUAL
Children and Adult Services,Head of Adults,Transfer Payments,515201,Social Services Clients,05-Nov-2014,2816048-1467428H,"2,122.44",REDACTED - PAYMENT TO INDIVIDUAL
Children and Adult Services,Head of Adults,Transfer Payments,515201,Social Services Clients,05-Nov-2014,2816049-1465829H,"1,680.00",REDACTED - PAYMENT TO INDIVIDUAL
Children and Adult Services,Head of Adults,Transfer Payments,515201,Social Services Clients,05-Nov-2014,2816049-1465830H,"3,632.00",REDACTED - PAYMENT TO INDIVIDUAL
Children and Adult Services,Head of Adults,Transfer Payments,515201,Social Services Clients,05-Nov-2014,2816051-1468262H,635.60,REDACTED - PAYMENT TO INDIVIDUAL
Children and Adult Services,Head of Adults,Transfer Payments,515201,Social Services Clients,05-Nov-2014,2816053-1465225H,"1,772.40",REDACTED - PAYMENT TO INDIVIDUAL
Children and Adult Services,Head of Adults,Transfer Payments,515201,Social Services Clients,05-Nov-2014,2816054-1469339H,"1,611.72",REDACTED - PAYMENT TO INDIVIDUAL
Children and Adult Services,Head of Adults,Third Party Payments,472101,Purchase of Care,05-Nov-2014,2816056-1466254H,"1,153.36",CASTLE CARE TEESDALE LTD.
Children and Adult Services,Head of Adults,Third Party Payments,472101,Purchase of Care,05-Nov-2014,2816056-1468242H,657.30,CASTLE CARE TEESDALE LTD.
Children and Adult Services,Head of Adults,Third Party Payments,472101,Purchase of Care,05-Nov-2014,2816056-1468669H,"1,455.92",CASTLE CARE TEESDALE LTD.
Children and Adult Services,Head of Adults,Third Party Payments,472101,Purchase of Care,05-Nov-2014,2816056-1470332H,565.60,CASTLE CARE TEESDALE LTD.
Children and Adult Services,Head of Adults,Third Party Payments,472101,Purchase of Care,05-Nov-2014,2816056-1471135H,"1,199.12",CASTLE CARE TEESDALE LTD.
Children and Adult Services,Head of Adults,Third Party Payments,472101,Purchase of Care,05-Nov-2014,2816056-1471146H,776.32,CASTLE CARE TEESDALE LTD.
Children and Adult Services,Head of Adults,Third Party Payments,472101,Purchase of Care,05-Nov-2014,2816056-1471147H,"1,698.70",CASTLE CARE TEESDALE LTD.
Children and Adult Services,Head of Adults,Transfer Payments,515201,Social Services Clients,05-Nov-2014,2816057-1468592H,"2,497.00",REDACTED - PAYMENT TO INDIVIDUAL
Children and Adult Services,Head of Adults,Transfer Payments,515201,Social Services Clients,05-Nov-2014,2816061-1468065H,738.52,REDACTED - PAYMENT TO INDIVIDUAL
Children and Adult Services,Head of Adults,Transfer Payments,515201,Social Services Clients,05-Nov-2014,2816062-1464424H,"1,327.96",REDACTED - PAYMENT TO INDIVIDUAL
Children and Adult Services,Head of Adults,Transfer Payments,515201,Social Services Clients,05-Nov-2014,2816065-1466762H,"1,867.08",REDACTED - PAYMENT TO INDIVIDUAL
Children and Adult Services,Head of Adults,Transfer Payments,515201,Social Services Clients,05-Nov-2014,2816066-1466761H,844.00,REDACTED - PAYMENT TO INDIVIDUAL
Children and Adult Services,Head of Adults,Third Party Payments,472101,Purchase of Care,05-Nov-2014,2816072-1464797H,627.71,CHOICE HEALTHCARE (APPLEJACK).
Children and Adult Services,Head of Adults,Third Party Payments,472101,Purchase of Care,05-Nov-2014,2816072-1464893H,537.24,CHOICE HEALTHCARE (APPLEJACK).
Children and Adult Services,Head of Adults,Third Party Payments,472101,Purchase of Care,05-Nov-2014,2816072-1465505H,603.20,CHOICE HEALTHCARE (APPLEJACK).
Children and Adult Services,Head of Adults,Third Party Payments,472101,Purchase of Care,05-Nov-2014,2816072-1465880H,580.60,CHOICE HEALTHCARE (APPLEJACK).
Children and Adult Services,Head of Adults,Third Party Payments,472101,Purchase of Care,05-Nov-2014,2816072-1466751H,"1,221.48",CHOICE HEALTHCARE (APPLEJACK).
Children and Adult Services,Head of Adults,Third Party Payments,472101,Purchase of Care,05-Nov-2014,2816072-1467022H,565.47,CHOICE HEALTHCARE (APPLEJACK).
Children and Adult Services,Head of Adults,Third Party Payments,472101,Purchase of Care,05-Nov-2014,2816072-1467117H,"1,165.94",CHOICE HEALTHCARE (APPLEJACK).
Children and Adult Services,Head of Adults,Third Party Payments,472101,Purchase of Care,05-Nov-2014,2816072-1467458H,682.36,CHOICE HEALTHCARE (APPLEJACK).
Children and Adult Services,Head of Adults,Third Party Payments,472101,Purchase of Care,05-Nov-2014,2816072-1467773H,514.61,CHOICE HEALTHCARE (APPLEJACK).
Children and Adult Services,Head of Adults,Third Party Payments,472101,Purchase of Care,05-Nov-2014,2816072-1467821H,588.12,CHOICE HEALTHCARE (APPLEJACK).
Children and Adult Services,Head of Adults,Third Party Payments,472101,Purchase of Care,05-Nov-2014,2816072-1468122H,667.28,CHOICE HEALTHCARE (APPLEJACK).
Children and Adult Services,Head of Adults,Third Party Payments,472101,Purchase of Care,05-Nov-2014,2816072-1468156H,769.08,CHOICE HEALTHCARE (APPLEJACK).
Children and Adult Services,Head of Adults,Third Party Payments,472101,Purchase of Care,05-Nov-2014,2816072-1468207H,599.43,CHOICE HEALTHCARE (APPLEJACK).
Children and Adult Services,Head of Adults,Third Party Payments,472101,Purchase of Care,05-Nov-2014,2816072-1468506H,606.96,CHOICE HEALTHCARE (APPLEJACK).
Children and Adult Services,Head of Adults,Third Party Payments,472101,Purchase of Care,05-Nov-2014,2816072-1468851H,633.36,CHOICE HEALTHCARE (APPLEJACK).
Children and Adult Services,Head of Adults,Third Party Payments,472101,Purchase of Care,05-Nov-2014,2816072-1468935H,"1,100.84",CHOICE HEALTHCARE (APPLEJACK).
Children and Adult Services,Head of Adults,Third Party Payments,472101,Purchase of Care,05-Nov-2014,2816072-1468948H,727.60,CHOICE HEALTHCARE (APPLEJACK).
Children and Adult Services,Head of Adults,Third Party Payments,472101,Purchase of Care,05-Nov-2014,2816072-1469202H,663.54,CHOICE HEALTHCARE (APPLEJACK).
Children and Adult Services,Head of Adults,Third Party Payments,472101,Purchase of Care,05-Nov-2014,2816072-1469350H,588.12,CHOICE HEALTHCARE (APPLEJACK).
Children and Adult Services,Head of Adults,Third Party Payments,472101,Purchase of Care,05-Nov-2014,2816072-1469469H,723.85,CHOICE HEALTHCARE (APPLEJACK).
Children and Adult Services,Head of Adults,Third Party Payments,472101,Purchase of Care,05-Nov-2014,2816072-1469475H,561.72,CHOICE HEALTHCARE (APPLEJACK).
Children and Adult Services,Head of Adults,Third Party Payments,472101,Purchase of Care,05-Nov-2014,2816072-1469560H,938.73,CHOICE HEALTHCARE (APPLEJACK).
Children and Adult Services,Head of Adults,Third Party Payments,472101,Purchase of Care,05-Nov-2014,2816072-1469651H,698.41,CHOICE HEALTHCARE (APPLEJACK).
Children and Adult Services,Head of Adults,Third Party Payments,472101,Purchase of Care,05-Nov-2014,2816072-1469890H,505.75,CHOICE HEALTHCARE (APPLEJACK).
Children and Adult Services,Head of Adults,Third Party Payments,472101,Purchase of Care,05-Nov-2014,2816072-1470193H,639.02,CHOICE HEALTHCARE (APPLEJACK).
Children and Adult Services,Head of Adults,Third Party Payments,472101,Purchase of Care,05-Nov-2014,2816072-1470263H,517.43,CHOICE HEALTHCARE (APPLEJACK).
Children and Adult Services,Head of Adults,Third Party Payments,472101,Purchase of Care,05-Nov-2014,2816072-1470309H,653.16,CHOICE HEALTHCARE (APPLEJACK).
Children and Adult Services,Head of Adults,Third Party Payments,472101,Purchase of Care,05-Nov-2014,2816072-1470386H,"2,004.71",CHOICE HEALTHCARE (APPLEJACK).
Children and Adult Services,Head of Adults,Third Party Payments,472101,Purchase of Care,05-Nov-2014,2816072-1470472H,670.44,CHOICE HEALTHCARE (APPLEJACK).
Children and Adult Services,Head of Adults,Third Party Payments,472101,Purchase of Care,05-Nov-2014,2816072-1470512H,731.38,CHOICE HEALTHCARE (APPLEJACK).
Children and Adult Services,Head of Adults,Third Party Payments,472101,Purchase of Care,05-Nov-2014,2816072-1470519H,774.74,CHOICE HEALTHCARE (APPLEJACK).
Children and Adult Services,Head of Adults,Third Party Payments,472101,Purchase of Care,05-Nov-2014,2816072-1470685H,524.04,CHOICE HEALTHCARE (APPLEJACK).
Children and Adult Services,Head of Adults,Third Party Payments,472101,Purchase of Care,05-Nov-2014,2816072-1470741H,560.80,CHOICE HEALTHCARE (APPLEJACK).
Children and Adult Services,Head of Adults,Third Party Payments,472101,Purchase of Care,05-Nov-2014,2816072-1470764H,540.89,CHOICE HEALTHCARE (APPLEJACK).
Children and Adult Services,Head of Adults,Third Party Payments,472101,Purchase of Care,05-Nov-2014,2816072-1470785H,"1,374.32",CHOICE HEALTHCARE (APPLEJACK).
Children and Adult Services,Head of Adults,Third Party Payments,472101,Purchase of Care,05-Nov-2014,2816073-1465865H,"1,260.73",CHOICE HEALTHCARE (WILLOW) LTD.
Children and Adult Services,Head of Adults,Third Party Payments,472101,Purchase of Care,05-Nov-2014,2816074-1464425H,639.02,CHOICE HEALTHCARE LTD.
Children and Adult Services,Head of Adults,Third Party Payments,472101,Purchase of Care,05-Nov-2014,2816074-1465037H,904.80,CHOICE HEALTHCARE LTD.
Children and Adult Services,Head of Adults,Third Party Payments,472101,Purchase of Care,05-Nov-2014,2816074-1465136H,783.23,CHOICE HEALTHCARE LTD.
Children and Adult Services,Head of Adults,Third Party Payments,472101,Purchase of Care,05-Nov-2014,2816074-1465174H,"1,385.48",CHOICE HEALTHCARE LTD.
Children and Adult Services,Head of Adults,Third Party Payments,472101,Purchase of Care,05-Nov-2014,2816074-1465510H,"1,229.04",CHOICE HEALTHCARE LTD.
Children and Adult Services,Head of Adults,Third Party Payments,472101,Purchase of Care,05-Nov-2014,2816074-1465986H,"1,474.08",CHOICE HEALTHCARE LTD.
Children and Adult Services,Head of Adults,Third Party Payments,472101,Purchase of Care,05-Nov-2014,2816074-1468057H,"1,477.84",CHOICE HEALTHCARE LTD.
Children and Adult Services,Head of Adults,Third Party Payments,472101,Purchase of Care,05-Nov-2014,2816074-1468355H,642.79,CHOICE HEALTHCARE LTD.
Children and Adult Services,Head of Adults,Third Party Payments,472101,Purchase of Care,05-Nov-2014,2816074-1469135H,"1,083.36",CHOICE HEALTHCARE LTD.
Children and Adult Services,Head of Adults,Third Party Payments,472101,Purchase of Care,05-Nov-2014,2816074-1469803H,524.04,CHOICE HEALTHCARE LTD.
Children and Adult Services,Head of Adults,Third Party Payments,472101,Purchase of Care,05-Nov-2014,2816074-1469989H,549.49,CHOICE HEALTHCARE LTD.
Children and Adult Services,Head of Adults,Third Party Payments,472101,Purchase of Care,05-Nov-2014,2816074-1470097H,561.72,CHOICE HEALTHCARE LTD.
Children and Adult Services,Head of Adults,Third Party Payments,472101,Purchase of Care,05-Nov-2014,2816074-1470187H,"1,040.52",CHOICE HEALTHCARE LTD.
Children and Adult Services,Head of Adults,Third Party Payments,472101,Purchase of Care,05-Nov-2014,2816074-1470438H,583.42,CHOICE HEALTHCARE LTD.
Children and Adult Services,Head of Adults,Third Party Payments,472101,Purchase of Care,05-Nov-2014,2816074-1470446H,"1,410.93",CHOICE HEALTHCARE LTD.
Children and Adult Services,Head of Adults,Third Party Payments,472101,Purchase of Care,05-Nov-2014,2816074-1470515H,627.70,CHOICE HEALTHCARE LTD.
Children and Adult Services,Head of Adults,Third Party Payments,478101,Purchase of Care,05-Nov-2014,2816075-1465079H,"3,545.64",CHOICES COMMUNITY CARE SERVICES LTD.
Children and Adult Services,Head of Adults,Third Party Payments,478101,Purchase of Care,05-Nov-2014,2816075-1465881H,"5,528.60",CHOICES COMMUNITY CARE SERVICES LTD.
Children and Adult Services,Head of Adults,Third Party Payments,478101,Purchase of Care,05-Nov-2014,2816075-1466025H,"3,003.35",CHOICES COMMUNITY CARE SERVICES LTD.
Children and Adult Services,Head of Adults,Third Party Payments,478101,Purchase of Care,05-Nov-2014,2816075-1466315H,"3,442.04",CHOICES COMMUNITY CARE SERVICES LTD.
Children and Adult Services,Head of Adults,Third Party Payments,478101,Purchase of Care,05-Nov-2014,2816075-1466342H,"3,567.64",CHOICES COMMUNITY CARE SERVICES LTD.
Children and Adult Services,Head of Adults,Third Party Payments,478101,Purchase of Care,05-Nov-2014,2816075-1466846H,"3,854.92",CHOICES COMMUNITY CARE SERVICES LTD.
Children and Adult Services,Head of Adults,Transfer Payments,515201,Social Services Clients,05-Nov-2014,2816076-1467042H,621.04,REDACTED - PAYMENT TO INDIVIDUAL
Children and Adult Services,Head of Adults,Transfer Payments,515209,Social Services Clients,05-Nov-2014,2816078-1470946D,726.84,REDACTED - PAYMENT TO INDIVIDUAL
Children and Adult Services,Head of Adults,Transfer Payments,515201,Social Services Clients,05-Nov-2014,2816079-1467292H,"2,389.20",REDACTED - PAYMENT TO INDIVIDUAL
Children and Adult Services,Head of Adults,Transfer Payments,515209,Social Services Clients,05-Nov-2014,2816081-1464380D,"1,622.40",REDACTED - PAYMENT TO INDIVIDUAL
Children and Adult Services,Head of Adults,Transfer Payments,515209,Social Services Clients,05-Nov-2014,2816082-1464786D,984.00,REDACTED - PAYMENT TO INDIVIDUAL
Children and Adult Services,Head of Adults,Transfer Payments,515209,Social Services Clients,05-Nov-2014,2816083-1465725D,695.88,REDACTED - PAYMENT TO INDIVIDUAL
Children and Adult Services,Head of Adults,Transfer Payments,515201,Social Services Clients,05-Nov-2014,2816086-1465504H,665.40,REDACTED - PAYMENT TO INDIVIDUAL
Children and Adult Services,Head of Adults,Transfer Payments,515201,Social Services Clients,05-Nov-2014,2816087-1467164H,664.64,REDACTED - PAYMENT TO INDIVIDUAL
Children and Adult Services,Head of Adults,Third Party Payments,472101,Purchase of Care,05-Nov-2014,2816089-1464352H,628.64,COMFORT CALL LTD.
Children and Adult Services,Head of Adults,Third Party Payments,472101,Purchase of Care,05-Nov-2014,2816089-1464483H,508.96,COMFORT CALL LTD.
Children and Adult Services,Head of Adults,Third Party Payments,472101,Purchase of Care,05-Nov-2014,2816089-1464580H,780.40,COMFORT CALL LTD.
Children and Adult Services,Head of Adults,Third Party Payments,472101,Purchase of Care,05-Nov-2014,2816089-1464961H,"1,229.04",COMFORT CALL LTD.
Children and Adult Services,Head of Adults,Third Party Payments,472101,Purchase of Care,05-Nov-2014,2816089-1465003H,933.07,COMFORT CALL LTD.
Children and Adult Services,Head of Adults,Third Party Payments,472101,Purchase of Care,05-Nov-2014,2816089-1465023H,527.80,COMFORT CALL LTD.
Children and Adult Services,Head of Adults,Third Party Payments,472101,Purchase of Care,05-Nov-2014,2816089-1465028H,"1,306.32",COMFORT CALL LTD.
Children and Adult Services,Head of Adults,Third Party Payments,472101,Purchase of Care,05-Nov-2014,2816089-1465129H,859.56,COMFORT CALL LTD.
Children and Adult Services,Head of Adults,Third Party Payments,472101,Purchase of Care,05-Nov-2014,2816089-1465368H,686.16,COMFORT CALL LTD.
Children and Adult Services,Head of Adults,Third Party Payments,472101,Purchase of Care,05-Nov-2014,2816089-1465408H,503.31,COMFORT CALL LTD.
Children and Adult Services,Head of Adults,Third Party Payments,472101,Purchase of Care,05-Nov-2014,2816089-1465432H,"1,221.47",COMFORT CALL LTD.
Children and Adult Services,Head of Adults,Third Party Payments,472101,Purchase of Care,05-Nov-2014,2816089-1465572H,541.95,COMFORT CALL LTD.
Children and Adult Services,Head of Adults,Third Party Payments,472101,Purchase of Care,05-Nov-2014,2816089-1465627H,"2,148.92",COMFORT CALL LTD.
Children and Adult Services,Head of Adults,Third Party Payments,472101,Purchase of Care,05-Nov-2014,2816089-1466360H,964.19,COMFORT CALL LTD.
Children and Adult Services,Head of Adults,Third Party Payments,472101,Purchase of Care,05-Nov-2014,2816089-1466363H,524.04,COMFORT CALL LTD.
Children and Adult Services,Head of Adults,Third Party Payments,472101,Purchase of Care,05-Nov-2014,2816089-1466388H,580.60,COMFORT CALL LTD.
Children and Adult Services,Head of Adults,Third Party Payments,472101,Purchase of Care,05-Nov-2014,2816089-1466447H,633.37,COMFORT CALL LTD.
Children and Adult Services,Head of Adults,Third Party Payments,472101,Purchase of Care,05-Nov-2014,2816089-1466465H,"1,155.51",COMFORT CALL LTD.
Children and Adult Services,Head of Adults,Third Party Payments,472101,Purchase of Care,05-Nov-2014,2816089-1466473H,588.12,COMFORT CALL LTD.
Children and Adult Services,Head of Adults,Third Party Payments,472101,Purchase of Care,05-Nov-2014,2816089-1466511H,576.80,COMFORT CALL LTD.
Children and Adult Services,Head of Adults,Third Party Payments,472101,Purchase of Care,05-Nov-2014,2816089-1466513H,"1,470.30",COMFORT CALL LTD.
Children and Adult Services,Head of Adults,Third Party Payments,472101,Purchase of Care,05-Nov-2014,2816089-1466533H,899.15,COMFORT CALL LTD.
Children and Adult Services,Head of Adults,Third Party Payments,472101,Purchase of Care,05-Nov-2014,2816089-1466565H,"1,425.08",COMFORT CALL LTD.
Children and Adult Services,Head of Adults,Third Party Payments,472101,Purchase of Care,05-Nov-2014,2816089-1466569H,"1,249.75",COMFORT CALL LTD.
Children and Adult Services,Head of Adults,Third Party Payments,472101,Purchase of Care,05-Nov-2014,2816089-1466574H,501.40,COMFORT CALL LTD.
Children and Adult Services,Head of Adults,Third Party Payments,472101,Purchase of Care,05-Nov-2014,2816089-1466669H,776.64,COMFORT CALL LTD.
Children and Adult Services,Head of Adults,Third Party Payments,472101,Purchase of Care,05-Nov-2014,2816089-1466796H,622.04,COMFORT CALL LTD.
Children and Adult Services,Head of Adults,Third Party Payments,472101,Purchase of Care,05-Nov-2014,2816089-1466810H,633.38,COMFORT CALL LTD.
Children and Adult Services,Head of Adults,Third Party Payments,472101,Purchase of Care,05-Nov-2014,2816089-1466948H,514.61,COMFORT CALL LTD.
Children and Adult Services,Head of Adults,Third Party Payments,472101,Purchase of Care,05-Nov-2014,2816089-1466992H,527.82,COMFORT CALL LTD.
Children and Adult Services,Head of Adults,Third Party Payments,472101,Purchase of Care,05-Nov-2014,2816089-1467027H,887.83,COMFORT CALL LTD.
Children and Adult Services,Head of Adults,Third Party Payments,472101,Purchase of Care,05-Nov-2014,2816089-1467036H,853.91,COMFORT CALL LTD.
Children and Adult Services,Head of Adults,Third Party Payments,472101,Purchase of Care,05-Nov-2014,2816089-1467087H,"1,238.45",COMFORT CALL LTD.
Children and Adult Services,Head of Adults,Third Party Payments,472101,Purchase of Care,05-Nov-2014,2816089-1467092H,"1,161.16",COMFORT CALL LTD.
Children and Adult Services,Head of Adults,Third Party Payments,472101,Purchase of Care,05-Nov-2014,2816089-1467129H,"1,108.38",COMFORT CALL LTD.
Children and Adult Services,Head of Adults,Third Party Payments,472101,Purchase of Care,05-Nov-2014,2816089-1467153H,557.96,COMFORT CALL LTD.
Children and Adult Services,Head of Adults,Third Party Payments,472101,Purchase of Care,05-Nov-2014,2816089-1467251H,"1,063.16",COMFORT CALL LTD.
Children and Adult Services,Head of Adults,Third Party Payments,472101,Purchase of Care,05-Nov-2014,2816089-1467261H,603.19,COMFORT CALL LTD.
Children and Adult Services,Head of Adults,Third Party Payments,472101,Purchase of Care,05-Nov-2014,2816089-1467323H,508.96,COMFORT CALL LTD.
Children and Adult Services,Head of Adults,Third Party Payments,472101,Purchase of Care,05-Nov-2014,2816089-1467483H,"1,459.00",COMFORT CALL LTD.
Children and Adult Services,Head of Adults,Third Party Payments,472101,Purchase of Care,05-Nov-2014,2816089-1467609H,520.27,COMFORT CALL LTD.
Children and Adult Services,Head of Adults,Third Party Payments,472101,Purchase of Care,05-Nov-2014,2816089-1467639H,603.20,COMFORT CALL LTD.
Children and Adult Services,Head of Adults,Third Party Payments,472101,Purchase of Care,05-Nov-2014,2816089-1467660H,539.13,COMFORT CALL LTD.
Children and Adult Services,Head of Adults,Third Party Payments,472101,Purchase of Care,05-Nov-2014,2816089-1467828H,950.04,COMFORT CALL LTD.
Children and Adult Services,Head of Adults,Third Party Payments,472101,Purchase of Care,05-Nov-2014,2816089-1467902H,"1,007.54",COMFORT CALL LTD.
Children and Adult Services,Head of Adults,Third Party Payments,472101,Purchase of Care,05-Nov-2014,2816089-1467955H,516.48,COMFORT CALL LTD.
Children and Adult Services,Head of Adults,Third Party Payments,472101,Purchase of Care,05-Nov-2014,2816089-1468049H,"1,055.60",COMFORT CALL LTD.
Children and Adult Services,Head of Adults,Third Party Payments,472101,Purchase of Care,05-Nov-2014,2816089-1468066H,"1,492.92",COMFORT CALL LTD.
Children and Adult Services,Head of Adults,Third Party Payments,472101,Purchase of Care,05-Nov-2014,2816089-1468151H,591.88,COMFORT CALL LTD.
Children and Adult Services,Head of Adults,Third Party Payments,472101,Purchase of Care,05-Nov-2014,2816089-1468206H,791.72,COMFORT CALL LTD.
Children and Adult Services,Head of Adults,Third Party Payments,472101,Purchase of Care,05-Nov-2014,2816089-1468427H,527.80,COMFORT CALL LTD.
Children and Adult Services,Head of Adults,Third Party Payments,472101,Purchase of Care,05-Nov-2014,2816089-1468434H,841.65,COMFORT CALL LTD.
Children and Adult Services,Head of Adults,Third Party Payments,472101,Purchase of Care,05-Nov-2014,2816089-1468643H,644.68,COMFORT CALL LTD.
Children and Adult Services,Head of Adults,Third Party Payments,472101,Purchase of Care,05-Nov-2014,2816089-1468655H,561.72,COMFORT CALL LTD.
Children and Adult Services,Head of Adults,Third Party Payments,472101,Purchase of Care,05-Nov-2014,2816089-1468692H,"1,259.20",COMFORT CALL LTD.
Children and Adult Services,Head of Adults,Third Party Payments,472101,Purchase of Care,05-Nov-2014,2816089-1469036H,667.28,COMFORT CALL LTD.
Children and Adult Services,Head of Adults,Third Party Payments,472101,Purchase of Care,05-Nov-2014,2816089-1469041H,695.57,COMFORT CALL LTD.
Children and Adult Services,Head of Adults,Third Party Payments,472101,Purchase of Care,05-Nov-2014,2816089-1469077H,559.84,COMFORT CALL LTD.
Children and Adult Services,Head of Adults,Third Party Payments,472101,Purchase of Care,05-Nov-2014,2816089-1469309H,"1,266.72",COMFORT CALL LTD.
Children and Adult Services,Head of Adults,Third Party Payments,472101,Purchase of Care,05-Nov-2014,2816089-1469347H,684.26,COMFORT CALL LTD.
Children and Adult Services,Head of Adults,Third Party Payments,472101,Purchase of Care,05-Nov-2014,2816089-1469422H,527.80,COMFORT CALL LTD.
Children and Adult Services,Head of Adults,Third Party Payments,472101,Purchase of Care,05-Nov-2014,2816089-1469423H,676.71,COMFORT CALL LTD.
Children and Adult Services,Head of Adults,Third Party Payments,472101,Purchase of Care,05-Nov-2014,2816089-1469441H,"1,235.63",COMFORT CALL LTD.
Children and Adult Services,Head of Adults,Third Party Payments,472101,Purchase of Care,05-Nov-2014,2816089-1469447H,591.90,COMFORT CALL LTD.
Children and Adult Services,Head of Adults,Third Party Payments,472101,Purchase of Care,05-Nov-2014,2816089-1469466H,"1,259.20",COMFORT CALL LTD.
Children and Adult Services,Head of Adults,Third Party Payments,472101,Purchase of Care,05-Nov-2014,2816089-1469489H,"1,294.99",COMFORT CALL LTD.
Children and Adult Services,Head of Adults,Third Party Payments,472101,Purchase of Care,05-Nov-2014,2816089-1469598H,531.59,COMFORT CALL LTD.
Children and Adult Services,Head of Adults,Third Party Payments,472101,Purchase of Care,05-Nov-2014,2816089-1469640H,551.36,COMFORT CALL LTD.
Children and Adult Services,Head of Adults,Third Party Payments,472101,Purchase of Care,05-Nov-2014,2816089-1469662H,550.44,COMFORT CALL LTD.
Children and Adult Services,Head of Adults,Third Party Payments,472101,Purchase of Care,05-Nov-2014,2816089-1469701H,550.42,COMFORT CALL LTD.
Children and Adult Services,Head of Adults,Third Party Payments,472101,Purchase of Care,05-Nov-2014,2816089-1469768H,746.48,COMFORT CALL LTD.
Children and Adult Services,Head of Adults,Third Party Payments,472101,Purchase of Care,05-Nov-2014,2816089-1469865H,"1,034.88",COMFORT CALL LTD.
Children and Adult Services,Head of Adults,Third Party Payments,472101,Purchase of Care,05-Nov-2014,2816089-1469957H,548.54,COMFORT CALL LTD.
Children and Adult Services,Head of Adults,Third Party Payments,472101,Purchase of Care,05-Nov-2014,2816089-1469983H,"1,289.36",COMFORT CALL LTD.
Children and Adult Services,Head of Adults,Third Party Payments,472101,Purchase of Care,05-Nov-2014,2816089-1470076H,556.09,COMFORT CALL LTD.
Children and Adult Services,Head of Adults,Third Party Payments,472101,Purchase of Care,05-Nov-2014,2816089-1470102H,"1,040.52",COMFORT CALL LTD.
Children and Adult Services,Head of Adults,Third Party Payments,472101,Purchase of Care,05-Nov-2014,2816089-1470148H,740.81,COMFORT CALL LTD.
Children and Adult Services,Head of Adults,Third Party Payments,472101,Purchase of Care,05-Nov-2014,2816089-1470159H,"1,425.08",COMFORT CALL LTD.
Children and Adult Services,Head of Adults,Third Party Payments,472101,Purchase of Care,05-Nov-2014,2816089-1470216H,938.72,COMFORT CALL LTD.
Children and Adult Services,Head of Adults,Third Party Payments,472101,Purchase of Care,05-Nov-2014,2816089-1470270H,569.27,COMFORT CALL LTD.
Children and Adult Services,Head of Adults,Third Party Payments,472101,Purchase of Care,05-Nov-2014,2816089-1470297H,749.28,COMFORT CALL LTD.
Children and Adult Services,Head of Adults,Third Party Payments,472101,Purchase of Care,05-Nov-2014,2816089-1470408H,"1,078.22",COMFORT CALL LTD.
Children and Adult Services,Head of Adults,Third Party Payments,472101,Purchase of Care,05-Nov-2014,2816089-1470414H,639.03,COMFORT CALL LTD.
Children and Adult Services,Head of Adults,Third Party Payments,472101,Purchase of Care,05-Nov-2014,2816089-1470496H,656.00,COMFORT CALL LTD.
Children and Adult Services,Head of Adults,Third Party Payments,472101,Purchase of Care,05-Nov-2014,2816089-1470564H,"1,304.44",COMFORT CALL LTD.
Children and Adult Services,Head of Adults,Third Party Payments,472101,Purchase of Care,05-Nov-2014,2816089-1470571H,550.44,COMFORT CALL LTD.
Children and Adult Services,Head of Adults,Third Party Payments,472101,Purchase of Care,05-Nov-2014,2816089-1470814H,612.64,COMFORT CALL LTD.
Children and Adult Services,Head of Adults,Third Party Payments,472101,Purchase of Care,05-Nov-2014,2816089-1470820H,737.98,COMFORT CALL LTD.
Children and Adult Services,Head of Adults,Third Party Payments,472101,Purchase of Care,05-Nov-2014,2816089-1471116H,"1,447.68",COMFORT CALL LTD.
Children and Adult Services,Head of Adults,Third Party Payments,478101,Purchase of Care,05-Nov-2014,2816090-1450883H,"5,012.28",COMMUNITY INTEGRATED CARE LTD.
Children and Adult Services,Head of Adults,Third Party Payments,478101,Purchase of Care,05-Nov-2014,2816090-1450930H,"4,286.52",COMMUNITY INTEGRATED CARE LTD.
Children and Adult Services,Head of Adults,Third Party Payments,478101,Purchase of Care,05-Nov-2014,2816090-1450982H,"3,892.72",COMMUNITY INTEGRATED CARE LTD.
Children and Adult Services,Head of Adults,Third Party Payments,478101,Purchase of Care,05-Nov-2014,2816090-1451120H,"5,012.28",COMMUNITY INTEGRATED CARE LTD.
Children and Adult Services,Head of Adults,Third Party Payments,478101,Purchase of Care,05-Nov-2014,2816090-1451125H,"4,129.20",COMMUNITY INTEGRATED CARE LTD.
Children and Adult Services,Head of Adults,Third Party Payments,478101,Purchase of Care,05-Nov-2014,2816090-1451128H,"5,276.88",COMMUNITY INTEGRATED CARE LTD.
Children and Adult Services,Head of Adults,Third Party Payments,478101,Purchase of Care,05-Nov-2014,2816090-1451129H,"5,012.28",COMMUNITY INTEGRATED CARE LTD.
Children and Adult Services,Head of Adults,Third Party Payments,478101,Purchase of Care,05-Nov-2014,2816090-1451130H,"3,526.76",COMMUNITY INTEGRATED CARE LTD.
Children and Adult Services,Head of Adults,Third Party Payments,478101,Purchase of Care,05-Nov-2014,2816090-1451133H,"3,526.76",COMMUNITY INTEGRATED CARE LTD.
Children and Adult Services,Head of Adults,Third Party Payments,478101,Purchase of Care,05-Nov-2014,2816090-1451208H,"5,851.44",COMMUNITY INTEGRATED CARE LTD.
Children and Adult Services,Head of Adults,Third Party Payments,478101,Purchase of Care,05-Nov-2014,2816090-1451225H,"3,892.72",COMMUNITY INTEGRATED CARE LTD.
Children and Adult Services,Head of Adults,Third Party Payments,478101,Purchase of Care,05-Nov-2014,2816090-1451228H,"4,129.20",COMMUNITY INTEGRATED CARE LTD.
Children and Adult Services,Head of Adults,Third Party Payments,478101,Purchase of Care,05-Nov-2014,2816090-1451230H,"4,129.20",COMMUNITY INTEGRATED CARE LTD.
Children and Adult Services,Head of Adults,Third Party Payments,478101,Purchase of Care,05-Nov-2014,2816090-1451271H,"6,123.60",COMMUNITY INTEGRATED CARE LTD.
Children and Adult Services,Head of Adults,Third Party Payments,478101,Purchase of Care,05-Nov-2014,2816090-1451324H,"6,819.12",COMMUNITY INTEGRATED CARE LTD.
Children and Adult Services,Head of Adults,Third Party Payments,478101,Purchase of Care,05-Nov-2014,2816090-1451338H,"4,129.20",COMMUNITY INTEGRATED CARE LTD.
Children and Adult Services,Head of Adults,Third Party Payments,478101,Purchase of Care,05-Nov-2014,2816090-1451413H,"3,526.76",COMMUNITY INTEGRATED CARE LTD.
Children and Adult Services,Head of Adults,Third Party Payments,478101,Purchase of Care,05-Nov-2014,2816090-1451428H,"3,892.72",COMMUNITY INTEGRATED CARE LTD.
Children and Adult Services,Head of Adults,Third Party Payments,478101,Purchase of Care,05-Nov-2014,2816090-1451489H,"4,129.20",COMMUNITY INTEGRATED CARE LTD.
Children and Adult Services,Head of Adults,Third Party Payments,478101,Purchase of Care,05-Nov-2014,2816090-1451548H,"4,129.20",COMMUNITY INTEGRATED CARE LTD.
Children and Adult Services,Head of Adults,Third Party Payments,478101,Purchase of Care,05-Nov-2014,2816090-1451688H,"1,280.72",COMMUNITY INTEGRATED CARE LTD.
Children and Adult Services,Head of Adults,Third Party Payments,478101,Purchase of Care,05-Nov-2014,2816090-1451786H,"3,892.72",COMMUNITY INTEGRATED CARE LTD.
Children and Adult Services,Head of Adults,Third Party Payments,478101,Purchase of Care,05-Nov-2014,2816090-1451791H,"4,286.52",COMMUNITY INTEGRATED CARE LTD.
Children and Adult Services,Head of Adults,Third Party Payments,478101,Purchase of Care,05-Nov-2014,2816090-1452088H,"5,769.80",COMMUNITY INTEGRATED CARE LTD.
Children and Adult Services,Head of Adults,Third Party Payments,478101,Purchase of Care,05-Nov-2014,2816090-1452108H,"4,286.52",COMMUNITY INTEGRATED CARE LTD.
Children and Adult Services,Head of Adults,Third Party Payments,478101,Purchase of Care,05-Nov-2014,2816090-1452233H,"3,211.60",COMMUNITY INTEGRATED CARE LTD.
Children and Adult Services,Head of Adults,Third Party Payments,478101,Purchase of Care,05-Nov-2014,2816090-1452733H,608.72,COMMUNITY INTEGRATED CARE LTD.
Children and Adult Services,Head of Adults,Third Party Payments,478101,Purchase of Care,05-Nov-2014,2816090-1453101H,"6,069.08",COMMUNITY INTEGRATED CARE LTD.
Children and Adult Services,Head of Adults,Third Party Payments,478101,Purchase of Care,05-Nov-2014,2816090-1453788H,"7,088.00",COMMUNITY INTEGRATED CARE LTD.
Children and Adult Services,Head of Adults,Third Party Payments,478101,Purchase of Care,05-Nov-2014,2816090-1454077H,"4,082.40",COMMUNITY INTEGRATED CARE LTD.
Children and Adult Services,Head of Adults,Third Party Payments,472101,Purchase of Care,05-Nov-2014,2816090-1454269H,"1,678.32",COMMUNITY INTEGRATED CARE LTD.
Children and Adult Services,Head of Adults,Third Party Payments,478101,Purchase of Care,05-Nov-2014,2816090-1454661H,608.72,COMMUNITY INTEGRATED CARE LTD.
Children and Adult Services,Head of Adults,Third Party Payments,478101,Purchase of Care,05-Nov-2014,2816090-1455860H,"1,040.00",COMMUNITY INTEGRATED CARE LTD.
Children and Adult Services,Head of Adults,Third Party Payments,478101,Purchase of Care,05-Nov-2014,2816090-1456610H,624.00,COMMUNITY INTEGRATED CARE LTD.
Children and Adult Services,Head of Adults,Third Party Payments,478101,Purchase of Care,05-Nov-2014,2816090-1457944H,"5,012.28",COMMUNITY INTEGRATED CARE LTD.
Children and Adult Services,Head of Adults,Third Party Payments,478101,Purchase of Care,05-Nov-2014,2816090-1457993H,"4,286.52",COMMUNITY INTEGRATED CARE LTD.
Children and Adult Services,Head of Adults,Third Party Payments,478101,Purchase of Care,05-Nov-2014,2816090-1458041H,"3,892.72",COMMUNITY INTEGRATED CARE LTD.
Children and Adult Services,Head of Adults,Third Party Payments,478101,Purchase of Care,05-Nov-2014,2816090-1458179H,"5,012.28",COMMUNITY INTEGRATED CARE LTD.
Children and Adult Services,Head of Adults,Third Party Payments,478101,Purchase of Care,05-Nov-2014,2816090-1458184H,"4,129.20",COMMUNITY INTEGRATED CARE LTD.
Children and Adult Services,Head of Adults,Third Party Payments,478101,Purchase of Care,05-Nov-2014,2816090-1458188H,"5,276.88",COMMUNITY INTEGRATED CARE LTD.
Children and Adult Services,Head of Adults,Third Party Payments,478101,Purchase of Care,05-Nov-2014,2816090-1458189H,"5,012.28",COMMUNITY INTEGRATED CARE LTD.
Children and Adult Services,Head of Adults,Third Party Payments,478101,Purchase of Care,05-Nov-2014,2816090-1458190H,"3,526.76",COMMUNITY INTEGRATED CARE LTD.
Children and Adult Services,Head of Adults,Third Party Payments,478101,Purchase of Care,05-Nov-2014,2816090-1458193H,"3,526.76",COMMUNITY INTEGRATED CARE LTD.
Children and Adult Services,Head of Adults,Third Party Payments,478101,Purchase of Care,05-Nov-2014,2816090-1458267H,"5,851.44",COMMUNITY INTEGRATED CARE LTD.
Children and Adult Services,Head of Adults,Third Party Payments,478101,Purchase of Care,05-Nov-2014,2816090-1458283H,"3,439.12",COMMUNITY INTEGRATED CARE LTD.
Children and Adult Services,Head of Adults,Third Party Payments,478101,Purchase of Care,05-Nov-2014,2816090-1458286H,"4,129.20",COMMUNITY INTEGRATED CARE LTD.
Children and Adult Services,Head of Adults,Third Party Payments,478101,Purchase of Care,05-Nov-2014,2816090-1458288H,"4,129.20",COMMUNITY INTEGRATED CARE LTD.
Children and Adult Services,Head of Adults,Third Party Payments,478101,Purchase of Care,05-Nov-2014,2816090-1458327H,"6,123.60",COMMUNITY INTEGRATED CARE LTD.
Children and Adult Services,Head of Adults,Third Party Payments,478101,Purchase of Care,05-Nov-2014,2816090-1458365H,848.00,COMMUNITY INTEGRATED CARE LTD.
Children and Adult Services,Head of Adults,Third Party Payments,478101,Purchase of Care,05-Nov-2014,2816090-1458383H,"6,819.12",COMMUNITY INTEGRATED CARE LTD.
Children and Adult Services,Head of Adults,Third Party Payments,478101,Purchase of Care,05-Nov-2014,2816090-1458396H,"4,129.20",COMMUNITY INTEGRATED CARE LTD.
Children and Adult Services,Head of Adults,Third Party Payments,478101,Purchase of Care,05-Nov-2014,2816090-1458472H,"3,526.76",COMMUNITY INTEGRATED CARE LTD.
Children and Adult Services,Head of Adults,Third Party Payments,478101,Purchase of Care,05-Nov-2014,2816090-1458483H,"3,892.72",COMMUNITY INTEGRATED CARE LTD.
Children and Adult Services,Head of Adults,Third Party Payments,478101,Purchase of Care,05-Nov-2014,2816090-1458542H,"4,129.20",COMMUNITY INTEGRATED CARE LTD.
Children and Adult Services,Head of Adults,Third Party Payments,478101,Purchase of Care,05-Nov-2014,2816090-1458599H,"4,129.20",COMMUNITY INTEGRATED CARE LTD.
Children and Adult Services,Head of Adults,Third Party Payments,478101,Purchase of Care,05-Nov-2014,2816090-1458743H,"1,280.72",COMMUNITY INTEGRATED CARE LTD.
Children and Adult Services,Head of Adults,Third Party Payments,478101,Purchase of Care,05-Nov-2014,2816090-1458844H,"3,892.72",COMMUNITY INTEGRATED CARE LTD.
Children and Adult Services,Head of Adults,Third Party Payments,478101,Purchase of Care,05-Nov-2014,2816090-1458849H,"4,286.52",COMMUNITY INTEGRATED CARE LTD.
Children and Adult Services,Head of Adults,Third Party Payments,478101,Purchase of Care,05-Nov-2014,2816090-1459151H,"5,565.68",COMMUNITY INTEGRATED CARE LTD.
Children and Adult Services,Head of Adults,Third Party Payments,478101,Purchase of Care,05-Nov-2014,2816090-1459170H,"4,286.52",COMMUNITY INTEGRATED CARE LTD.
Children and Adult Services,Head of Adults,Third Party Payments,478101,Purchase of Care,05-Nov-2014,2816090-1459792H,608.72,COMMUNITY INTEGRATED CARE LTD.
Children and Adult Services,Head of Adults,Third Party Payments,478101,Purchase of Care,05-Nov-2014,2816090-1460150H,"6,069.08",COMMUNITY INTEGRATED CARE LTD.
Children and Adult Services,Head of Adults,Third Party Payments,478101,Purchase of Care,05-Nov-2014,2816090-1460825H,"7,088.00",COMMUNITY INTEGRATED CARE LTD.
Children and Adult Services,Head of Adults,Third Party Payments,478101,Purchase of Care,05-Nov-2014,2816090-1461114H,"4,082.40",COMMUNITY INTEGRATED CARE LTD.
Children and Adult Services,Head of Adults,Third Party Payments,472101,Purchase of Care,05-Nov-2014,2816090-1461302H,"1,678.32",COMMUNITY INTEGRATED CARE LTD.
Children and Adult Services,Head of Adults,Third Party Payments,478101,Purchase of Care,05-Nov-2014,2816090-1462531H,560.00,COMMUNITY INTEGRATED CARE LTD.
Children and Adult Services,Head of Adults,Third Party Payments,478101,Purchase of Care,05-Nov-2014,2816090-1462865H,"1,040.00",COMMUNITY INTEGRATED CARE LTD.
Children and Adult Services,Head of Adults,Third Party Payments,478101,Purchase of Care,05-Nov-2014,2816090-1463611H,624.00,COMMUNITY INTEGRATED CARE LTD.
Children and Adult Services,Head of Adults,Third Party Payments,478101,Purchase of Care,05-Nov-2014,2816090-1464106H,"3,211.60",COMMUNITY INTEGRATED CARE LTD.
Children and Adult Services,Head of Adults,Third Party Payments,478101,Purchase of Care,05-Nov-2014,2816090-1464107H,917.60,COMMUNITY INTEGRATED CARE LTD.
Children and Adult Services,Head of Adults,Third Party Payments,478101,Purchase of Care,05-Nov-2014,2816090-1464956H,"5,012.28",COMMUNITY INTEGRATED CARE LTD.
Children and Adult Services,Head of Adults,Third Party Payments,478101,Purchase of Care,05-Nov-2014,2816090-1465006H,"3,379.32",COMMUNITY INTEGRATED CARE LTD.
Children and Adult Services,Head of Adults,Third Party Payments,478101,Purchase of Care,05-Nov-2014,2816090-1465194H,"5,012.28",COMMUNITY INTEGRATED CARE LTD.
Children and Adult Services,Head of Adults,Third Party Payments,478101,Purchase of Care,05-Nov-2014,2816090-1465199H,"4,129.20",COMMUNITY INTEGRATED CARE LTD.
Children and Adult Services,Head of Adults,Third Party Payments,478101,Purchase of Care,05-Nov-2014,2816090-1465202H,"5,276.88",COMMUNITY INTEGRATED CARE LTD.
Children and Adult Services,Head of Adults,Third Party Payments,478101,Purchase of Care,05-Nov-2014,2816090-1465203H,"5,012.28",COMMUNITY INTEGRATED CARE LTD.
Children and Adult Services,Head of Adults,Third Party Payments,478101,Purchase of Care,05-Nov-2014,2816090-1465204H,"3,526.76",COMMUNITY INTEGRATED CARE LTD.
Children and Adult Services,Head of Adults,Third Party Payments,478101,Purchase of Care,05-Nov-2014,2816090-1465207H,"3,526.76",COMMUNITY INTEGRATED CARE LTD.
Children and Adult Services,Head of Adults,Third Party Payments,478101,Purchase of Care,05-Nov-2014,2816090-1465278H,"5,851.44",COMMUNITY INTEGRATED CARE LTD.
Children and Adult Services,Head of Adults,Third Party Payments,478101,Purchase of Care,05-Nov-2014,2816090-1465297H,"4,129.20",COMMUNITY INTEGRATED CARE LTD.
Children and Adult Services,Head of Adults,Third Party Payments,478101,Purchase of Care,05-Nov-2014,2816090-1465299H,"4,129.20",COMMUNITY INTEGRATED CARE LTD.
Children and Adult Services,Head of Adults,Third Party Payments,478101,Purchase of Care,05-Nov-2014,2816090-1465336H,"6,123.60",COMMUNITY INTEGRATED CARE LTD.
Children and Adult Services,Head of Adults,Third Party Payments,478101,Purchase of Care,05-Nov-2014,2816090-1465373H,848.00,COMMUNITY INTEGRATED CARE LTD.
Children and Adult Services,Head of Adults,Third Party Payments,478101,Purchase of Care,05-Nov-2014,2816090-1465390H,"6,819.12",COMMUNITY INTEGRATED CARE LTD.
Children and Adult Services,Head of Adults,Third Party Payments,478101,Purchase of Care,05-Nov-2014,2816090-1465404H,"4,129.20",COMMUNITY INTEGRATED CARE LTD.
Children and Adult Services,Head of Adults,Third Party Payments,478101,Purchase of Care,05-Nov-2014,2816090-1465479H,"3,526.76",COMMUNITY INTEGRATED CARE LTD.
Children and Adult Services,Head of Adults,Third Party Payments,478101,Purchase of Care,05-Nov-2014,2816090-1465548H,"4,129.20",COMMUNITY INTEGRATED CARE LTD.
Children and Adult Services,Head of Adults,Third Party Payments,478101,Purchase of Care,05-Nov-2014,2816090-1465605H,"4,129.20",COMMUNITY INTEGRATED CARE LTD.
Children and Adult Services,Head of Adults,Third Party Payments,478101,Purchase of Care,05-Nov-2014,2816090-1465745H,"1,280.72",COMMUNITY INTEGRATED CARE LTD.
Children and Adult Services,Head of Adults,Third Party Payments,478101,Purchase of Care,05-Nov-2014,2816090-1466147H,"5,565.68",COMMUNITY INTEGRATED CARE LTD.
Children and Adult Services,Head of Adults,Third Party Payments,478101,Purchase of Care,05-Nov-2014,2816090-1466302H,"3,211.60",COMMUNITY INTEGRATED CARE LTD.
Children and Adult Services,Head of Adults,Third Party Payments,478101,Purchase of Care,05-Nov-2014,2816090-1466303H,917.60,COMMUNITY INTEGRATED CARE LTD.
Children and Adult Services,Head of Adults,Third Party Payments,478101,Purchase of Care,05-Nov-2014,2816090-1466785H,608.72,COMMUNITY INTEGRATED CARE LTD.
Children and Adult Services,Head of Adults,Third Party Payments,478101,Purchase of Care,05-Nov-2014,2816090-1467143H,"6,069.08",COMMUNITY INTEGRATED CARE LTD.
Children and Adult Services,Head of Adults,Third Party Payments,478101,Purchase of Care,05-Nov-2014,2816090-1467833H,"7,088.00",COMMUNITY INTEGRATED CARE LTD.
Children and Adult Services,Head of Adults,Third Party Payments,478101,Purchase of Care,05-Nov-2014,2816090-1468118H,"4,082.40",COMMUNITY INTEGRATED CARE LTD.
Children and Adult Services,Head of Adults,Third Party Payments,472101,Purchase of Care,05-Nov-2014,2816090-1468311H,"1,678.32",COMMUNITY INTEGRATED CARE LTD.
Children and Adult Services,Head of Adults,Third Party Payments,478101,Purchase of Care,05-Nov-2014,2816090-1469859H,"1,040.00",COMMUNITY INTEGRATED CARE LTD.
Children and Adult Services,Head of Adults,Third Party Payments,478101,Purchase of Care,05-Nov-2014,2816090-1470590H,624.00,COMMUNITY INTEGRATED CARE LTD.
Children and Adult Services,Head of Adults,Third Party Payments,478101,Purchase of Care,05-Nov-2014,2816090-1470936H,"1,089.98",COMMUNITY INTEGRATED CARE LTD.
Children and Adult Services,Head of Adults,Third Party Payments,478101,Purchase of Care,05-Nov-2014,2816090-1471057H,"3,379.32",COMMUNITY INTEGRATED CARE LTD.
Children and Adult Services,Head of Adults,Third Party Payments,478101,Purchase of Care,05-Nov-2014,2816090-1471058H,"3,379.32",COMMUNITY INTEGRATED CARE LTD.
Children and Adult Services,Head of Adults,Third Party Payments,478101,Purchase of Care,05-Nov-2014,2816090-1471060H,"1,397.92",COMMUNITY INTEGRATED CARE LTD.
Children and Adult Services,Head of Adults,Third Party Payments,478101,Purchase of Care,05-Nov-2014,2816090-1471062H,"1,397.92",COMMUNITY INTEGRATED CARE LTD.
Children and Adult Services,Head of Adults,Third Party Payments,478101,Purchase of Care,05-Nov-2014,2816090-1471063H,"1,397.92",COMMUNITY INTEGRATED CARE LTD.
Children and Adult Services,Head of Adults,Third Party Payments,478101,Purchase of Care,05-Nov-2014,2816090-1471064H,"1,851.52",COMMUNITY INTEGRATED CARE LTD.
Children and Adult Services,Head of Adults,Third Party Payments,478101,Purchase of Care,05-Nov-2014,2816090-1471065H,"2,981.66",COMMUNITY INTEGRATED CARE LTD.
Children and Adult Services,Head of Adults,Third Party Payments,478101,Purchase of Care,05-Nov-2014,2816090-1471130H,"1,712.72",COMMUNITY INTEGRATED CARE LTD.
Children and Adult Services,Head of Adults,Third Party Payments,478101,Purchase of Care,05-Nov-2014,2816090-1471184H,576.00,COMMUNITY INTEGRATED CARE LTD.
Children and Adult Services,Head of Adults,Third Party Payments,472101,Purchase of Care,05-Nov-2014,2816093-1470532H,640.32,CREATIVE SUPPORT LTD.
Children and Adult Services,Head of Adults,Third Party Payments,478101,Purchase of Care,05-Nov-2014,2816094-1464255H,"3,308.32",CREATIVE SUPPORT LTD.
Children and Adult Services,Head of Adults,Third Party Payments,478101,Purchase of Care,05-Nov-2014,2816094-1464276H,"7,176.92",CREATIVE SUPPORT LTD.
Children and Adult Services,Head of Adults,Third Party Payments,478101,Purchase of Care,05-Nov-2014,2816094-1464467H,"8,217.44",CREATIVE SUPPORT LTD.
Children and Adult Services,Head of Adults,Third Party Payments,478101,Purchase of Care,05-Nov-2014,2816094-1464496H,"4,670.00",CREATIVE SUPPORT LTD.
Children and Adult Services,Head of Adults,Third Party Payments,478101,Purchase of Care,05-Nov-2014,2816094-1464561H,"1,440.00",CREATIVE SUPPORT LTD.
Children and Adult Services,Head of Adults,Third Party Payments,478101,Purchase of Care,05-Nov-2014,2816094-1464667H,"1,056.00",CREATIVE SUPPORT LTD.
Children and Adult Services,Head of Adults,Third Party Payments,478101,Purchase of Care,05-Nov-2014,2816094-1465080H,"5,976.32",CREATIVE SUPPORT LTD.
Children and Adult Services,Head of Adults,Third Party Payments,472101,Purchase of Care,05-Nov-2014,2816094-1465676H,720.00,CREATIVE SUPPORT LTD.
Children and Adult Services,Head of Adults,Third Party Payments,478101,Purchase of Care,05-Nov-2014,2816094-1466289H,"3,175.20",CREATIVE SUPPORT LTD.
Children and Adult Services,Head of Adults,Third Party Payments,472101,Purchase of Care,05-Nov-2014,2816094-1466411H,"1,920.00",CREATIVE SUPPORT LTD.
Children and Adult Services,Head of Adults,Third Party Payments,478101,Purchase of Care,05-Nov-2014,2816094-1466445H,"3,388.36",CREATIVE SUPPORT LTD.
Children and Adult Services,Head of Adults,Third Party Payments,478101,Purchase of Care,05-Nov-2014,2816094-1466491H,"4,784.64",CREATIVE SUPPORT LTD.
Children and Adult Services,Head of Adults,Third Party Payments,478101,Purchase of Care,05-Nov-2014,2816094-1466705H,"4,482.24",CREATIVE SUPPORT LTD.
Children and Adult Services,Head of Adults,Third Party Payments,478101,Purchase of Care,05-Nov-2014,2816094-1466827H,"9,560.32",CREATIVE SUPPORT LTD.
Children and Adult Services,Head of Adults,Third Party Payments,478101,Purchase of Care,05-Nov-2014,2816094-1466882H,"3,772.80",CREATIVE SUPPORT LTD.
Children and Adult Services,Head of Adults,Third Party Payments,478101,Purchase of Care,05-Nov-2014,2816094-1467340H,"2,805.96",CREATIVE SUPPORT LTD.
Children and Adult Services,Head of Adults,Third Party Payments,472101,Purchase of Care,05-Nov-2014,2816094-1467870H,672.00,CREATIVE SUPPORT LTD.
Children and Adult Services,Head of Adults,Third Party Payments,472101,Purchase of Care,05-Nov-2014,2816094-1468082H,"1,200.00",CREATIVE SUPPORT LTD.
Children and Adult Services,Head of Adults,Third Party Payments,478101,Purchase of Care,05-Nov-2014,2816094-1468258H,"1,440.00",CREATIVE SUPPORT LTD.
Children and Adult Services,Head of Adults,Third Party Payments,472101,Purchase of Care,05-Nov-2014,2816095-1465488H,646.96,CRESCENT HOMECARE LTD.
Children and Adult Services,Head of Adults,Third Party Payments,472101,Purchase of Care,05-Nov-2014,2816095-1466008H,646.96,CRESCENT HOMECARE LTD.
Children and Adult Services,Head of Adults,Third Party Payments,472101,Purchase of Care,05-Nov-2014,2816095-1468823H,539.12,CRESCENT HOMECARE LTD.
Children and Adult Services,Head of Adults,Third Party Payments,472101,Purchase of Care,05-Nov-2014,2816095-1469575H,"1,937.08",CRESCENT HOMECARE LTD.
Children and Adult Services,Head of Adults,Third Party Payments,472101,Purchase of Care,05-Nov-2014,2816095-1470075H,635.60,CRESCENT HOMECARE LTD.
Children and Adult Services,Head of Adults,Third Party Payments,472101,Purchase of Care,05-Nov-2014,2816095-1470664H,862.60,CRESCENT HOMECARE LTD.
Children and Adult Services,Head of Adults,Third Party Payments,472101,Purchase of Care,05-Nov-2014,2816097-1464246H,"1,447.68",DALE CARE LTD.
Children and Adult Services,Head of Adults,Third Party Payments,472101,Purchase of Care,05-Nov-2014,2816097-1464301H,"1,425.08",DALE CARE LTD.
Children and Adult Services,Head of Adults,Third Party Payments,472101,Purchase of Care,05-Nov-2014,2816097-1464332H,"1,311.96",DALE CARE LTD.
Children and Adult Services,Head of Adults,Third Party Payments,472101,Purchase of Care,05-Nov-2014,2816097-1464354H,"1,413.77",DALE CARE LTD.
Children and Adult Services,Head of Adults,Third Party Payments,472101,Purchase of Care,05-Nov-2014,2816097-1464355H,"1,057.49",DALE CARE LTD.
Children and Adult Services,Head of Adults,Third Party Payments,472101,Purchase of Care,05-Nov-2014,2816097-1464356H,938.72,DALE CARE LTD.
Children and Adult Services,Head of Adults,Third Party Payments,472101,Purchase of Care,05-Nov-2014,2816097-1464392H,539.12,DALE CARE LTD.
Children and Adult Services,Head of Adults,Third Party Payments,472101,Purchase of Care,05-Nov-2014,2816097-1464452H,712.52,DALE CARE LTD.
Children and Adult Services,Head of Adults,Third Party Payments,472101,Purchase of Care,05-Nov-2014,2816097-1464497H,633.36,DALE CARE LTD.
Children and Adult Services,Head of Adults,Third Party Payments,472101,Purchase of Care,05-Nov-2014,2816097-1464514H,701.24,DALE CARE LTD.
Children and Adult Services,Head of Adults,Third Party Payments,472101,Purchase of Care,05-Nov-2014,2816097-1464517H,859.56,DALE CARE LTD.
Children and Adult Services,Head of Adults,Third Party Payments,472101,Purchase of Care,05-Nov-2014,2816097-1464529H,765.32,DALE CARE LTD.
Children and Adult Services,Head of Adults,Third Party Payments,472101,Purchase of Care,05-Nov-2014,2816097-1464548H,678.60,DALE CARE LTD.
Children and Adult Services,Head of Adults,Third Party Payments,472101,Purchase of Care,05-Nov-2014,2816097-1464553H,772.84,DALE CARE LTD.
Children and Adult Services,Head of Adults,Third Party Payments,472101,Purchase of Care,05-Nov-2014,2816097-1464564H,715.35,DALE CARE LTD.
Children and Adult Services,Head of Adults,Third Party Payments,472101,Purchase of Care,05-Nov-2014,2816097-1464567H,972.68,DALE CARE LTD.
Children and Adult Services,Head of Adults,Third Party Payments,472101,Purchase of Care,05-Nov-2014,2816097-1464572H,550.44,DALE CARE LTD.
Children and Adult Services,Head of Adults,Third Party Payments,472101,Purchase of Care,05-Nov-2014,2816097-1464586H,516.48,DALE CARE LTD.
Children and Adult Services,Head of Adults,Third Party Payments,472101,Purchase of Care,05-Nov-2014,2816097-1464642H,"1,504.24",DALE CARE LTD.
Children and Adult Services,Head of Adults,Third Party Payments,472101,Purchase of Care,05-Nov-2014,2816097-1464656H,"2,317.87",DALE CARE LTD.
Children and Adult Services,Head of Adults,Third Party Payments,472101,Purchase of Care,05-Nov-2014,2816097-1464666H,542.88,DALE CARE LTD.
Children and Adult Services,Head of Adults,Third Party Payments,472101,Purchase of Care,05-Nov-2014,2816097-1464687H,554.20,DALE CARE LTD.
Children and Adult Services,Head of Adults,Third Party Payments,472101,Purchase of Care,05-Nov-2014,2816097-1464711H,614.52,DALE CARE LTD.
Children and Adult Services,Head of Adults,Third Party Payments,472101,Purchase of Care,05-Nov-2014,2816097-1464739H,776.61,DALE CARE LTD.
Children and Adult Services,Head of Adults,Third Party Payments,472101,Purchase of Care,05-Nov-2014,2816097-1464743H,"1,266.72",DALE CARE LTD.
Children and Adult Services,Head of Adults,Third Party Payments,472101,Purchase of Care,05-Nov-2014,2816097-1464753H,678.60,DALE CARE LTD.
Children and Adult Services,Head of Adults,Third Party Payments,472101,Purchase of Care,05-Nov-2014,2816097-1464784H,694.62,DALE CARE LTD.
Children and Adult Services,Head of Adults,Third Party Payments,472101,Purchase of Care,05-Nov-2014,2816097-1464794H,"1,440.16",DALE CARE LTD.
Children and Adult Services,Head of Adults,Third Party Payments,472101,Purchase of Care,05-Nov-2014,2816097-1464829H,"4,688.67",DALE CARE LTD.
Children and Adult Services,Head of Adults,Third Party Payments,472101,Purchase of Care,05-Nov-2014,2816097-1464830H,542.88,DALE CARE LTD.
Children and Adult Services,Head of Adults,Third Party Payments,472101,Purchase of Care,05-Nov-2014,2816097-1464834H,"1,052.18",DALE CARE LTD.
Children and Adult Services,Head of Adults,Third Party Payments,472101,Purchase of Care,05-Nov-2014,2816097-1464835H,610.74,DALE CARE LTD.
Children and Adult Services,Head of Adults,Third Party Payments,472101,Purchase of Care,05-Nov-2014,2816097-1464836H,"1,266.72",DALE CARE LTD.
Children and Adult Services,Head of Adults,Third Party Payments,472101,Purchase of Care,05-Nov-2014,2816097-1464839H,633.36,DALE CARE LTD.
Children and Adult Services,Head of Adults,Third Party Payments,472101,Purchase of Care,05-Nov-2014,2816097-1464844H,524.04,DALE CARE LTD.
Children and Adult Services,Head of Adults,Third Party Payments,472101,Purchase of Care,05-Nov-2014,2816097-1464875H,541.95,DALE CARE LTD.
Children and Adult Services,Head of Adults,Third Party Payments,472101,Purchase of Care,05-Nov-2014,2816097-1464880H,616.41,DALE CARE LTD.
Children and Adult Services,Head of Adults,Third Party Payments,472101,Purchase of Care,05-Nov-2014,2816097-1464890H,"1,029.20",DALE CARE LTD.
Children and Adult Services,Head of Adults,Third Party Payments,472101,Purchase of Care,05-Nov-2014,2816097-1464892H,729.39,DALE CARE LTD.
Children and Adult Services,Head of Adults,Third Party Payments,472101,Purchase of Care,05-Nov-2014,2816097-1464913H,633.36,DALE CARE LTD.
Children and Adult Services,Head of Adults,Third Party Payments,472101,Purchase of Care,05-Nov-2014,2816097-1464951H,"1,311.96",DALE CARE LTD.
